Workbook

Sheet 入力シート
A1: ND-100 データ入力シート
B3: 被検者氏名
B5: 検査日 | F5: 年 | H5: 月 | J5: 日
B7: 100hue
N8: 内箱 No.1
B9: 順位 | C9: ="(100)" -> (100) | D9: 1 | E9: 2 | F9: 3 | G9: 4 | H9: 5 | I9: 6 | J9: 7 | K9: 8 | L9: 9 | M9: 10 | N9: 11 | O9: 12 | P9: 13 | Q9: 14 | R9: 15 | S9: 16 | T9: 17 | U9: 18 | V9: 19 | W9: 20 | X9: 21 | Y9: 22 | Z9: 23 | AA9: 24 | AB9: 25 | AC9: 26 | AF9: 小計１
B10: テスト順 | C10: 0 | AC10: 26 | AE10: =OR(SUM($D11:$AB11)>0,OR(ISBLANK($D10),ISBLANK($E10),ISBLANK($F10),ISBLANK($G10),ISBLANK($H10),ISBLANK($I10),ISBLANK($J10),ISBLANK($K10),ISBLANK($L10),ISBLANK($M10),ISBLANK($N10),ISBLANK($O10),ISBLANK($P10),ISBLANK($Q10),ISBLANK($R10),ISBLANK($S10),ISBLANK($T10),ISBLANK($U10),ISBLANK($V10),ISBLANK($W10),ISBLANK($X10),ISBLANK($Y10),ISBLANK($Z10),ISBLANK($AA10),ISBLANK($AB10))) -> TRUE | AF10: =IF(AE10=FALSE,スコアシート!BH10,"") -> 
C11: 重複 | D11: =COUNTIF($C$10:$AC$10,D10)-1 -> 0 | E11: =COUNTIF($C$10:$AC$10,E10)-1 -> 0 | F11: 0 | G11: 0 | H11: 0 | I11: 0 | J11: 0 | K11: 0 | L11: 0 | M11: 0 | N11: 0 | O11: 0 | P11: 0 | Q11: 0 | R11: 0 | S11: 0 | T11: 0 | U11: 0 | V11: 0 | W11: 0 | X11: 0 | Y11: 0 | Z11: 0 | AA11: 0 | AB11: 0
C12: ｴﾗｰ | D12: =IF(D9=D10,0,1) -> 1 | E12: =IF(E9=E10,0,1) -> 1 | F12: 1 | G12: 1 | H12: 1 | I12: 1 | J12: 1 | K12: 1 | L12: 1 | M12: 1 | N12: 1 | O12: 1 | P12: 1 | Q12: 1 | R12: 1 | S12: 1 | T12: 1 | U12: 1 | V12: 1 | W12: 1 | X12: 1 | Y12: 1 | Z12: 1 | AA12: 1 | AB12: 1
N14: 内箱 No.2
B15: 順位 | C15: 25 | D15: 26 | E15: 27 | F15: 28 | G15: 29 | H15: 30 | I15: 31 | J15: 32 | K15: 33 | L15: 34 | M15: 35 | N15: 36 | O15: 37 | P15: 38 | Q15: 39 | R15: 40 | S15: 41 | T15: 42 | U15: 43 | V15: 44 | W15: 45 | X15: 46 | Y15: 47 | Z15: 48 | AA15: 49 | AB15: 50 | AC15: 51 | AF15: 小計2
B16: テスト順 | C16: 25 | AC16: 51 | AE16: =OR(SUM($D17:$AB17)>0,OR(ISBLANK($D16),ISBLANK($E16),ISBLANK($F16),ISBLANK($G16),ISBLANK($H16),ISBLANK($I16),ISBLANK($J16),ISBLANK($K16),ISBLANK($L16),ISBLANK($M16),ISBLANK($N16),ISBLANK($O16),ISBLANK($P16),ISBLANK($Q16),ISBLANK($R16),ISBLANK($S16),ISBLANK($T16),ISBLANK($U16),ISBLANK($V16),ISBLANK($W16),ISBLANK($X16),ISBLANK($Y16),ISBLANK($Z16),ISBLANK($AA16),ISBLANK($AB16))) -> TRUE | AF16: =IF(AE16=FALSE,スコアシート!BH17,"") -> 
C17: 重複 | D17: =COUNTIF($C$16:$AC$16,D16)-1 -> -1 | E17: =COUNTIF($C$16:$AC$16,E16)-1 -> -1 | F17: -1 | G17: -1 | H17: -1 | I17: -1 | J17: -1 | K17: -1 | L17: -1 | M17: -1 | N17: -1 | O17: -1 | P17: -1 | Q17: -1 | R17: -1 | S17: -1 | T17: -1 | U17: -1 | V17: -1 | W17: -1 | X17: -1 | Y17: -1 | Z17: -1 | AA17: -1 | AB17: -1
C18: ｴﾗｰ
N20: 内箱 No.3
B21: 順位 | C21: 50 | D21: 51 | E21: 52 | F21: 53 | G21: 54 | H21: 55 | I21: 56 | J21: 57 | K21: 58 | L21: 59 | M21: 60 | N21: 61 | O21: 62 | P21: 63 | Q21: 64 | R21: 65 | S21: 66 | T21: 67 | U21: 68 | V21: 69 | W21: 70 | X21: 71 | Y21: 72 | Z21: 73 | AA21: 74 | AB21: 75 | AC21: 76 | AF21: 小計3
B22: テスト順 | C22: 50 | AC22: 76 | AE22: =OR(SUM($D23:$AB23)>0,OR(ISBLANK($D22),ISBLANK($E22),ISBLANK($F22),ISBLANK($G22),ISBLANK($H22),ISBLANK($I22),ISBLANK($J22),ISBLANK($K22),ISBLANK($L22),ISBLANK($M22),ISBLANK($N22),ISBLANK($O22),ISBLANK($P22),ISBLANK($Q22),ISBLANK($R22),ISBLANK($S22),ISBLANK($T22),ISBLANK($U22),ISBLANK($V22),ISBLANK($W22),ISBLANK($X22),ISBLANK($Y22),ISBLANK($Z22),ISBLANK($AA22),ISBLANK($AB22))) -> TRUE | AF22: =IF(AE22=FALSE,スコアシート!BH24,"") -> 
C23: 重複 | D23: =COUNTIF($C$22:$AC$22,D22)-1 -> -1 | E23: -1 | F23: -1 | G23: -1 | H23: -1 | I23: -1 | J23: -1 | K23: -1 | L23: -1 | M23: -1 | N23: -1 | O23: -1 | P23: -1 | Q23: -1 | R23: -1 | S23: -1 | T23: -1 | U23: -1 | V23: -1 | W23: -1 | X23: -1 | Y23: -1 | Z23: -1 | AA23: -1 | AB23: -1
C24: ｴﾗｰ | D24: =IF(D21=D22,0,1) -> 1 | E24: =IF(E21=E22,0,1) -> 1 | F24: 1 | G24: 1 | H24: 1 | I24: 1 | J24: 1 | K24: 1 | L24: 1 | M24: 1 | N24: 1 | O24: 1 | P24: 1 | Q24: 1 | R24: 1 | S24: 1 | T24: 1 | U24: 1 | V24: 1 | W24: 1 | X24: 1 | Y24: 1 | Z24: 1 | AA24: 1 | AB24: 1
N26: 内箱 No.4
B27: 順位 | C27: 75 | D27: 76 | E27: 77 | F27: 78 | G27: 79 | H27: 80 | I27: 81 | J27: 82 | K27: 83 | L27: 84 | M27: 85 | N27: 86 | O27: 87 | P27: 88 | Q27: 89 | R27: 90 | S27: 91 | T27: 92 | U27: 93 | V27: 94 | W27: 95 | X27: 96 | Y27: 97 | Z27: 98 | AA27: 99 | AB27: 100 | AC27: ="(1)" -> (1) | AF27: 小計4
B28: テスト順 | C28: 75 | AC28: 101 | AE28: =OR(SUM($D29:$AB29)>0,OR(ISBLANK($D28),ISBLANK($E28),ISBLANK($F28),ISBLANK($G28),ISBLANK($H28),ISBLANK($I28),ISBLANK($J28),ISBLANK($K28),ISBLANK($L28),ISBLANK($M28),ISBLANK($N28),ISBLANK($O28),ISBLANK($P28),ISBLANK($Q28),ISBLANK($R28),ISBLANK($S28),ISBLANK($T28),ISBLANK($U28),ISBLANK($V28),ISBLANK($W28),ISBLANK($X28),ISBLANK($Y28),ISBLANK($Z28),ISBLANK($AA28),ISBLANK($AB28))) -> TRUE | AF28: =IF(AE28=FALSE,スコアシート!BH31,"") -> 
C29: 重複 | D29: =COUNTIF($C$28:$AC$28,D28)-1 -> -1 | E29: =COUNTIF($C$28:$AC$28,E28)-1 -> -1 | F29: -1 | G29: -1 | H29: -1 | I29: -1 | J29: -1 | K29: -1 | L29: -1 | M29: -1 | N29: -1 | O29: -1 | P29: -1 | Q29: -1 | R29: -1 | S29: -1 | T29: -1 | U29: -1 | V29: -1 | W29: -1 | X29: -1 | Y29: -1 | Z29: -1 | AA29: -1 | AB29: -1
C30: ｴﾗｰ | D30: =IF(D27=D28,0,1) -> 1 | E30: =IF(E27=E28,0,1) -> 1 | F30: 1 | G30: 1 | H30: 1 | I30: 1 | J30: 1 | K30: 1 | L30: 1 | M30: 1 | N30: 1 | O30: 1 | P30: 1 | Q30: 1 | R30: 1 | S30: 1 | T30: 1 | U30: 1 | V30: 1 | W30: 1 | X30: 1 | Y30: 1 | Z30: 1 | AA30: 1 | AB30: 1
AE32: =OR(AE10,AE16,AE22,AE28) -> TRUE
R33: 使用する判定基準 | V33: 判定基準Ａ(旧基準)
B34: 入力上の注意 | R34: 判定しない | V34: ランク | W34: 誤回答数
C35: ・被検者名、検査日を青色セルに記入してください | V35: 優 | W35: 16以下
C36: ・内箱番号を間違えないように気をつけてください。 | V36: 良 | W36: 17から48
C37: ・テスト順欄の黄色セルに回答値を入力してください。 | V37: 可 | W37: 52から80
C38: ・範囲外の回答値は入力できません。
C39: ・黄色セルが赤色文字になったときは回答値が重複しています。確認してください。 | V39: 判定基準Ｂ（新基準2017年）
C40: ・黄色セルに空白があるか重複していると小計は表示されません。 | V40: ランク | W40: 誤回答数 | Y40: 色識別技能者として
C41: ・緑色セルの判定基準を選択してください | V41: A | W41: 32以下 | Y41: 優秀
C42: ・入力結果はスコアシート、パターングラフに反映されます。 | V42: B | W42: 33から80 | Y42: 良好
C43: ・必要に応じて、スコアシート、パターングラフを印刷してください。 | V43: C | W43: 80以上 | Y43: －－－

Sheet パターングラフデータ (hidden)
A1: ND-100 パターン・グラフ描画用データ | BR1: 2022/6/15修正 (V1.03：パターングラフ外周部に、色見本を追加。）
A2: 2022/4/1修正: ver 1.02 (BA2参照) | BA2: 2022/4/1修正 BN列のイエロー塗りつぶし部分：内箱1～4の重複部分(8カ所)の加点計算を修正した。 | BR2: 2CのCIELAB値で白色点補正を行い、これを2D65で逆変換を行いsRGBを適用した。
H3: 開始角度 | I3: 90
H4: 間隔 | I4: 3.6
H7: 開始半径 | I7: 5
H8: 間隔 | I8: 1
A9: 2022/6/1修正: ver 1.03(BR列参照)
A11: 文字の位置指定表示 | K11: 0 | N11: 1 | Q11: 2 | T11: 3 | W11: 4 | Z11: 5 | AC11: 6 | AF11: 7 | AI11: 8 | AL11: 9 | AO11: 10 | AR11: 11 | AU11: 12 | AX11: -1 | BA11: 内箱1 | BD11: 内箱2 | BG11: 内箱3 | BJ11: 内箱4 | BM11: 回答 | BS11: 14.5
A12: 表示 | B12: 角度 | C12: rad | D12: 半径 | E12: x | F12: y | H12: No. | I12: 角度 | J12: rad | K12: 半径 | L12: x | M12: y | N12: 半径 | O12: x | P12: y | Q12: 半径 | R12: x | S12: y | T12: 半径 | U12: x | V12: y | W12: 半径 | X12: x | Y12: y | Z12: 半径 | AA12: x | AB12: y | AC12: 半径 | AD12: x | AE12: y | AF12: 半径 | AG12: x | AH12: y | AI12: 半径 | AJ12: x | AK12: y | AL12: 半径 | AM12: x | AN12: y | AO12: 半径 | AP12: x | AQ12: y | AR12: 半径 | AS12: x | AT12: y | AU12: 半径 | AV12: x | AW12: y | AX12: 半径 | AY12: x | AZ12: y | BA12: No. | BB12: x | BC12: y | BD12: No. | BE12: x | BF12: y | BG12: No. | BH12: x | BI12: y | BJ12: No. | BK12: x | BL12: y | BM12: No. | BN12: 点 | BO12: 半径 | BP12: x | BQ12: y | BS12: 半径 | BT12: x | BU12: y | BV12: R | BW12: G | BX12: B | BY12: Color
A13: 1 | B13: =I3+(A13-1)*I4 -> 90 | C13: =RADIANS(B13) -> 1.570796327 | D13: 18 | E13: =D13*COS(C13) -> 1.102633609e-15 | F13: =D13*SIN(C13) -> 18 | H13: 1 | I13: =I3+(H13-1)*I4 -> 90 | J13: =RADIANS(I13) -> 1.570796327 | K13: =I7+K11*I8 -> 5 | L13: =K13*COS(J13) -> 3.062871137e-16 | M13: =K13*SIN(J13) -> 5 | N13: =I7+N11*I8 -> 6 | O13: =N13*COS(J13) -> 3.675445365e-16 | P13: =N13*SIN(J13) -> 6 | Q13: =I7+Q11*I8 -> 7 | R13: =Q13*COS(J13) -> 4.288019592e-16 | S13: =Q13*SIN(J13) -> 7 | T13: =I7+T11*I8 -> 8 | U13: =T13*COS(J13) -> 4.90059382e-16 | V13: =T13*SIN(J13) -> 8 | W13: =I7+W11*I8 -> 9 | X13: =W13*COS(J13) -> 5.513168047e-16 | Y13: =W13*SIN(J13) -> 9 | Z13: =I7+Z11*I8 -> 10 | AA13: =Z13*COS(J13) -> 6.125742275e-16 | AB13: =Z13*SIN(J13) -> 10 | AC13: =I7+AC11*I8 -> 11 | AD13: =AC13*COS(J13) -> 6.738316502e-16 | AE13: =AC13*SIN(J13) -> 11 | AF13: =I7+AF11*I8 -> 12 | AG13: =AF13*COS(J13) -> 7.350890729e-16 | AH13: =AF13*SIN(J13) -> 12 | AI13: =I7+AI11*I8 -> 13 | AJ13: =AI13*COS(J13) -> 7.963464957e-16 | AK13: =AI13*SIN(J13) -> 13 | AL13: =I7+AL11*I8 -> 14 | AM13: =AL13*COS(J13) -> 8.576039184e-16 | AN13: =AL13*SIN(J13) -> 14 | AO13: =I7+AO11*I8 -> 15 | AP13: =AO13*COS(J13) -> 9.188613412e-16 | AQ13: =AO13*SIN(J13) -> 15 | AR13: =I7+AR11*I8 -> 16 | AS13: =AR13*COS(J13) -> 9.801187639e-16 | AT13: =AR13*SIN(J13) -> 16 | AU13: =I7+AU11*I8 -> 17 | AV13: =AU13*COS(J13) -> 1.041376187e-15 | AW13: =AU13*SIN(J13) -> 17 | AX13: =I7+AX11*I8 -> 4 | AY13: =AX13*COS(J13) -> 2.45029691e-16 | AZ13: =AX13*SIN(J13) -> 4 | BA13: 1 | BB13: =AV13 -> 1.041376187e-15 | BC13: =AW13 -> 17 | BD13: =BA85+1 -> 26 | BE13: =AV38 -> -17 | BF13: =AW38 -> 2.082752373e-15 | BG13: =BD85+1 -> 51 | BH13: =AV63 -> -3.12412856e-15 | BI13: =AW63 -> -17 | BJ13: =BG85+1 -> 76 | BK13: =AV88 -> 17 | BL13: =AW88 -> -4.165504747e-15 | BM13: =H13 -> 1 | BN13: =スコアシート!E10+スコアシート!BC31 -> 98 | BO13: =$I$7+BN13*$I$8 -> 103 | BP13: =BO13*COS(J13) -> 6.309514543e-15 | BQ13: =BO13*SIN(J13) -> 103 | BR13: =H13 -> 1 | BS13: =I7+BS11*I8 -> 19.5 | BT13: =BS13*COS(J13) -> 1.194519744e-15 | BU13: =BS13*SIN(J13) -> 19.5 | BV13: 169 | BW13: 143 | BX13: 145
A14: 3 | B14: =I3+(A14-1)*I4 -> 97.2 | C14: 1.696460033 | D14: =D13 -> 18 | E14: -2.255998204 | F14: 17.85806462 | H14: 2 | I14: =I3+(H14-1)*I4 -> 93.6 | J14: 1.63362818 | K14: =K13 -> 5 | L14: -0.3139525976 | M14: 4.990133642 | N14: =N13 -> 6 | O14: -0.3767431172 | P14: 5.988160371 | Q14: =Q13 -> 7 | R14: -0.4395336367 | S14: 6.986187099 | T14: =T13 -> 8 | U14: -0.5023241562 | V14: 7.984213827 | W14: =W13 -> 9 | X14: -0.5651146758 | Y14: 8.982240556 | Z14: =Z13 -> 10 | AA14: -0.6279051953 | AB14: 9.980267284 | AC14: =AC13 -> 11 | AD14: -0.6906957148 | AE14: 10.97829401 | AF14: =AF13 -> 12 | AG14: -0.7534862344 | AH14: 11.97632074 | AI14: =AI13 -> 13 | AJ14: -0.8162767539 | AK14: 12.97434747 | AL14: =AL13 -> 14 | AM14: -0.8790672734 | AN14: 13.9723742 | AO14: =AO13 -> 15 | AP14: -0.9418577929 | AQ14: 14.97040093 | AR14: =AR13 -> 16 | AS14: -1.004648312 | AT14: 15.96842765 | AU14: =AU13 -> 17 | AV14: -1.067438832 | AW14: 16.96645438 | AX14: =AX13 -> 4 | AY14: -0.2511620781 | AZ14: 3.992106914 | BA14: 1 | BB14: =AY13 -> 2.45029691e-16 | BC14: =AZ13 -> 4 | BD14: =BA86+1 -> 26 | BE14: =AY38 -> -4 | BF14: =AZ38 -> 4.90059382e-16 | BG14: =BD86+1 -> 51 | BH14: =AY63 -> -7.350890729e-16 | BI14: =AZ63 -> -4 | BJ14: =BG86+1 -> 76 | BK14: =AY88 -> 4 | BL14: =AZ88 -> -9.801187639e-16 | BM14: =H14 -> 2 | BN14: =スコアシート!G10 -> -2 | BO14: 3 | BP14: -0.1883715586 | BQ14: 2.994080185 | BR14: =H14 -> 2 | BS14: =BS13 -> 19.5 | BT14: -1.224415131 | BU14: 19.4615212 | BV14: 169 | BW14: 143 | BX14: 144
A15: 5 | B15: =I3+(A15-1)*I4 -> 104.4 | C15: 1.822123739 | D15: 18 | E15: -4.476417969 | F15: 17.4344969 | H15: 3 | I15: =I3+(H15-1)*I4 -> 97.2 | J15: 1.696460033 | K15: 5 | L15: -0.6266661678 | M15: 4.960573507 | N15: 6 | O15: -0.7519994014 | P15: 5.952688208 | Q15: 7 | R15: -0.877332635 | S15: 6.944802909 | T15: 8 | U15: -1.002665869 | V15: 7.936917611 | W15: 9 | X15: -1.127999102 | Y15: 8.929032312 | Z15: 10 | AA15: -1.253332336 | AB15: 9.921147013 | AC15: 11 | AD15: -1.378665569 | AE15: 10.91326171 | AF15: 12 | AG15: -1.503998803 | AH15: 11.90537642 | AI15: 13 | AJ15: -1.629332036 | AK15: 12.89749112 | AL15: 14 | AM15: -1.75466527 | AN15: 13.88960582 | AO15: 15 | AP15: -1.879998503 | AQ15: 14.88172052 | AR15: 16 | AS15: -2.005331737 | AT15: 15.87383522 | AU15: 17 | AV15: -2.130664971 | AW15: 16.86594992 | AX15: 4 | AY15: -0.5013329343 | AZ15: 3.968458805 | BM15: 3 | BN15: =スコアシート!I10 -> -2 | BO15: 3 | BP15: -0.3759997007 | BQ15: 2.976344104 | BR15: 3 | BS15: 19.5 | BT15: -2.443998055 | BU15: 19.34623668 | BV15: 168 | BW15: 143 | BX15: 142
A16: 7 | B16: =I3+(A16-1)*I4 -> 111.6 | C16: 1.947787445 | D16: 18 | E16: -6.626241948 | F16: 16.73597675 | H16: 4 | I16: =I3+(H16-1)*I4 -> 100.8 | J16: 1.759291886 | K16: 5 | L16: -0.9369065729 | M16: 4.911436254 | N16: 6 | O16: -1.124287888 | P16: 5.893723504 | Q16: 7 | R16: -1.311669202 | S16: 6.876010755 | T16: 8 | U16: -1.499050517 | V16: 7.858298006 | W16: 9 | X16: -1.686431831 | Y16: 8.840585257 | Z16: 10 | AA16: -1.873813146 | AB16: 9.822872507 | AC16: 11 | AD16: -2.06119446 | AE16: 10.80515976 | AF16: 12 | AG16: -2.248575775 | AH16: 11.78744701 | AI16: 13 | AJ16: -2.43595709 | AK16: 12.76973426 | AL16: 14 | AM16: -2.623338404 | AN16: 13.75202151 | AO16: 15 | AP16: -2.810719719 | AQ16: 14.73430876 | AR16: 16 | AS16: -2.998101033 | AT16: 15.71659601 | AU16: 17 | AV16: -3.185482348 | AW16: 16.69888326 | AX16: 4 | AY16: -0.7495252583 | AZ16: 3.929149003 | BA16: =BA13+1 -> 2 | BB16: =AV14 -> -1.067438832 | BC16: =AW14 -> 16.96645438 | BD16: =BD13+1 -> 27 | BE16: =AV39 -> -16.96645438 | BF16: =AW39 -> -1.067438832 | BG16: =BG13+1 -> 52 | BH16: =AV64 -> 1.067438832 | BI16: =AW64 -> -16.96645438 | BJ16: =BJ13+1 -> 77 | BK16: =AV89 -> 16.96645438 | BL16: =AW89 -> 1.067438832 | BM16: 4 | BN16: =スコアシート!K10 -> -2 | BO16: 3 | BP16: -0.5621439438 | BQ16: 2.946861752 | BR16: 4 | BS16: 19.5 | BT16: -3.653935634 | BU16: 19.15460139 | BV16: 168 | BW16: 144 | BX16: 140
A17: 9 | B17: =I3+(A17-1)*I4 -> 118.8 | C17: 2.073451151 | D17: 18 | E17: -8.671566134 | F17: 15.77352024 | H17: 5 | I17: =I3+(H17-1)*I4 -> 104.4 | J17: 1.822123739 | K17: 5 | L17: -1.243449436 | M17: 4.842915806 | N17: 6 | O17: -1.492139323 | P17: 5.811498967 | Q17: 7 | R17: -1.74082921 | S17: 6.780082128 | T17: 8 | U17: -1.989519097 | V17: 7.748665289 | W17: 9 | X17: -2.238208984 | Y17: 8.71724845 | Z17: 10 | AA17: -2.486898872 | AB17: 9.685831611 | AC17: 11 | AD17: -2.735588759 | AE17: 10.65441477 | AF17: 12 | AG17: -2.984278646 | AH17: 11.62299793 | AI17: 13 | AJ17: -3.232968533 | AK17: 12.59158109 | AL17: 14 | AM17: -3.48165842 | AN17: 13.56016426 | AO17: 15 | AP17: -3.730348307 | AQ17: 14.52874742 | AR17: 16 | AS17: -3.979038195 | AT17: 15.49733058 | AU17: 17 | AV17: -4.227728082 | AW17: 16.46591374 | AX17: 4 | AY17: -0.9947595487 | AZ17: 3.874332645 | BA17: =BA14+1 -> 2 | BB17: =AY14 -> -0.2511620781 | BC17: =AZ14 -> 3.992106914 | BD17: =BD14+1 -> 27 | BE17: =AY39 -> -3.992106914 | BF17: =AZ39 -> -0.2511620781 | BG17: =BG14+1 -> 52 | BH17: =AY64 -> 0.2511620781 | BI17: =AZ64 -> -3.992106914 | BJ17: =BJ14+1 -> 77 | BK17: =AY89 -> 3.992106914 | BL17: =AZ89 -> 0.2511620781 | BM17: 5 | BN17: =スコアシート!M10 -> -2 | BO17: 3 | BP17: -0.7460696615 | BQ17: 2.905749483 | BR17: 5 | BS17: 19.5 | BT17: -4.8494528 | BU17: 18.88737164 | BV17: 168 | BW17: 144 | BX17: 138
A18: 11 | B18: =I3+(A18-1)*I4 -> 126 | C18: 2.199114858 | D18: 18 | E18: -10.58013454 | F18: 14.5623059 | H18: 6 | I18: =I3+(H18-1)*I4 -> 108 | J18: 1.884955592 | K18: 5 | L18: -1.545084972 | M18: 4.755282581 | N18: 6 | O18: -1.854101966 | P18: 5.706339098 | Q18: 7 | R18: -2.163118961 | S18: 6.657395614 | T18: 8 | U18: -2.472135955 | V18: 7.60845213 | W18: 9 | X18: -2.781152949 | Y18: 8.559508647 | Z18: 10 | AA18: -3.090169944 | AB18: 9.510565163 | AC18: 11 | AD18: -3.399186938 | AE18: 10.46162168 | AF18: 12 | AG18: -3.708203932 | AH18: 11.4126782 | AI18: 13 | AJ18: -4.017220927 | AK18: 12.36373471 | AL18: 14 | AM18: -4.326237921 | AN18: 13.31479123 | AO18: 15 | AP18: -4.635254916 | AQ18: 14.26584774 | AR18: 16 | AS18: -4.94427191 | AT18: 15.21690426 | AU18: 17 | AV18: -5.253288904 | AW18: 16.16796078 | AX18: 4 | AY18: -1.236067977 | AZ18: 3.804226065 | BM18: 6 | BN18: =スコアシート!O10 -> -2 | BO18: 3 | BP18: -0.9270509831 | BQ18: 2.853169549 | BR18: 6 | BS18: 19.5 | BT18: -6.02583139 | BU18: 18.54560207 | BV18: 167 | BW18: 144 | BX18: 137
A19: 13 | B19: =I3+(A19-1)*I4 -> 133.2 | C19: 2.324778564 | D19: 18 | E19: -12.32184791 | F19: 13.12143529 | H19: 7 | I19: =I3+(H19-1)*I4 -> 111.6 | J19: 1.947787445 | K19: 5 | L19: -1.840622763 | M19: 4.648882429 | N19: 6 | O19: -2.208747316 | P19: 5.578658915 | Q19: 7 | R19: -2.576871869 | S19: 6.508435401 | T19: 8 | U19: -2.944996421 | V19: 7.438211887 | W19: 9 | X19: -3.313120974 | Y19: 8.367988373 | Z19: 10 | AA19: -3.681245527 | AB19: 9.297764859 | AC19: 11 | AD19: -4.04937008 | AE19: 10.22754134 | AF19: 12 | AG19: -4.417494632 | AH19: 11.15731783 | AI19: 13 | AJ19: -4.785619185 | AK19: 12.08709432 | AL19: 14 | AM19: -5.153743738 | AN19: 13.0168708 | AO19: 15 | AP19: -5.52186829 | AQ19: 13.94664729 | AR19: 16 | AS19: -5.889992843 | AT19: 14.87642377 | AU19: 17 | AV19: -6.258117396 | AW19: 15.80620026 | AX19: 4 | AY19: -1.472498211 | AZ19: 3.719105944 | BA19: =BA16+1 -> 3 | BB19: =AV15 -> -2.130664971 | BC19: =AW15 -> 16.86594992 | BD19: =BD16+1 -> 28 | BE19: =AV40 -> -16.86594992 | BF19: =AW40 -> -2.130664971 | BG19: =BG16+1 -> 53 | BH19: =AV65 -> 2.130664971 | BI19: =AW65 -> -16.86594992 | BJ19: =BJ16+1 -> 78 | BK19: =AV90 -> 16.86594992 | BL19: =AW90 -> 2.130664971 | BM19: 7 | BN19: =スコアシート!Q10 -> -2 | BO19: 3 | BP19: -1.104373658 | BQ19: 2.789329458 | BR19: 7 | BS19: 19.5 | BT19: -7.178428777 | BU19: 18.13064147 | BV19: 166 | BW19: 145 | BX19: 135
A20: 15 | B20: =I3+(A20-1)*I4 -> 140.4 | C20: 2.45044227 | D20: 18 | E20: -13.86923837 | F20: 11.47363182 | H20: 8 | I20: =I3+(H20-1)*I4 -> 115.2 | J20: 2.010619298 | K20: 5 | L20: -2.128896458 | M20: 4.524135262 | N20: 6 | O20: -2.554675749 | P20: 5.428962315 | Q20: 7 | R20: -2.980455041 | S20: 6.333789367 | T20: 8 | U20: -3.406234333 | V20: 7.23861642 | W20: 9 | X20: -3.832013624 | Y20: 8.143443472 | Z20: 10 | AA20: -4.257792916 | AB20: 9.048270525 | AC20: 11 | AD20: -4.683572207 | AE20: 9.953097577 | AF20: 12 | AG20: -5.109351499 | AH20: 10.85792463 | AI20: 13 | AJ20: -5.53513079 | AK20: 11.76275168 | AL20: 14 | AM20: -5.960910082 | AN20: 12.66757873 | AO20: 15 | AP20: -6.386689373 | AQ20: 13.57240579 | AR20: 16 | AS20: -6.812468665 | AT20: 14.47723284 | AU20: 17 | AV20: -7.238247957 | AW20: 15.38205989 | AX20: 4 | AY20: -1.703117166 | AZ20: 3.61930821 | BA20: =BA17+1 -> 3 | BB20: =AY15 -> -0.5013329343 | BC20: =AZ15 -> 3.968458805 | BD20: =BD17+1 -> 28 | BE20: =AY40 -> -3.968458805 | BF20: =AZ40 -> -0.5013329343 | BG20: =BG17+1 -> 53 | BH20: =AY65 -> 0.5013329343 | BI20: =AZ65 -> -3.968458805 | BJ20: =BJ17+1 -> 78 | BK20: =AY90 -> 3.968458805 | BL20: =AZ90 -> 0.5013329343 | BM20: 8 | BN20: =スコアシート!S10 -> -2 | BO20: 3 | BP20: -1.277337875 | BQ20: 2.714481157 | BR20: 8 | BS20: 19.5 | BT20: -8.302696186 | BU20: 17.64412752 | BV20: 166 | BW20: 145 | BX20: 134
A21: 17 | B21: =I3+(A21-1)*I4 -> 147.6 | C21: 2.576105976 | D21: 18 | E21: -15.19790266 | F21: 9.64488231 | H21: 9 | I21: =I3+(H21-1)*I4 -> 118.8 | J21: 2.073451151 | K21: 5 | L21: -2.408768371 | M21: 4.3815334 | N21: 6 | O21: -2.890522045 | P21: 5.25784008 | Q21: 7 | R21: -3.372275719 | S21: 6.13414676 | T21: 8 | U21: -3.854029393 | V21: 7.01045344 | W21: 9 | X21: -4.335783067 | Y21: 7.88676012 | Z21: 10 | AA21: -4.817536741 | AB21: 8.7630668 | AC21: 11 | AD21: -5.299290415 | AE21: 9.63937348 | AF21: 12 | AG21: -5.781044089 | AH21: 10.51568016 | AI21: 13 | AJ21: -6.262797763 | AK21: 11.39198684 | AL21: 14 | AM21: -6.744551437 | AN21: 12.26829352 | AO21: 15 | AP21: -7.226305112 | AQ21: 13.1446002 | AR21: 16 | AS21: -7.708058786 | AT21: 14.02090688 | AU21: 17 | AV21: -8.18981246 | AW21: 14.89721356 | AX21: 4 | AY21: -1.927014696 | AZ21: 3.50522672 | BM21: 9 | BN21: =スコアシート!U10 -> -2 | BO21: 3 | BP21: -1.445261022 | BQ21: 2.62892004 | BR21: 9 | BS21: 19.5 | BT21: -9.394196645 | BU21: 17.08798026 | BV21: 165 | BW21: 145 | BX21: 132
A22: 19 | B22: =I3+(A22-1)*I4 -> 154.8 | C22: 2.701769682 | D22: 18 | E22: -16.28688694 | F22: 7.664027248 | H22: 10 | I22: =I3+(H22-1)*I4 -> 122.4 | J22: 2.136283004 | K22: 5 | L22: -2.679133975 | M22: 4.221639628 | N22: 6 | O22: -3.21496077 | P22: 5.065967553 | Q22: 7 | R22: -3.750787565 | S22: 5.910295479 | T22: 8 | U22: -4.28661436 | V22: 6.754623404 | W22: 9 | X22: -4.822441155 | Y22: 7.59895133 | Z22: 10 | AA22: -5.35826795 | AB22: 8.443279255 | AC22: 11 | AD22: -5.894094745 | AE22: 9.287607181 | AF22: 12 | AG22: -6.42992154 | AH22: 10.13193511 | AI22: 13 | AJ22: -6.965748335 | AK22: 10.97626303 | AL22: 14 | AM22: -7.50157513 | AN22: 11.82059096 | AO22: 15 | AP22: -8.037401925 | AQ22: 12.66491888 | AR22: 16 | AS22: -8.57322872 | AT22: 13.50924681 | AU22: 17 | AV22: -9.109055515 | AW22: 14.35357473 | AX22: 4 | AY22: -2.14330718 | AZ22: 3.377311702 | BA22: =BA19+1 -> 4 | BB22: =AV16 -> -3.185482348 | BC22: =AW16 -> 16.69888326 | BD22: =BD19+1 -> 29 | BE22: =AV41 -> -16.69888326 | BF22: =AW41 -> -3.185482348 | BG22: =BG19+1 -> 54 | BH22: =AV66 -> 3.185482348 | BI22: =AW66 -> -16.69888326 | BJ22: =BJ19+1 -> 79 | BK22: =AV91 -> 16.69888326 | BL22: =AW91 -> 3.185482348 | BM22: 10 | BN22: =スコアシート!W10 -> -2 | BO22: 3 | BP22: -1.607480385 | BQ22: 2.532983777 | BR22: 10 | BS22: 19.5 | BT22: -10.4486225 | BU22: 16.46439455 | BV22: 164 | BW22: 146 | BX22: 131
A23: 21 | B23: =I3+(A23-1)*I4 -> 162 | C23: 2.827433388 | D23: 18 | E23: -17.11901729 | F23: 5.562305899 | H23: 11 | I23: =I3+(H23-1)*I4 -> 126 | J23: 2.199114858 | K23: 5 | L23: -2.938926261 | M23: 4.045084972 | N23: 6 | O23: -3.526711514 | P23: 4.854101966 | Q23: 7 | R23: -4.114496766 | S23: 5.663118961 | T23: 8 | U23: -4.702282018 | V23: 6.472135955 | W23: 9 | X23: -5.290067271 | Y23: 7.281152949 | Z23: 10 | AA23: -5.877852523 | AB23: 8.090169944 | AC23: 11 | AD23: -6.465637775 | AE23: 8.899186938 | AF23: 12 | AG23: -7.053423028 | AH23: 9.708203932 | AI23: 13 | AJ23: -7.64120828 | AK23: 10.51722093 | AL23: 14 | AM23: -8.228993532 | AN23: 11.32623792 | AO23: 15 | AP23: -8.816778784 | AQ23: 12.13525492 | AR23: 16 | AS23: -9.404564037 | AT23: 12.94427191 | AU23: 17 | AV23: -9.992349289 | AW23: 13.7532889 | AX23: 4 | AY23: -2.351141009 | AZ23: 3.236067977 | BA23: =BA20+1 -> 4 | BB23: =AY16 -> -0.7495252583 | BC23: =AZ16 -> 3.929149003 | BD23: =BD20+1 -> 29 | BE23: =AY41 -> -3.929149003 | BF23: =AZ41 -> -0.7495252583 | BG23: =BG20+1 -> 54 | BH23: =AY66 -> 0.7495252583 | BI23: =AZ66 -> -3.929149003 | BJ23: =BJ20+1 -> 79 | BK23: =AY91 -> 3.929149003 | BL23: =AZ91 -> 0.7495252583 | BM23: 11 | BN23: =スコアシート!Y10 -> -2 | BO23: 3 | BP23: -1.763355757 | BQ23: 2.427050983 | BR23: 11 | BS23: 19.5 | BT23: -11.46181242 | BU23: 15.77583139 | BV23: 164 | BW23: 146 | BX23: 129
A24: 23 | B24: =I3+(A24-1)*I4 -> 169.2 | C24: 2.953097094 | D24: 18 | E24: -17.68117051 | F24: 3.372863663 | H24: 12 | I24: =I3+(H24-1)*I4 -> 129.6 | J24: 2.261946711 | K24: 5 | L24: -3.187119949 | M24: 3.852566214 | N24: 6 | O24: -3.824543938 | P24: 4.623079457 | Q24: 7 | R24: -4.461967928 | S24: 5.393592699 | T24: 8 | U24: -5.099391918 | V24: 6.164105942 | W24: 9 | X24: -5.736815908 | Y24: 6.934619185 | Z24: 10 | AA24: -6.374239897 | AB24: 7.705132428 | AC24: 11 | AD24: -7.011663887 | AE24: 8.475645671 | AF24: 12 | AG24: -7.649087877 | AH24: 9.246158913 | AI24: 13 | AJ24: -8.286511867 | AK24: 10.01667216 | AL24: 14 | AM24: -8.923935856 | AN24: 10.7871854 | AO24: 15 | AP24: -9.561359846 | AQ24: 11.55769864 | AR24: 16 | AS24: -10.19878384 | AT24: 12.32821188 | AU24: 17 | AV24: -10.83620783 | AW24: 13.09872513 | AX24: 4 | AY24: -2.549695959 | AZ24: 3.082052971 | BM24: 12 | BN24: =スコアシート!AA10 -> -2 | BO24: 3 | BP24: -1.912271969 | BQ24: 2.311539728 | BR24: 12 | BS24: 19.5 | BT24: -12.4297678 | BU24: 15.02500823 | BV24: 163 | BW24: 147 | BX24: 128
A25: 25 | B25: =I3+(A25-1)*I4 -> 176.4 | C25: 3.078760801 | D25: 18 | E25: -17.96448111 | F25: 1.130229352 | H25: 13 | I25: =I3+(H25-1)*I4 -> 133.2 | J25: 2.324778564 | K25: 5 | L25: -3.42273553 | M25: 3.644843137 | N25: 6 | O25: -4.107282636 | P25: 4.373811765 | Q25: 7 | R25: -4.791829742 | S25: 5.102780392 | T25: 8 | U25: -5.476376847 | V25: 5.831749019 | W25: 9 | X25: -6.160923953 | Y25: 6.560717647 | Z25: 10 | AA25: -6.845471059 | AB25: 7.289686274 | AC25: 11 | AD25: -7.530018165 | AE25: 8.018654902 | AF25: 12 | AG25: -8.214565271 | AH25: 8.747623529 | AI25: 13 | AJ25: -8.899112377 | AK25: 9.476592156 | AL25: 14 | AM25: -9.583659483 | AN25: 10.20556078 | AO25: 15 | AP25: -10.26820659 | AQ25: 10.93452941 | AR25: 16 | AS25: -10.95275369 | AT25: 11.66349804 | AU25: 17 | AV25: -11.6373008 | AW25: 12.39246667 | AX25: 4 | AY25: -2.738188424 | AZ25: 2.91587451 | BA25: =BA22+1 -> 5 | BB25: =AV17 -> -4.227728082 | BC25: =AW17 -> 16.46591374 | BD25: =BD22+1 -> 30 | BE25: =AV42 -> -16.46591374 | BF25: =AW42 -> -4.227728082 | BG25: =BG22+1 -> 55 | BH25: =AV67 -> 4.227728082 | BI25: =AW67 -> -16.46591374 | BJ25: =BJ22+1 -> 80 | BK25: =AV92 -> 16.46591374 | BL25: =AW92 -> 4.227728082 | BM25: 13 | BN25: =スコアシート!AC10 -> -2 | BO25: 3 | BP25: -2.053641318 | BQ25: 2.186905882 | BR25: 13 | BS25: 19.5 | BT25: -13.34866857 | BU25: 14.21488823 | BV25: 162 | BW25: 147 | BX25: 127
A26: 27 | B26: =I3+(A26-1)*I4 -> 183.6 | C26: 3.204424507 | D26: 18 | E26: -17.96448111 | F26: -1.130229352 | H26: 14 | I26: =I3+(H26-1)*I4 -> 136.8 | J26: 2.387610417 | K26: 5 | L26: -3.644843137 | M26: 3.42273553 | N26: 6 | O26: -4.373811765 | P26: 4.107282636 | Q26: 7 | R26: -5.102780392 | S26: 4.791829742 | T26: 8 | U26: -5.831749019 | V26: 5.476376847 | W26: 9 | X26: -6.560717647 | Y26: 6.160923953 | Z26: 10 | AA26: -7.289686274 | AB26: 6.845471059 | AC26: 11 | AD26: -8.018654902 | AE26: 7.530018165 | AF26: 12 | AG26: -8.747623529 | AH26: 8.214565271 | AI26: 13 | AJ26: -9.476592156 | AK26: 8.899112377 | AL26: 14 | AM26: -10.20556078 | AN26: 9.583659483 | AO26: 15 | AP26: -10.93452941 | AQ26: 10.26820659 | AR26: 16 | AS26: -11.66349804 | AT26: 10.95275369 | AU26: 17 | AV26: -12.39246667 | AW26: 11.6373008 | AX26: 4 | AY26: -2.91587451 | AZ26: 2.738188424 | BA26: =BA23+1 -> 5 | BB26: =AY17 -> -0.9947595487 | BC26: =AZ17 -> 3.874332645 | BD26: =BD23+1 -> 30 | BE26: =AY42 -> -3.874332645 | BF26: =AZ42 -> -0.9947595487 | BG26: =BG23+1 -> 55 | BH26: =AY67 -> 0.9947595487 | BI26: =AZ67 -> -3.874332645 | BJ26: =BJ23+1 -> 80 | BK26: =AY92 -> 3.874332645 | BL26: =AZ92 -> 0.9947595487 | BM26: 14 | BN26: =スコアシート!AE10 -> -2 | BO26: 3 | BP26: -2.186905882 | BQ26: 2.053641318 | BR26: 14 | BS26: 19.5 | BT26: -14.21488823 | BU26: 13.34866857 | BV26: 161 | BW26: 147 | BX26: 126
A27: 29 | B27: =I3+(A27-1)*I4 -> 190.8 | C27: 3.330088213 | D27: 18 | E27: -17.68117051 | F27: -3.372863663 | H27: 15 | I27: =I3+(H27-1)*I4 -> 140.4 | J27: 2.45044227 | K27: 5 | L27: -3.852566214 | M27: 3.187119949 | N27: 6 | O27: -4.623079457 | P27: 3.824543938 | Q27: 7 | R27: -5.393592699 | S27: 4.461967928 | T27: 8 | U27: -6.164105942 | V27: 5.099391918 | W27: 9 | X27: -6.934619185 | Y27: 5.736815908 | Z27: 10 | AA27: -7.705132428 | AB27: 6.374239897 | AC27: 11 | AD27: -8.475645671 | AE27: 7.011663887 | AF27: 12 | AG27: -9.246158913 | AH27: 7.649087877 | AI27: 13 | AJ27: -10.01667216 | AK27: 8.286511867 | AL27: 14 | AM27: -10.7871854 | AN27: 8.923935856 | AO27: 15 | AP27: -11.55769864 | AQ27: 9.561359846 | AR27: 16 | AS27: -12.32821188 | AT27: 10.19878384 | AU27: 17 | AV27: -13.09872513 | AW27: 10.83620783 | AX27: 4 | AY27: -3.082052971 | AZ27: 2.549695959 | BM27: 15 | BN27: =スコアシート!AG10 -> -2 | BO27: 3 | BP27: -2.311539728 | BQ27: 1.912271969 | BR27: 15 | BS27: 19.5 | BT27: -15.02500823 | BU27: 12.4297678 | BV27: 160 | BW27: 148 | BX27: 125
A28: 31 | B28: =I3+(A28-1)*I4 -> 198 | C28: 3.455751919 | D28: 18 | E28: -17.11901729 | F28: -5.562305899 | H28: 16 | I28: =I3+(H28-1)*I4 -> 144 | J28: 2.513274123 | K28: 5 | L28: -4.045084972 | M28: 2.938926261 | N28: 6 | O28: -4.854101966 | P28: 3.526711514 | Q28: 7 | R28: -5.663118961 | S28: 4.114496766 | T28: 8 | U28: -6.472135955 | V28: 4.702282018 | W28: 9 | X28: -7.281152949 | Y28: 5.290067271 | Z28: 10 | AA28: -8.090169944 | AB28: 5.877852523 | AC28: 11 | AD28: -8.899186938 | AE28: 6.465637775 | AF28: 12 | AG28: -9.708203932 | AH28: 7.053423028 | AI28: 13 | AJ28: -10.51722093 | AK28: 7.64120828 | AL28: 14 | AM28: -11.32623792 | AN28: 8.228993532 | AO28: 15 | AP28: -12.13525492 | AQ28: 8.816778784 | AR28: 16 | AS28: -12.94427191 | AT28: 9.404564037 | AU28: 17 | AV28: -13.7532889 | AW28: 9.992349289 | AX28: 4 | AY28: -3.236067977 | AZ28: 2.351141009 | BA28: =BA25+1 -> 6 | BB28: =AV18 -> -5.253288904 | BC28: =AW18 -> 16.16796078 | BD28: =BD25+1 -> 31 | BE28: =AV43 -> -16.16796078 | BF28: =AW43 -> -5.253288904 | BG28: =BG25+1 -> 56 | BH28: =AV68 -> 5.253288904 | BI28: =AW68 -> -16.16796078 | BJ28: =BJ25+1 -> 81 | BK28: =AV93 -> 16.16796078 | BL28: =AW93 -> 5.253288904 | BM28: 16 | BN28: =スコアシート!AI10 -> -2 | BO28: 3 | BP28: -2.427050983 | BQ28: 1.763355757 | BR28: 16 | BS28: 19.5 | BT28: -15.77583139 | BU28: 11.46181242 | BV28: 159 | BW28: 148 | BX28: 124
A29: 33 | B29: =I3+(A29-1)*I4 -> 205.2 | C29: 3.581415625 | D29: 18 | E29: -16.28688694 | F29: -7.664027248 | H29: 17 | I29: =I3+(H29-1)*I4 -> 147.6 | J29: 2.576105976 | K29: 5 | L29: -4.221639628 | M29: 2.679133975 | N29: 6 | O29: -5.065967553 | P29: 3.21496077 | Q29: 7 | R29: -5.910295479 | S29: 3.750787565 | T29: 8 | U29: -6.754623404 | V29: 4.28661436 | W29: 9 | X29: -7.59895133 | Y29: 4.822441155 | Z29: 10 | AA29: -8.443279255 | AB29: 5.35826795 | AC29: 11 | AD29: -9.287607181 | AE29: 5.894094745 | AF29: 12 | AG29: -10.13193511 | AH29: 6.42992154 | AI29: 13 | AJ29: -10.97626303 | AK29: 6.965748335 | AL29: 14 | AM29: -11.82059096 | AN29: 7.50157513 | AO29: 15 | AP29: -12.66491888 | AQ29: 8.037401925 | AR29: 16 | AS29: -13.50924681 | AT29: 8.57322872 | AU29: 17 | AV29: -14.35357473 | AW29: 9.109055515 | AX29: 4 | AY29: -3.377311702 | AZ29: 2.14330718 | BA29: =BA26+1 -> 6 | BB29: =AY18 -> -1.236067977 | BC29: =AZ18 -> 3.804226065 | BD29: =BD26+1 -> 31 | BE29: =AY43 -> -3.804226065 | BF29: =AZ43 -> -1.236067977 | BG29: =BG26+1 -> 56 | BH29: =AY68 -> 1.236067977 | BI29: =AZ68 -> -3.804226065 | BJ29: =BJ26+1 -> 81 | BK29: =AY93 -> 3.804226065 | BL29: =AZ93 -> 1.236067977 | BM29: 17 | BN29: =スコアシート!AK10 -> -2 | BO29: 3 | BP29: -2.532983777 | BQ29: 1.607480385 | BR29: 17 | BS29: 19.5 | BT29: -16.46439455 | BU29: 10.4486225 | BV29: 158 | BW29: 149 | BX29: 123
A30: 35 | B30: =I3+(A30-1)*I4 -> 212.4 | C30: 3.707079331 | D30: 18 | E30: -15.19790266 | F30: -9.64488231 | H30: 18 | I30: =I3+(H30-1)*I4 -> 151.2 | J30: 2.638937829 | K30: 5 | L30: -4.3815334 | M30: 2.408768371 | N30: 6 | O30: -5.25784008 | P30: 2.890522045 | Q30: 7 | R30: -6.13414676 | S30: 3.372275719 | T30: 8 | U30: -7.01045344 | V30: 3.854029393 | W30: 9 | X30: -7.88676012 | Y30: 4.335783067 | Z30: 10 | AA30: -8.7630668 | AB30: 4.817536741 | AC30: 11 | AD30: -9.63937348 | AE30: 5.299290415 | AF30: 12 | AG30: -10.51568016 | AH30: 5.781044089 | AI30: 13 | AJ30: -11.39198684 | AK30: 6.262797763 | AL30: 14 | AM30: -12.26829352 | AN30: 6.744551437 | AO30: 15 | AP30: -13.1446002 | AQ30: 7.226305112 | AR30: 16 | AS30: -14.02090688 | AT30: 7.708058786 | AU30: 17 | AV30: -14.89721356 | AW30: 8.18981246 | AX30: 4 | AY30: -3.50522672 | AZ30: 1.927014696 | BM30: 18 | BN30: =スコアシート!AM10 -> -2 | BO30: 3 | BP30: -2.62892004 | BQ30: 1.445261022 | BR30: 18 | BS30: 19.5 | BT30: -17.08798026 | BU30: 9.394196645 | BV30: 156 | BW30: 149 | BX30: 122
A31: 37 | B31: =I3+(A31-1)*I4 -> 219.6 | C31: 3.832743037 | D31: 18 | E31: -13.86923837 | F31: -11.47363182 | H31: 19 | I31: =I3+(H31-1)*I4 -> 154.8 | J31: 2.701769682 | K31: 5 | L31: -4.524135262 | M31: 2.128896458 | N31: 6 | O31: -5.428962315 | P31: 2.554675749 | Q31: 7 | R31: -6.333789367 | S31: 2.980455041 | T31: 8 | U31: -7.23861642 | V31: 3.406234333 | W31: 9 | X31: -8.143443472 | Y31: 3.832013624 | Z31: 10 | AA31: -9.048270525 | AB31: 4.257792916 | AC31: 11 | AD31: -9.953097577 | AE31: 4.683572207 | AF31: 12 | AG31: -10.85792463 | AH31: 5.109351499 | AI31: 13 | AJ31: -11.76275168 | AK31: 5.53513079 | AL31: 14 | AM31: -12.66757873 | AN31: 5.960910082 | AO31: 15 | AP31: -13.57240579 | AQ31: 6.386689373 | AR31: 16 | AS31: -14.47723284 | AT31: 6.812468665 | AU31: 17 | AV31: -15.38205989 | AW31: 7.238247957 | AX31: 4 | AY31: -3.61930821 | AZ31: 1.703117166 | BA31: =BA28+1 -> 7 | BB31: =AV19 -> -6.258117396 | BC31: =AW19 -> 15.80620026 | BD31: =BD28+1 -> 32 | BE31: =AV44 -> -15.80620026 | BF31: =AW44 -> -6.258117396 | BG31: =BG28+1 -> 57 | BH31: =AV69 -> 6.258117396 | BI31: =AW69 -> -15.80620026 | BJ31: =BJ28+1 -> 82 | BK31: =AV94 -> 15.80620026 | BL31: =AW94 -> 6.258117396 | BM31: 19 | BN31: =スコアシート!AO10 -> -2 | BO31: 3 | BP31: -2.714481157 | BQ31: 1.277337875 | BR31: 19 | BS31: 19.5 | BT31: -17.64412752 | BU31: 8.302696186 | BV31: 155 | BW31: 150 | BX31: 121
A32: 39 | B32: =I3+(A32-1)*I4 -> 226.8 | C32: 3.958406744 | D32: 18 | E32: -12.32184791 | F32: -13.12143529 | H32: 20 | I32: =I3+(H32-1)*I4 -> 158.4 | J32: 2.764601535 | K32: 5 | L32: -4.648882429 | M32: 1.840622763 | N32: 6 | O32: -5.578658915 | P32: 2.208747316 | Q32: 7 | R32: -6.508435401 | S32: 2.576871869 | T32: 8 | U32: -7.438211887 | V32: 2.944996421 | W32: 9 | X32: -8.367988373 | Y32: 3.313120974 | Z32: 10 | AA32: -9.297764859 | AB32: 3.681245527 | AC32: 11 | AD32: -10.22754134 | AE32: 4.04937008 | AF32: 12 | AG32: -11.15731783 | AH32: 4.417494632 | AI32: 13 | AJ32: -12.08709432 | AK32: 4.785619185 | AL32: 14 | AM32: -13.0168708 | AN32: 5.153743738 | AO32: 15 | AP32: -13.94664729 | AQ32: 5.52186829 | AR32: 16 | AS32: -14.87642377 | AT32: 5.889992843 | AU32: 17 | AV32: -15.80620026 | AW32: 6.258117396 | AX32: 4 | AY32: -3.719105944 | AZ32: 1.472498211 | BA32: =BA29+1 -> 7 | BB32: =AY19 -> -1.472498211 | BC32: =AZ19 -> 3.719105944 | BD32: =BD29+1 -> 32 | BE32: =AY44 -> -3.719105944 | BF32: =AZ44 -> -1.472498211 | BG32: =BG29+1 -> 57 | BH32: =AY69 -> 1.472498211 | BI32: =AZ69 -> -3.719105944 | BJ32: =BJ29+1 -> 82 | BK32: =AY94 -> 3.719105944 | BL32: =AZ94 -> 1.472498211 | BM32: 20 | BN32: =スコアシート!AQ10 -> -2 | BO32: 3 | BP32: -2.789329458 | BQ32: 1.104373658 | BR32: 20 | BS32: 19.5 | BT32: -18.13064147 | BU32: 7.178428777 | BV32: 154 | BW32: 150 | BX32: 121
A33: 41 | B33: =I3+(A33-1)*I4 -> 234 | C33: 4.08407045 | D33: 18 | E33: -10.58013454 | F33: -14.5623059 | H33: 21 | I33: =I3+(H33-1)*I4 -> 162 | J33: 2.827433388 | K33: 5 | L33: -4.755282581 | M33: 1.545084972 | N33: 6 | O33: -5.706339098 | P33: 1.854101966 | Q33: 7 | R33: -6.657395614 | S33: 2.163118961 | T33: 8 | U33: -7.60845213 | V33: 2.472135955 | W33: 9 | X33: -8.559508647 | Y33: 2.781152949 | Z33: 10 | AA33: -9.510565163 | AB33: 3.090169944 | AC33: 11 | AD33: -10.46162168 | AE33: 3.399186938 | AF33: 12 | AG33: -11.4126782 | AH33: 3.708203932 | AI33: 13 | AJ33: -12.36373471 | AK33: 4.017220927 | AL33: 14 | AM33: -13.31479123 | AN33: 4.326237921 | AO33: 15 | AP33: -14.26584774 | AQ33: 4.635254916 | AR33: 16 | AS33: -15.21690426 | AT33: 4.94427191 | AU33: 17 | AV33: -16.16796078 | AW33: 5.253288904 | AX33: 4 | AY33: -3.804226065 | AZ33: 1.236067977 | BM33: 21 | BN33: =スコアシート!AS10 -> -2 | BO33: 3 | BP33: -2.853169549 | BQ33: 0.9270509831 | BR33: 21 | BS33: 19.5 | BT33: -18.54560207 | BU33: 6.02583139 | BV33: 153 | BW33: 150 | BX33: 121
A34: 43 | B34: =I3+(A34-1)*I4 -> 241.2 | C34: 4.209734156 | D34: 18 | E34: -8.671566134 | F34: -15.77352024 | H34: 22 | I34: =I3+(H34-1)*I4 -> 165.6 | J34: 2.890265241 | K34: 5 | L34: -4.842915806 | M34: 1.243449436 | N34: 6 | O34: -5.811498967 | P34: 1.492139323 | Q34: 7 | R34: -6.780082128 | S34: 1.74082921 | T34: 8 | U34: -7.748665289 | V34: 1.989519097 | W34: 9 | X34: -8.71724845 | Y34: 2.238208984 | Z34: 10 | AA34: -9.685831611 | AB34: 2.486898872 | AC34: 11 | AD34: -10.65441477 | AE34: 2.735588759 | AF34: 12 | AG34: -11.62299793 | AH34: 2.984278646 | AI34: 13 | AJ34: -12.59158109 | AK34: 3.232968533 | AL34: 14 | AM34: -13.56016426 | AN34: 3.48165842 | AO34: 15 | AP34: -14.52874742 | AQ34: 3.730348307 | AR34: 16 | AS34: -15.49733058 | AT34: 3.979038195 | AU34: 17 | AV34: -16.46591374 | AW34: 4.227728082 | AX34: 4 | AY34: -3.874332645 | AZ34: 0.9947595487 | BA34: =BA31+1 -> 8 | BB34: =AV20 -> -7.238247957 | BC34: =AW20 -> 15.38205989 | BD34: =BD31+1 -> 33 | BE34: =AV45 -> -15.38205989 | BF34: =AW45 -> -7.238247957 | BG34: =BG31+1 -> 58 | BH34: =AV70 -> 7.238247957 | BI34: =AW70 -> -15.38205989 | BJ34: =BJ31+1 -> 83 | BK34: =AV95 -> 15.38205989 | BL34: =AW95 -> 7.238247957 | BM34: 22 | BN34: =スコアシート!AU10 -> -2 | BO34: 3 | BP34: -2.905749483 | BQ34: 0.7460696615 | BR34: 22 | BS34: 19.5 | BT34: -18.88737164 | BU34: 4.8494528 | BV34: 152 | BW34: 151 | BX34: 120
A35: 45 | B35: =I3+(A35-1)*I4 -> 248.4 | C35: 4.335397862 | D35: 18 | E35: -6.626241948 | F35: -16.73597675 | H35: 23 | I35: =I3+(H35-1)*I4 -> 169.2 | J35: 2.953097094 | K35: 5 | L35: -4.911436254 | M35: 0.9369065729 | N35: 6 | O35: -5.893723504 | P35: 1.124287888 | Q35: 7 | R35: -6.876010755 | S35: 1.311669202 | T35: 8 | U35: -7.858298006 | V35: 1.499050517 | W35: 9 | X35: -8.840585257 | Y35: 1.686431831 | Z35: 10 | AA35: -9.822872507 | AB35: 1.873813146 | AC35: 11 | AD35: -10.80515976 | AE35: 2.06119446 | AF35: 12 | AG35: -11.78744701 | AH35: 2.248575775 | AI35: 13 | AJ35: -12.76973426 | AK35: 2.43595709 | AL35: 14 | AM35: -13.75202151 | AN35: 2.623338404 | AO35: 15 | AP35: -14.73430876 | AQ35: 2.810719719 | AR35: 16 | AS35: -15.71659601 | AT35: 2.998101033 | AU35: 17 | AV35: -16.69888326 | AW35: 3.185482348 | AX35: 4 | AY35: -3.929149003 | AZ35: 0.7495252583 | BA35: =BA32+1 -> 8 | BB35: =AY20 -> -1.703117166 | BC35: =AZ20 -> 3.61930821 | BD35: =BD32+1 -> 33 | BE35: =AY45 -> -3.61930821 | BF35: =AZ45 -> -1.703117166 | BG35: =BG32+1 -> 58 | BH35: =AY70 -> 1.703117166 | BI35: =AZ70 -> -3.61930821 | BJ35: =BJ32+1 -> 83 | BK35: =AY95 -> 3.61930821 | BL35: =AZ95 -> 1.703117166 | BM35: 23 | BN35: =スコアシート!AW10 -> -2 | BO35: 3 | BP35: -2.946861752 | BQ35: 0.5621439438 | BR35: 23 | BS35: 19.5 | BT35: -19.15460139 | BU35: 3.653935634 | BV35: 150 | BW35: 151 | BX35: 120
A36: 47 | B36: =I3+(A36-1)*I4 -> 255.6 | C36: 4.461061568 | D36: 18 | E36: -4.476417969 | F36: -17.4344969 | H36: 24 | I36: =I3+(H36-1)*I4 -> 172.8 | J36: 3.015928947 | K36: 5 | L36: -4.960573507 | M36: 0.6266661678 | N36: 6 | O36: -5.952688208 | P36: 0.7519994014 | Q36: 7 | R36: -6.944802909 | S36: 0.877332635 | T36: 8 | U36: -7.936917611 | V36: 1.002665869 | W36: 9 | X36: -8.929032312 | Y36: 1.127999102 | Z36: 10 | AA36: -9.921147013 | AB36: 1.253332336 | AC36: 11 | AD36: -10.91326171 | AE36: 1.378665569 | AF36: 12 | AG36: -11.90537642 | AH36: 1.503998803 | AI36: 13 | AJ36: -12.89749112 | AK36: 1.629332036 | AL36: 14 | AM36: -13.88960582 | AN36: 1.75466527 | AO36: 15 | AP36: -14.88172052 | AQ36: 1.879998503 | AR36: 16 | AS36: -15.87383522 | AT36: 2.005331737 | AU36: 17 | AV36: -16.86594992 | AW36: 2.130664971 | AX36: 4 | AY36: -3.968458805 | AZ36: 0.5013329343 | BM36: 24 | BN36: =スコアシート!AY10 -> -2 | BO36: 3 | BP36: -2.976344104 | BQ36: 0.3759997007 | BR36: 24 | BS36: 19.5 | BT36: -19.34623668 | BU36: 2.443998055 | BV36: 149 | BW36: 152 | BX36: 120
A37: 49 | B37: =I3+(A37-1)*I4 -> 262.8 | C37: 4.586725274 | D37: 18 | E37: -2.255998204 | F37: -17.85806462 | H37: 25 | I37: =I3+(H37-1)*I4 -> 176.4 | J37: 3.078760801 | K37: 5 | L37: -4.990133642 | M37: 0.3139525976 | N37: 6 | O37: -5.988160371 | P37: 0.3767431172 | Q37: 7 | R37: -6.986187099 | S37: 0.4395336367 | T37: 8 | U37: -7.984213827 | V37: 0.5023241562 | W37: 9 | X37: -8.982240556 | Y37: 0.5651146758 | Z37: 10 | AA37: -9.980267284 | AB37: 0.6279051953 | AC37: 11 | AD37: -10.97829401 | AE37: 0.6906957148 | AF37: 12 | AG37: -11.97632074 | AH37: 0.7534862344 | AI37: 13 | AJ37: -12.97434747 | AK37: 0.8162767539 | AL37: 14 | AM37: -13.9723742 | AN37: 0.8790672734 | AO37: 15 | AP37: -14.97040093 | AQ37: 0.9418577929 | AR37: 16 | AS37: -15.96842765 | AT37: 1.004648312 | AU37: 17 | AV37: -16.96645438 | AW37: 1.067438832 | AX37: 4 | AY37: -3.992106914 | AZ37: 0.2511620781 | BA37: =BA34+1 -> 9 | BB37: =AV21 -> -8.18981246 | BC37: =AW21 -> 14.89721356 | BD37: =BD34+1 -> 34 | BE37: =AV46 -> -14.89721356 | BF37: =AW46 -> -8.18981246 | BG37: =BG34+1 -> 59 | BH37: =AV71 -> 8.18981246 | BI37: =AW71 -> -14.89721356 | BJ37: =BJ34+1 -> 84 | BK37: =AV96 -> 14.89721356 | BL37: =AW96 -> 8.18981246 | BM37: 25 | BN37: =スコアシート!BA10+スコアシート!C17 -> 48 | BO37: 53 | BP37: -52.89541661 | BQ37: 3.327897535 | BR37: 25 | BS37: 19.5 | BT37: -19.4615212 | BU37: 1.224415131 | BV37: 148 | BW37: 152 | BX37: 120
A38: 51 | B38: =I3+(A38-1)*I4 -> 270 | C38: 4.71238898 | D38: 18 | E38: -3.307900828e-15 | F38: -18 | H38: 26 | I38: =I3+(H38-1)*I4 -> 180 | J38: 3.141592654 | K38: 5 | L38: -5 | M38: 6.125742275e-16 | N38: 6 | O38: -6 | P38: 7.350890729e-16 | Q38: 7 | R38: -7 | S38: 8.576039184e-16 | T38: 8 | U38: -8 | V38: 9.801187639e-16 | W38: 9 | X38: -9 | Y38: 1.102633609e-15 | Z38: 10 | AA38: -10 | AB38: 1.225148455e-15 | AC38: 11 | AD38: -11 | AE38: 1.3476633e-15 | AF38: 12 | AG38: -12 | AH38: 1.470178146e-15 | AI38: 13 | AJ38: -13 | AK38: 1.592692991e-15 | AL38: 14 | AM38: -14 | AN38: 1.715207837e-15 | AO38: 15 | AP38: -15 | AQ38: 1.837722682e-15 | AR38: 16 | AS38: -16 | AT38: 1.960237528e-15 | AU38: 17 | AV38: -17 | AW38: 2.082752373e-15 | AX38: 4 | AY38: -4 | AZ38: 4.90059382e-16 | BA38: =BA35+1 -> 9 | BB38: =AY21 -> -1.927014696 | BC38: =AZ21 -> 3.50522672 | BD38: =BD35+1 -> 34 | BE38: =AY46 -> -3.50522672 | BF38: =AZ46 -> -1.927014696 | BG38: =BG35+1 -> 59 | BH38: =AY71 -> 1.927014696 | BI38: =AZ71 -> -3.50522672 | BJ38: =BJ35+1 -> 84 | BK38: =AY96 -> 3.50522672 | BL38: =AZ96 -> 1.927014696 | BM38: 26 | BN38: =スコアシート!E17+スコアシート!BC10 -> 48 | BO38: 53 | BP38: -53 | BQ38: 6.493286811e-15 | BR38: 26 | BS38: 19.5 | BT38: -19.5 | BU38: 2.389039487e-15 | BV38: 146 | BW38: 152 | BX38: 120
A39: 53 | B39: =I3+(A39-1)*I4 -> 277.2 | C39: 4.838052687 | D39: 18 | E39: 2.255998204 | F39: -17.85806462 | H39: 27 | I39: =I3+(H39-1)*I4 -> 183.6 | J39: 3.204424507 | K39: 5 | L39: -4.990133642 | M39: -0.3139525976 | N39: 6 | O39: -5.988160371 | P39: -0.3767431172 | Q39: 7 | R39: -6.986187099 | S39: -0.4395336367 | T39: 8 | U39: -7.984213827 | V39: -0.5023241562 | W39: 9 | X39: -8.982240556 | Y39: -0.5651146758 | Z39: 10 | AA39: -9.980267284 | AB39: -0.6279051953 | AC39: 11 | AD39: -10.97829401 | AE39: -0.6906957148 | AF39: 12 | AG39: -11.97632074 | AH39: -0.7534862344 | AI39: 13 | AJ39: -12.97434747 | AK39: -0.8162767539 | AL39: 14 | AM39: -13.9723742 | AN39: -0.8790672734 | AO39: 15 | AP39: -14.97040093 | AQ39: -0.9418577929 | AR39: 16 | AS39: -15.96842765 | AT39: -1.004648312 | AU39: 17 | AV39: -16.96645438 | AW39: -1.067438832 | AX39: 4 | AY39: -3.992106914 | AZ39: -0.2511620781 | BM39: 27 | BN39: =スコアシート!G17 -> -2 | BO39: 3 | BP39: -2.994080185 | BQ39: -0.1883715586 | BR39: 27 | BS39: 19.5 | BT39: -19.4615212 | BU39: -1.224415131 | BV39: 145 | BW39: 153 | BX39: 121
A40: 55 | B40: =I3+(A40-1)*I4 -> 284.4 | C40: 4.963716393 | D40: 18 | E40: 4.476417969 | F40: -17.4344969 | H40: 28 | I40: =I3+(H40-1)*I4 -> 187.2 | J40: 3.26725636 | K40: 5 | L40: -4.960573507 | M40: -0.6266661678 | N40: 6 | O40: -5.952688208 | P40: -0.7519994014 | Q40: 7 | R40: -6.944802909 | S40: -0.877332635 | T40: 8 | U40: -7.936917611 | V40: -1.002665869 | W40: 9 | X40: -8.929032312 | Y40: -1.127999102 | Z40: 10 | AA40: -9.921147013 | AB40: -1.253332336 | AC40: 11 | AD40: -10.91326171 | AE40: -1.378665569 | AF40: 12 | AG40: -11.90537642 | AH40: -1.503998803 | AI40: 13 | AJ40: -12.89749112 | AK40: -1.629332036 | AL40: 14 | AM40: -13.88960582 | AN40: -1.75466527 | AO40: 15 | AP40: -14.88172052 | AQ40: -1.879998503 | AR40: 16 | AS40: -15.87383522 | AT40: -2.005331737 | AU40: 17 | AV40: -16.86594992 | AW40: -2.130664971 | AX40: 4 | AY40: -3.968458805 | AZ40: -0.5013329343 | BA40: =BA37+1 -> 10 | BB40: =AV22 -> -9.109055515 | BC40: =AW22 -> 14.35357473 | BD40: =BD37+1 -> 35 | BE40: =AV47 -> -14.35357473 | BF40: =AW47 -> -9.109055515 | BG40: =BG37+1 -> 60 | BH40: =AV72 -> 9.109055515 | BI40: =AW72 -> -14.35357473 | BJ40: =BJ37+1 -> 85 | BK40: =AV97 -> 14.35357473 | BL40: =AW97 -> 9.109055515 | BM40: 28 | BN40: =スコアシート!I17 -> -2 | BO40: 3 | BP40: -2.976344104 | BQ40: -0.3759997007 | BR40: 28 | BS40: 19.5 | BT40: -19.34623668 | BU40: -2.443998055 | BV40: 144 | BW40: 153 | BX40: 121
A41: 57 | B41: =I3+(A41-1)*I4 -> 291.6 | C41: 5.089380099 | D41: 18 | E41: 6.626241948 | F41: -16.73597675 | H41: 29 | I41: =I3+(H41-1)*I4 -> 190.8 | J41: 3.330088213 | K41: 5 | L41: -4.911436254 | M41: -0.9369065729 | N41: 6 | O41: -5.893723504 | P41: -1.124287888 | Q41: 7 | R41: -6.876010755 | S41: -1.311669202 | T41: 8 | U41: -7.858298006 | V41: -1.499050517 | W41: 9 | X41: -8.840585257 | Y41: -1.686431831 | Z41: 10 | AA41: -9.822872507 | AB41: -1.873813146 | AC41: 11 | AD41: -10.80515976 | AE41: -2.06119446 | AF41: 12 | AG41: -11.78744701 | AH41: -2.248575775 | AI41: 13 | AJ41: -12.76973426 | AK41: -2.43595709 | AL41: 14 | AM41: -13.75202151 | AN41: -2.623338404 | AO41: 15 | AP41: -14.73430876 | AQ41: -2.810719719 | AR41: 16 | AS41: -15.71659601 | AT41: -2.998101033 | AU41: 17 | AV41: -16.69888326 | AW41: -3.185482348 | AX41: 4 | AY41: -3.929149003 | AZ41: -0.7495252583 | BA41: =BA38+1 -> 10 | BB41: =AY22 -> -2.14330718 | BC41: =AZ22 -> 3.377311702 | BD41: =BD38+1 -> 35 | BE41: =AY47 -> -3.377311702 | BF41: =AZ47 -> -2.14330718 | BG41: =BG38+1 -> 60 | BH41: =AY72 -> 2.14330718 | BI41: =AZ72 -> -3.377311702 | BJ41: =BJ38+1 -> 85 | BK41: =AY97 -> 3.377311702 | BL41: =AZ97 -> 2.14330718 | BM41: 29 | BN41: =スコアシート!K17 -> -2 | BO41: 3 | BP41: -2.946861752 | BQ41: -0.5621439438 | BR41: 29 | BS41: 19.5 | BT41: -19.15460139 | BU41: -3.653935634 | BV41: 143 | BW41: 153 | BX41: 122
A42: 59 | B42: =I3+(A42-1)*I4 -> 298.8 | C42: 5.215043805 | D42: 18 | E42: 8.671566134 | F42: -15.77352024 | H42: 30 | I42: =I3+(H42-1)*I4 -> 194.4 | J42: 3.392920066 | K42: 5 | L42: -4.842915806 | M42: -1.243449436 | N42: 6 | O42: -5.811498967 | P42: -1.492139323 | Q42: 7 | R42: -6.780082128 | S42: -1.74082921 | T42: 8 | U42: -7.748665289 | V42: -1.989519097 | W42: 9 | X42: -8.71724845 | Y42: -2.238208984 | Z42: 10 | AA42: -9.685831611 | AB42: -2.486898872 | AC42: 11 | AD42: -10.65441477 | AE42: -2.735588759 | AF42: 12 | AG42: -11.62299793 | AH42: -2.984278646 | AI42: 13 | AJ42: -12.59158109 | AK42: -3.232968533 | AL42: 14 | AM42: -13.56016426 | AN42: -3.48165842 | AO42: 15 | AP42: -14.52874742 | AQ42: -3.730348307 | AR42: 16 | AS42: -15.49733058 | AT42: -3.979038195 | AU42: 17 | AV42: -16.46591374 | AW42: -4.227728082 | AX42: 4 | AY42: -3.874332645 | AZ42: -0.9947595487 | BM42: 30 | BN42: =スコアシート!M17 -> -2 | BO42: 3 | BP42: -2.905749483 | BQ42: -0.7460696615 | BR42: 30 | BS42: 19.5 | BT42: -18.88737164 | BU42: -4.8494528 | BV42: 141 | BW42: 154 | BX42: 122
A43: 61 | B43: =I3+(A43-1)*I4 -> 306 | C43: 5.340707511 | D43: 18 | E43: 10.58013454 | F43: -14.5623059 | H43: 31 | I43: =I3+(H43-1)*I4 -> 198 | J43: 3.455751919 | K43: 5 | L43: -4.755282581 | M43: -1.545084972 | N43: 6 | O43: -5.706339098 | P43: -1.854101966 | Q43: 7 | R43: -6.657395614 | S43: -2.163118961 | T43: 8 | U43: -7.60845213 | V43: -2.472135955 | W43: 9 | X43: -8.559508647 | Y43: -2.781152949 | Z43: 10 | AA43: -9.510565163 | AB43: -3.090169944 | AC43: 11 | AD43: -10.46162168 | AE43: -3.399186938 | AF43: 12 | AG43: -11.4126782 | AH43: -3.708203932 | AI43: 13 | AJ43: -12.36373471 | AK43: -4.017220927 | AL43: 14 | AM43: -13.31479123 | AN43: -4.326237921 | AO43: 15 | AP43: -14.26584774 | AQ43: -4.635254916 | AR43: 16 | AS43: -15.21690426 | AT43: -4.94427191 | AU43: 17 | AV43: -16.16796078 | AW43: -5.253288904 | AX43: 4 | AY43: -3.804226065 | AZ43: -1.236067977 | BA43: =BA40+1 -> 11 | BB43: =AV23 -> -9.992349289 | BC43: =AW23 -> 13.7532889 | BD43: =BD40+1 -> 36 | BE43: =AV48 -> -13.7532889 | BF43: =AW48 -> -9.992349289 | BG43: =BG40+1 -> 61 | BH43: =AV73 -> 9.992349289 | BI43: =AW73 -> -13.7532889 | BJ43: =BJ40+1 -> 86 | BK43: =AV98 -> 13.7532889 | BL43: =AW98 -> 9.992349289 | BM43: 31 | BN43: =スコアシート!O17 -> -2 | BO43: 3 | BP43: -2.853169549 | BQ43: -0.9270509831 | BR43: 31 | BS43: 19.5 | BT43: -18.54560207 | BU43: -6.02583139 | BV43: 140 | BW43: 154 | BX43: 123
A44: 63 | B44: =I3+(A44-1)*I4 -> 313.2 | C44: 5.466371217 | D44: 18 | E44: 12.32184791 | F44: -13.12143529 | H44: 32 | I44: =I3+(H44-1)*I4 -> 201.6 | J44: 3.518583772 | K44: 5 | L44: -4.648882429 | M44: -1.840622763 | N44: 6 | O44: -5.578658915 | P44: -2.208747316 | Q44: 7 | R44: -6.508435401 | S44: -2.576871869 | T44: 8 | U44: -7.438211887 | V44: -2.944996421 | W44: 9 | X44: -8.367988373 | Y44: -3.313120974 | Z44: 10 | AA44: -9.297764859 | AB44: -3.681245527 | AC44: 11 | AD44: -10.22754134 | AE44: -4.04937008 | AF44: 12 | AG44: -11.15731783 | AH44: -4.417494632 | AI44: 13 | AJ44: -12.08709432 | AK44: -4.785619185 | AL44: 14 | AM44: -13.0168708 | AN44: -5.153743738 | AO44: 15 | AP44: -13.94664729 | AQ44: -5.52186829 | AR44: 16 | AS44: -14.87642377 | AT44: -5.889992843 | AU44: 17 | AV44: -15.80620026 | AW44: -6.258117396 | AX44: 4 | AY44: -3.719105944 | AZ44: -1.472498211 | BA44: =BA41+1 -> 11 | BB44: =AY23 -> -2.351141009 | BC44: =AZ23 -> 3.236067977 | BD44: =BD41+1 -> 36 | BE44: =AY48 -> -3.236067977 | BF44: =AZ48 -> -2.351141009 | BG44: =BG41+1 -> 61 | BH44: =AY73 -> 2.351141009 | BI44: =AZ73 -> -3.236067977 | BJ44: =BJ41+1 -> 86 | BK44: =AY98 -> 3.236067977 | BL44: =AZ98 -> 2.351141009 | BM44: 32 | BN44: =スコアシート!Q17 -> -2 | BO44: 3 | BP44: -2.789329458 | BQ44: -1.104373658 | BR44: 32 | BS44: 19.5 | BT44: -18.13064147 | BU44: -7.178428777 | BV44: 139 | BW44: 154 | BX44: 124
A45: 65 | B45: =I3+(A45-1)*I4 -> 320.4 | C45: 5.592034923 | D45: 18 | E45: 13.86923837 | F45: -11.47363182 | H45: 33 | I45: =I3+(H45-1)*I4 -> 205.2 | J45: 3.581415625 | K45: 5 | L45: -4.524135262 | M45: -2.128896458 | N45: 6 | O45: -5.428962315 | P45: -2.554675749 | Q45: 7 | R45: -6.333789367 | S45: -2.980455041 | T45: 8 | U45: -7.23861642 | V45: -3.406234333 | W45: 9 | X45: -8.143443472 | Y45: -3.832013624 | Z45: 10 | AA45: -9.048270525 | AB45: -4.257792916 | AC45: 11 | AD45: -9.953097577 | AE45: -4.683572207 | AF45: 12 | AG45: -10.85792463 | AH45: -5.109351499 | AI45: 13 | AJ45: -11.76275168 | AK45: -5.53513079 | AL45: 14 | AM45: -12.66757873 | AN45: -5.960910082 | AO45: 15 | AP45: -13.57240579 | AQ45: -6.386689373 | AR45: 16 | AS45: -14.47723284 | AT45: -6.812468665 | AU45: 17 | AV45: -15.38205989 | AW45: -7.238247957 | AX45: 4 | AY45: -3.61930821 | AZ45: -1.703117166 | BM45: 33 | BN45: =スコアシート!S17 -> -2 | BO45: 3 | BP45: -2.714481157 | BQ45: -1.277337875 | BR45: 33 | BS45: 19.5 | BT45: =BS45*COS(J45) -> -17.64412752 | BU45: =BS45*SIN(J45) -> -8.302696186 | BV45: 137 | BW45: 154 | BX45: 125
A46: 67 | B46: =I3+(A46-1)*I4 -> 327.6 | C46: 5.71769863 | D46: 18 | E46: 15.19790266 | F46: -9.64488231 | H46: 34 | I46: =I3+(H46-1)*I4 -> 208.8 | J46: 3.644247478 | K46: 5 | L46: -4.3815334 | M46: -2.408768371 | N46: 6 | O46: -5.25784008 | P46: -2.890522045 | Q46: 7 | R46: -6.13414676 | S46: -3.372275719 | T46: 8 | U46: -7.01045344 | V46: -3.854029393 | W46: 9 | X46: -7.88676012 | Y46: -4.335783067 | Z46: 10 | AA46: -8.7630668 | AB46: -4.817536741 | AC46: 11 | AD46: -9.63937348 | AE46: -5.299290415 | AF46: 12 | AG46: -10.51568016 | AH46: -5.781044089 | AI46: 13 | AJ46: -11.39198684 | AK46: -6.262797763 | AL46: 14 | AM46: -12.26829352 | AN46: -6.744551437 | AO46: 15 | AP46: -13.1446002 | AQ46: -7.226305112 | AR46: 16 | AS46: -14.02090688 | AT46: -7.708058786 | AU46: 17 | AV46: -14.89721356 | AW46: -8.18981246 | AX46: 4 | AY46: -3.50522672 | AZ46: -1.927014696 | BA46: =BA43+1 -> 12 | BB46: =AV24 -> -10.83620783 | BC46: =AW24 -> 13.09872513 | BD46: =BD43+1 -> 37 | BE46: =AV49 -> -13.09872513 | BF46: =AW49 -> -10.83620783 | BG46: =BG43+1 -> 62 | BH46: =AV74 -> 10.83620783 | BI46: =AW74 -> -13.09872513 | BJ46: =BJ43+1 -> 87 | BK46: =AV99 -> 13.09872513 | BL46: =AW99 -> 10.83620783 | BM46: 34 | BN46: =スコアシート!U17 -> -2 | BO46: 3 | BP46: -2.62892004 | BQ46: -1.445261022 | BR46: 34 | BS46: 19.5 | BT46: -17.08798026 | BU46: -9.394196645 | BV46: 136 | BW46: 155 | BX46: 126
A47: 69 | B47: =I3+(A47-1)*I4 -> 334.8 | C47: 5.843362336 | D47: 18 | E47: 16.28688694 | F47: -7.664027248 | H47: 35 | I47: =I3+(H47-1)*I4 -> 212.4 | J47: 3.707079331 | K47: 5 | L47: -4.221639628 | M47: -2.679133975 | N47: 6 | O47: -5.065967553 | P47: -3.21496077 | Q47: 7 | R47: -5.910295479 | S47: -3.750787565 | T47: 8 | U47: -6.754623404 | V47: -4.28661436 | W47: 9 | X47: -7.59895133 | Y47: -4.822441155 | Z47: 10 | AA47: -8.443279255 | AB47: -5.35826795 | AC47: 11 | AD47: -9.287607181 | AE47: -5.894094745 | AF47: 12 | AG47: -10.13193511 | AH47: -6.42992154 | AI47: 13 | AJ47: -10.97626303 | AK47: -6.965748335 | AL47: 14 | AM47: -11.82059096 | AN47: -7.50157513 | AO47: 15 | AP47: -12.66491888 | AQ47: -8.037401925 | AR47: 16 | AS47: -13.50924681 | AT47: -8.57322872 | AU47: 17 | AV47: -14.35357473 | AW47: -9.109055515 | AX47: 4 | AY47: -3.377311702 | AZ47: -2.14330718 | BA47: =BA44+1 -> 12 | BB47: =AY24 -> -2.549695959 | BC47: =AZ24 -> 3.082052971 | BD47: =BD44+1 -> 37 | BE47: =AY49 -> -3.082052971 | BF47: =AZ49 -> -2.549695959 | BG47: =BG44+1 -> 62 | BH47: =AY74 -> 2.549695959 | BI47: =AZ74 -> -3.082052971 | BJ47: =BJ44+1 -> 87 | BK47: =AY99 -> 3.082052971 | BL47: =AZ99 -> 2.549695959 | BM47: 35 | BN47: =スコアシート!W17 -> -2 | BO47: 3 | BP47: -2.532983777 | BQ47: -1.607480385 | BR47: 35 | BS47: 19.5 | BT47: -16.46439455 | BU47: -10.4486225 | BV47: 135 | BW47: 155 | BX47: 127
A48: 71 | B48: =I3+(A48-1)*I4 -> 342 | C48: 5.969026042 | D48: 18 | E48: 17.11901729 | F48: -5.562305899 | H48: 36 | I48: =I3+(H48-1)*I4 -> 216 | J48: 3.769911184 | K48: 5 | L48: -4.045084972 | M48: -2.938926261 | N48: 6 | O48: -4.854101966 | P48: -3.526711514 | Q48: 7 | R48: -5.663118961 | S48: -4.114496766 | T48: 8 | U48: -6.472135955 | V48: -4.702282018 | W48: 9 | X48: -7.281152949 | Y48: -5.290067271 | Z48: 10 | AA48: -8.090169944 | AB48: -5.877852523 | AC48: 11 | AD48: -8.899186938 | AE48: -6.465637775 | AF48: 12 | AG48: -9.708203932 | AH48: -7.053423028 | AI48: 13 | AJ48: -10.51722093 | AK48: -7.64120828 | AL48: 14 | AM48: -11.32623792 | AN48: -8.228993532 | AO48: 15 | AP48: -12.13525492 | AQ48: -8.816778784 | AR48: 16 | AS48: -12.94427191 | AT48: -9.404564037 | AU48: 17 | AV48: -13.7532889 | AW48: -9.992349289 | AX48: 4 | AY48: -3.236067977 | AZ48: -2.351141009 | BM48: 36 | BN48: =スコアシート!Y17 -> -2 | BO48: =$I$7+BN48*$I$8 -> 3 | BP48: -2.427050983 | BQ48: -1.763355757 | BR48: 36 | BS48: 19.5 | BT48: -15.77583139 | BU48: -11.46181242 | BV48: 134 | BW48: 155 | BX48: 129
A49: 73 | B49: =I3+(A49-1)*I4 -> 349.2 | C49: 6.094689748 | D49: 18 | E49: 17.68117051 | F49: -3.372863663 | H49: 37 | I49: =I3+(H49-1)*I4 -> 219.6 | J49: 3.832743037 | K49: 5 | L49: -3.852566214 | M49: -3.187119949 | N49: 6 | O49: -4.623079457 | P49: -3.824543938 | Q49: 7 | R49: -5.393592699 | S49: -4.461967928 | T49: 8 | U49: -6.164105942 | V49: -5.099391918 | W49: 9 | X49: -6.934619185 | Y49: -5.736815908 | Z49: 10 | AA49: -7.705132428 | AB49: -6.374239897 | AC49: 11 | AD49: -8.475645671 | AE49: -7.011663887 | AF49: 12 | AG49: -9.246158913 | AH49: -7.649087877 | AI49: 13 | AJ49: -10.01667216 | AK49: -8.286511867 | AL49: 14 | AM49: -10.7871854 | AN49: -8.923935856 | AO49: 15 | AP49: -11.55769864 | AQ49: -9.561359846 | AR49: 16 | AS49: -12.32821188 | AT49: -10.19878384 | AU49: 17 | AV49: -13.09872513 | AW49: -10.83620783 | AX49: 4 | AY49: -3.082052971 | AZ49: -2.549695959 | BA49: =BA46+1 -> 13 | BB49: =AV25 -> -11.6373008 | BC49: =AW25 -> 12.39246667 | BD49: =BD46+1 -> 38 | BE49: =AV50 -> -12.39246667 | BF49: =AW50 -> -11.6373008 | BG49: =BG46+1 -> 63 | BH49: =AV75 -> 11.6373008 | BI49: =AW75 -> -12.39246667 | BJ49: =BJ46+1 -> 88 | BK49: =AV100 -> 12.39246667 | BL49: =AW100 -> 11.6373008 | BM49: 37 | BN49: =スコアシート!AA17 -> -2 | BO49: 3 | BP49: -2.311539728 | BQ49: -1.912271969 | BR49: 37 | BS49: 19.5 | BT49: -15.02500823 | BU49: -12.4297678 | BV49: 133 | BW49: 155 | BX49: 130
A50: 75 | B50: =I3+(A50-1)*I4 -> 356.4 | C50: 6.220353454 | D50: 18 | E50: 17.96448111 | F50: -1.130229352 | H50: 38 | I50: =I3+(H50-1)*I4 -> 223.2 | J50: 3.89557489 | K50: 5 | L50: -3.644843137 | M50: -3.42273553 | N50: 6 | O50: -4.373811765 | P50: -4.107282636 | Q50: 7 | R50: -5.102780392 | S50: -4.791829742 | T50: 8 | U50: -5.831749019 | V50: -5.476376847 | W50: 9 | X50: -6.560717647 | Y50: -6.160923953 | Z50: 10 | AA50: -7.289686274 | AB50: -6.845471059 | AC50: 11 | AD50: -8.018654902 | AE50: -7.530018165 | AF50: 12 | AG50: -8.747623529 | AH50: -8.214565271 | AI50: 13 | AJ50: -9.476592156 | AK50: -8.899112377 | AL50: 14 | AM50: -10.20556078 | AN50: -9.583659483 | AO50: 15 | AP50: -10.93452941 | AQ50: -10.26820659 | AR50: 16 | AS50: -11.66349804 | AT50: -10.95275369 | AU50: 17 | AV50: -12.39246667 | AW50: -11.6373008 | AX50: 4 | AY50: -2.91587451 | AZ50: -2.738188424 | BA50: =BA47+1 -> 13 | BB50: =AY25 -> -2.738188424 | BC50: =AZ25 -> 2.91587451 | BD50: =BD47+1 -> 38 | BE50: =AY50 -> -2.91587451 | BF50: =AZ50 -> -2.738188424 | BG50: =BG47+1 -> 63 | BH50: =AY75 -> 2.738188424 | BI50: =AZ75 -> -2.91587451 | BJ50: =BJ47+1 -> 88 | BK50: =AY100 -> 2.91587451 | BL50: =AZ100 -> 2.738188424 | BM50: 38 | BN50: =スコアシート!AC17 -> -2 | BO50: 3 | BP50: -2.186905882 | BQ50: -2.053641318 | BR50: 38 | BS50: 19.5 | BT50: -14.21488823 | BU50: -13.34866857 | BV50: 132 | BW50: 155 | BX50: 131
A51: 77 | B51: =I3+(A51-1)*I4 -> 363.6 | C51: 6.34601716 | D51: 18 | E51: 17.96448111 | F51: 1.130229352 | H51: 39 | I51: =I3+(H51-1)*I4 -> 226.8 | J51: 3.958406744 | K51: 5 | L51: -3.42273553 | M51: -3.644843137 | N51: 6 | O51: -4.107282636 | P51: -4.373811765 | Q51: 7 | R51: -4.791829742 | S51: -5.102780392 | T51: 8 | U51: -5.476376847 | V51: -5.831749019 | W51: 9 | X51: -6.160923953 | Y51: -6.560717647 | Z51: 10 | AA51: -6.845471059 | AB51: -7.289686274 | AC51: 11 | AD51: -7.530018165 | AE51: -8.018654902 | AF51: 12 | AG51: -8.214565271 | AH51: -8.747623529 | AI51: 13 | AJ51: -8.899112377 | AK51: -9.476592156 | AL51: 14 | AM51: -9.583659483 | AN51: -10.20556078 | AO51: 15 | AP51: -10.26820659 | AQ51: -10.93452941 | AR51: 16 | AS51: -10.95275369 | AT51: -11.66349804 | AU51: 17 | AV51: -11.6373008 | AW51: -12.39246667 | AX51: 4 | AY51: -2.738188424 | AZ51: -2.91587451 | BM51: 39 | BN51: =スコアシート!AE17 -> -2 | BO51: 3 | BP51: -2.053641318 | BQ51: -2.186905882 | BR51: 39 | BS51: 19.5 | BT51: -13.34866857 | BU51: -14.21488823 | BV51: 130 | BW51: 155 | BX51: 133
A52: 79 | B52: =I3+(A52-1)*I4 -> 370.8 | C52: 6.471680866 | D52: 18 | E52: 17.68117051 | F52: 3.372863663 | H52: 40 | I52: =I3+(H52-1)*I4 -> 230.4 | J52: 4.021238597 | K52: 5 | L52: -3.187119949 | M52: -3.852566214 | N52: 6 | O52: -3.824543938 | P52: -4.623079457 | Q52: 7 | R52: -4.461967928 | S52: -5.393592699 | T52: 8 | U52: -5.099391918 | V52: -6.164105942 | W52: 9 | X52: -5.736815908 | Y52: -6.934619185 | Z52: 10 | AA52: -6.374239897 | AB52: -7.705132428 | AC52: 11 | AD52: -7.011663887 | AE52: -8.475645671 | AF52: 12 | AG52: -7.649087877 | AH52: -9.246158913 | AI52: 13 | AJ52: -8.286511867 | AK52: -10.01667216 | AL52: 14 | AM52: -8.923935856 | AN52: -10.7871854 | AO52: 15 | AP52: -9.561359846 | AQ52: -11.55769864 | AR52: 16 | AS52: -10.19878384 | AT52: -12.32821188 | AU52: 17 | AV52: -10.83620783 | AW52: -13.09872513 | AX52: 4 | AY52: -2.549695959 | AZ52: -3.082052971 | BA52: =BA49+1 -> 14 | BB52: =AV26 -> -12.39246667 | BC52: =AW26 -> 11.6373008 | BD52: =BD49+1 -> 39 | BE52: =AV51 -> -11.6373008 | BF52: =AW51 -> -12.39246667 | BG52: =BG49+1 -> 64 | BH52: =AV76 -> 12.39246667 | BI52: =AW76 -> -11.6373008 | BJ52: =BJ49+1 -> 89 | BK52: =AV101 -> 11.6373008 | BL52: =AW101 -> 12.39246667 | BM52: 40 | BN52: =スコアシート!AG17 -> -2 | BO52: 3 | BP52: -1.912271969 | BQ52: -2.311539728 | BR52: 40 | BS52: 19.5 | BT52: -12.4297678 | BU52: -15.02500823 | BV52: 130 | BW52: 156 | BX52: 134
A53: 81 | B53: =I3+(A53-1)*I4 -> 378 | C53: 6.597344573 | D53: 18 | E53: 17.11901729 | F53: 5.562305899 | H53: 41 | I53: =I3+(H53-1)*I4 -> 234 | J53: 4.08407045 | K53: 5 | L53: -2.938926261 | M53: -4.045084972 | N53: 6 | O53: -3.526711514 | P53: -4.854101966 | Q53: 7 | R53: -4.114496766 | S53: -5.663118961 | T53: 8 | U53: -4.702282018 | V53: -6.472135955 | W53: 9 | X53: -5.290067271 | Y53: -7.281152949 | Z53: 10 | AA53: -5.877852523 | AB53: -8.090169944 | AC53: 11 | AD53: -6.465637775 | AE53: -8.899186938 | AF53: 12 | AG53: -7.053423028 | AH53: -9.708203932 | AI53: 13 | AJ53: -7.64120828 | AK53: -10.51722093 | AL53: 14 | AM53: -8.228993532 | AN53: -11.32623792 | AO53: 15 | AP53: -8.816778784 | AQ53: -12.13525492 | AR53: 16 | AS53: -9.404564037 | AT53: -12.94427191 | AU53: 17 | AV53: -9.992349289 | AW53: -13.7532889 | AX53: 4 | AY53: -2.351141009 | AZ53: -3.236067977 | BA53: =BA50+1 -> 14 | BB53: =AY26 -> -2.91587451 | BC53: =AZ26 -> 2.738188424 | BD53: =BD50+1 -> 39 | BE53: =AY51 -> -2.738188424 | BF53: =AZ51 -> -2.91587451 | BG53: =BG50+1 -> 64 | BH53: =AY76 -> 2.91587451 | BI53: =AZ76 -> -2.738188424 | BJ53: =BJ50+1 -> 89 | BK53: =AY101 -> 2.738188424 | BL53: =AZ101 -> 2.91587451 | BM53: 41 | BN53: =スコアシート!AI17 -> -2 | BO53: 3 | BP53: -1.763355757 | BQ53: -2.427050983 | BR53: 41 | BS53: 19.5 | BT53: -11.46181242 | BU53: -15.77583139 | BV53: 129 | BW53: 156 | BX53: 136
A54: 83 | B54: =I3+(A54-1)*I4 -> 385.2 | C54: 6.723008279 | D54: 18 | E54: 16.28688694 | F54: 7.664027248 | H54: 42 | I54: =I3+(H54-1)*I4 -> 237.6 | J54: 4.146902303 | K54: 5 | L54: -2.679133975 | M54: -4.221639628 | N54: 6 | O54: -3.21496077 | P54: -5.065967553 | Q54: 7 | R54: -3.750787565 | S54: -5.910295479 | T54: 8 | U54: -4.28661436 | V54: -6.754623404 | W54: 9 | X54: -4.822441155 | Y54: -7.59895133 | Z54: 10 | AA54: -5.35826795 | AB54: -8.443279255 | AC54: 11 | AD54: -5.894094745 | AE54: -9.287607181 | AF54: 12 | AG54: -6.42992154 | AH54: -10.13193511 | AI54: 13 | AJ54: -6.965748335 | AK54: -10.97626303 | AL54: 14 | AM54: -7.50157513 | AN54: -11.82059096 | AO54: 15 | AP54: -8.037401925 | AQ54: -12.66491888 | AR54: 16 | AS54: -8.57322872 | AT54: -13.50924681 | AU54: 17 | AV54: -9.109055515 | AW54: -14.35357473 | AX54: 4 | AY54: -2.14330718 | AZ54: -3.377311702 | BM54: 42 | BN54: =スコアシート!AK17 -> -2 | BO54: 3 | BP54: -1.607480385 | BQ54: -2.532983777 | BR54: 42 | BS54: 19.5 | BT54: -10.4486225 | BU54: -16.46439455 | BV54: 128 | BW54: 156 | BX54: 137
A55: 85 | B55: =I3+(A55-1)*I4 -> 392.4 | C55: 6.848671985 | D55: 18 | E55: 15.19790266 | F55: 9.64488231 | H55: 43 | I55: =I3+(H55-1)*I4 -> 241.2 | J55: 4.209734156 | K55: 5 | L55: -2.408768371 | M55: -4.3815334 | N55: 6 | O55: -2.890522045 | P55: -5.25784008 | Q55: 7 | R55: -3.372275719 | S55: -6.13414676 | T55: 8 | U55: -3.854029393 | V55: -7.01045344 | W55: 9 | X55: -4.335783067 | Y55: -7.88676012 | Z55: 10 | AA55: -4.817536741 | AB55: -8.7630668 | AC55: 11 | AD55: -5.299290415 | AE55: -9.63937348 | AF55: 12 | AG55: -5.781044089 | AH55: -10.51568016 | AI55: 13 | AJ55: -6.262797763 | AK55: -11.39198684 | AL55: 14 | AM55: -6.744551437 | AN55: -12.26829352 | AO55: 15 | AP55: -7.226305112 | AQ55: -13.1446002 | AR55: 16 | AS55: -7.708058786 | AT55: -14.02090688 | AU55: 17 | AV55: -8.18981246 | AW55: -14.89721356 | AX55: 4 | AY55: -1.927014696 | AZ55: -3.50522672 | BA55: =BA52+1 -> 15 | BB55: =AV27 -> -13.09872513 | BC55: =AW27 -> 10.83620783 | BD55: =BD52+1 -> 40 | BE55: =AV52 -> -10.83620783 | BF55: =AW52 -> -13.09872513 | BG55: =BG52+1 -> 65 | BH55: =AV77 -> 13.09872513 | BI55: =AW77 -> -10.83620783 | BJ55: =BJ52+1 -> 90 | BK55: =AV102 -> 10.83620783 | BL55: =AW102 -> 13.09872513 | BM55: 43 | BN55: =スコアシート!AM17 -> -2 | BO55: 3 | BP55: -1.445261022 | BQ55: -2.62892004 | BR55: 43 | BS55: 19.5 | BT55: -9.394196645 | BU55: -17.08798026 | BV55: 127 | BW55: 156 | BX55: 139
A56: 87 | B56: =I3+(A56-1)*I4 -> 399.6 | C56: 6.974335691 | D56: 18 | E56: 13.86923837 | F56: 11.47363182 | H56: 44 | I56: =I3+(H56-1)*I4 -> 244.8 | J56: 4.272566009 | K56: 5 | L56: -2.128896458 | M56: -4.524135262 | N56: 6 | O56: -2.554675749 | P56: -5.428962315 | Q56: 7 | R56: -2.980455041 | S56: -6.333789367 | T56: 8 | U56: -3.406234333 | V56: -7.23861642 | W56: 9 | X56: -3.832013624 | Y56: -8.143443472 | Z56: 10 | AA56: -4.257792916 | AB56: -9.048270525 | AC56: 11 | AD56: -4.683572207 | AE56: -9.953097577 | AF56: 12 | AG56: -5.109351499 | AH56: -10.85792463 | AI56: 13 | AJ56: -5.53513079 | AK56: -11.76275168 | AL56: 14 | AM56: -5.960910082 | AN56: -12.66757873 | AO56: 15 | AP56: -6.386689373 | AQ56: -13.57240579 | AR56: 16 | AS56: -6.812468665 | AT56: -14.47723284 | AU56: 17 | AV56: -7.238247957 | AW56: -15.38205989 | AX56: 4 | AY56: -1.703117166 | AZ56: -3.61930821 | BA56: =BA53+1 -> 15 | BB56: =AY27 -> -3.082052971 | BC56: =AZ27 -> 2.549695959 | BD56: =BD53+1 -> 40 | BE56: =AY52 -> -2.549695959 | BF56: =AZ52 -> -3.082052971 | BG56: =BG53+1 -> 65 | BH56: =AY77 -> 3.082052971 | BI56: =AZ77 -> -2.549695959 | BJ56: =BJ53+1 -> 90 | BK56: =AY102 -> 2.549695959 | BL56: =AZ102 -> 3.082052971 | BM56: 44 | BN56: =スコアシート!AO17 -> -2 | BO56: 3 | BP56: -1.277337875 | BQ56: -2.714481157 | BR56: 44 | BS56: 19.5 | BT56: -8.302696186 | BU56: -17.64412752 | BV56: 126 | BW56: 156 | BX56: 141
A57: 89 | B57: =I3+(A57-1)*I4 -> 406.8 | C57: 7.099999397 | D57: 18 | E57: 12.32184791 | F57: 13.12143529 | H57: 45 | I57: =I3+(H57-1)*I4 -> 248.4 | J57: 4.335397862 | K57: 5 | L57: -1.840622763 | M57: -4.648882429 | N57: 6 | O57: -2.208747316 | P57: -5.578658915 | Q57: 7 | R57: -2.576871869 | S57: -6.508435401 | T57: 8 | U57: -2.944996421 | V57: -7.438211887 | W57: 9 | X57: -3.313120974 | Y57: -8.367988373 | Z57: 10 | AA57: -3.681245527 | AB57: -9.297764859 | AC57: 11 | AD57: -4.04937008 | AE57: -10.22754134 | AF57: 12 | AG57: -4.417494632 | AH57: -11.15731783 | AI57: 13 | AJ57: -4.785619185 | AK57: -12.08709432 | AL57: 14 | AM57: -5.153743738 | AN57: -13.0168708 | AO57: 15 | AP57: -5.52186829 | AQ57: -13.94664729 | AR57: 16 | AS57: -5.889992843 | AT57: -14.87642377 | AU57: 17 | AV57: -6.258117396 | AW57: -15.80620026 | AX57: 4 | AY57: -1.472498211 | AZ57: -3.719105944 | BM57: 45 | BN57: =スコアシート!AQ17 -> -2 | BO57: 3 | BP57: -1.104373658 | BQ57: -2.789329458 | BR57: 45 | BS57: 19.5 | BT57: -7.178428777 | BU57: -18.13064147 | BV57: 126 | BW57: 156 | BX57: 143
A58: 91 | B58: =I3+(A58-1)*I4 -> 414 | C58: 7.225663103 | D58: 18 | E58: 10.58013454 | F58: 14.5623059 | H58: 46 | I58: =I3+(H58-1)*I4 -> 252 | J58: 4.398229715 | K58: 5 | L58: -1.545084972 | M58: -4.755282581 | N58: 6 | O58: -1.854101966 | P58: -5.706339098 | Q58: 7 | R58: -2.163118961 | S58: -6.657395614 | T58: 8 | U58: -2.472135955 | V58: -7.60845213 | W58: 9 | X58: -2.781152949 | Y58: -8.559508647 | Z58: 10 | AA58: -3.090169944 | AB58: -9.510565163 | AC58: 11 | AD58: -3.399186938 | AE58: -10.46162168 | AF58: 12 | AG58: -3.708203932 | AH58: -11.4126782 | AI58: 13 | AJ58: -4.017220927 | AK58: -12.36373471 | AL58: 14 | AM58: -4.326237921 | AN58: -13.31479123 | AO58: 15 | AP58: -4.635254916 | AQ58: -14.26584774 | AR58: 16 | AS58: -4.94427191 | AT58: -15.21690426 | AU58: 17 | AV58: -5.253288904 | AW58: -16.16796078 | AX58: 4 | AY58: -1.236067977 | AZ58: -3.804226065 | BA58: =BA55+1 -> 16 | BB58: =AV28 -> -13.7532889 | BC58: =AW28 -> 9.992349289 | BD58: =BD55+1 -> 41 | BE58: =AV53 -> -9.992349289 | BF58: =AW53 -> -13.7532889 | BG58: =BG55+1 -> 66 | BH58: =AV78 -> 13.7532889 | BI58: =AW78 -> -9.992349289 | BJ58: =BJ55+1 -> 91 | BK58: =AV103 -> 9.992349289 | BL58: =AW103 -> 13.7532889 | BM58: 46 | BN58: =スコアシート!AS17 -> -2 | BO58: 3 | BP58: -0.9270509831 | BQ58: -2.853169549 | BR58: 46 | BS58: 19.5 | BT58: -6.02583139 | BU58: -18.54560207 | BV58: 125 | BW58: 156 | BX58: 144
A59: 93 | B59: =I3+(A59-1)*I4 -> 421.2 | C59: 7.351326809 | D59: 18 | E59: 8.671566134 | F59: 15.77352024 | H59: 47 | I59: =I3+(H59-1)*I4 -> 255.6 | J59: 4.461061568 | K59: 5 | L59: -1.243449436 | M59: -4.842915806 | N59: 6 | O59: -1.492139323 | P59: -5.811498967 | Q59: 7 | R59: -1.74082921 | S59: -6.780082128 | T59: 8 | U59: -1.989519097 | V59: -7.748665289 | W59: 9 | X59: -2.238208984 | Y59: -8.71724845 | Z59: 10 | AA59: -2.486898872 | AB59: -9.685831611 | AC59: 11 | AD59: -2.735588759 | AE59: -10.65441477 | AF59: 12 | AG59: -2.984278646 | AH59: -11.62299793 | AI59: 13 | AJ59: -3.232968533 | AK59: -12.59158109 | AL59: 14 | AM59: -3.48165842 | AN59: -13.56016426 | AO59: 15 | AP59: -3.730348307 | AQ59: -14.52874742 | AR59: 16 | AS59: -3.979038195 | AT59: -15.49733058 | AU59: 17 | AV59: -4.227728082 | AW59: -16.46591374 | AX59: 4 | AY59: -0.9947595487 | AZ59: -3.874332645 | BA59: =BA56+1 -> 16 | BB59: =AY28 -> -3.236067977 | BC59: =AZ28 -> 2.351141009 | BD59: =BD56+1 -> 41 | BE59: =AY53 -> -2.351141009 | BF59: =AZ53 -> -3.236067977 | BG59: =BG56+1 -> 66 | BH59: =AY78 -> 3.236067977 | BI59: =AZ78 -> -2.351141009 | BJ59: =BJ56+1 -> 91 | BK59: =AY103 -> 2.351141009 | BL59: =AZ103 -> 3.236067977 | BM59: 47 | BN59: =スコアシート!AU17 -> -2 | BO59: 3 | BP59: -0.7460696615 | BQ59: -2.905749483 | BR59: 47 | BS59: 19.5 | BT59: -4.8494528 | BU59: -18.88737164 | BV59: 125 | BW59: 156 | BX59: 146
A60: 95 | B60: =I3+(A60-1)*I4 -> 428.4 | C60: 7.476990516 | D60: 18 | E60: 6.626241948 | F60: 16.73597675 | H60: 48 | I60: =I3+(H60-1)*I4 -> 259.2 | J60: 4.523893421 | K60: 5 | L60: -0.9369065729 | M60: -4.911436254 | N60: 6 | O60: -1.124287888 | P60: -5.893723504 | Q60: 7 | R60: -1.311669202 | S60: -6.876010755 | T60: 8 | U60: -1.499050517 | V60: -7.858298006 | W60: 9 | X60: -1.686431831 | Y60: -8.840585257 | Z60: 10 | AA60: -1.873813146 | AB60: -9.822872507 | AC60: 11 | AD60: -2.06119446 | AE60: -10.80515976 | AF60: 12 | AG60: -2.248575775 | AH60: -11.78744701 | AI60: 13 | AJ60: -2.43595709 | AK60: -12.76973426 | AL60: 14 | AM60: -2.623338404 | AN60: -13.75202151 | AO60: 15 | AP60: -2.810719719 | AQ60: -14.73430876 | AR60: 16 | AS60: -2.998101033 | AT60: -15.71659601 | AU60: 17 | AV60: -3.185482348 | AW60: -16.69888326 | AX60: 4 | AY60: -0.7495252583 | AZ60: -3.929149003 | BM60: 48 | BN60: =スコアシート!AW17 -> -2 | BO60: 3 | BP60: -0.5621439438 | BQ60: -2.946861752 | BR60: 48 | BS60: 19.5 | BT60: -3.653935634 | BU60: -19.15460139 | BV60: 125 | BW60: 155 | BX60: 148
A61: 97 | B61: =I3+(A61-1)*I4 -> 435.6 | C61: 7.602654222 | D61: 18 | E61: 4.476417969 | F61: 17.4344969 | H61: 49 | I61: =I3+(H61-1)*I4 -> 262.8 | J61: 4.586725274 | K61: 5 | L61: -0.6266661678 | M61: -4.960573507 | N61: 6 | O61: -0.7519994014 | P61: -5.952688208 | Q61: 7 | R61: -0.877332635 | S61: -6.944802909 | T61: 8 | U61: -1.002665869 | V61: -7.936917611 | W61: 9 | X61: -1.127999102 | Y61: -8.929032312 | Z61: 10 | AA61: -1.253332336 | AB61: -9.921147013 | AC61: 11 | AD61: -1.378665569 | AE61: -10.91326171 | AF61: 12 | AG61: -1.503998803 | AH61: -11.90537642 | AI61: 13 | AJ61: -1.629332036 | AK61: -12.89749112 | AL61: 14 | AM61: -1.75466527 | AN61: -13.88960582 | AO61: 15 | AP61: -1.879998503 | AQ61: -14.88172052 | AR61: 16 | AS61: -2.005331737 | AT61: -15.87383522 | AU61: 17 | AV61: -2.130664971 | AW61: -16.86594992 | AX61: 4 | AY61: -0.5013329343 | AZ61: -3.968458805 | BA61: =BA58+1 -> 17 | BB61: =AV29 -> -14.35357473 | BC61: =AW29 -> 9.109055515 | BD61: =BD58+1 -> 42 | BE61: =AV54 -> -9.109055515 | BF61: =AW54 -> -14.35357473 | BG61: =BG58+1 -> 67 | BH61: =AV79 -> 14.35357473 | BI61: =AW79 -> -9.109055515 | BJ61: =BJ58+1 -> 92 | BK61: =AV104 -> 9.109055515 | BL61: =AW104 -> 14.35357473 | BM61: 49 | BN61: =スコアシート!AY17 -> -2 | BO61: 3 | BP61: -0.3759997007 | BQ61: -2.976344104 | BR61: 49 | BS61: 19.5 | BT61: -2.443998055 | BU61: -19.34623668 | BV61: 124 | BW61: 155 | BX61: 149
A62: 99 | B62: =I3+(A62-1)*I4 -> 442.8 | C62: 7.728317928 | D62: 18 | E62: 2.255998204 | F62: 17.85806462 | H62: 50 | I62: =I3+(H62-1)*I4 -> 266.4 | J62: 4.649557127 | K62: 5 | L62: -0.3139525976 | M62: -4.990133642 | N62: 6 | O62: -0.3767431172 | P62: -5.988160371 | Q62: 7 | R62: -0.4395336367 | S62: -6.986187099 | T62: 8 | U62: -0.5023241562 | V62: -7.984213827 | W62: 9 | X62: -0.5651146758 | Y62: -8.982240556 | Z62: 10 | AA62: -0.6279051953 | AB62: -9.980267284 | AC62: 11 | AD62: -0.6906957148 | AE62: -10.97829401 | AF62: 12 | AG62: -0.7534862344 | AH62: -11.97632074 | AI62: 13 | AJ62: -0.8162767539 | AK62: -12.97434747 | AL62: 14 | AM62: -0.8790672734 | AN62: -13.9723742 | AO62: 15 | AP62: -0.9418577929 | AQ62: -14.97040093 | AR62: 16 | AS62: -1.004648312 | AT62: -15.96842765 | AU62: 17 | AV62: -1.067438832 | AW62: -16.96645438 | AX62: 4 | AY62: -0.2511620781 | AZ62: -3.992106914 | BA62: =BA59+1 -> 17 | BB62: =AY29 -> -3.377311702 | BC62: =AZ29 -> 2.14330718 | BD62: =BD59+1 -> 42 | BE62: =AY54 -> -2.14330718 | BF62: =AZ54 -> -3.377311702 | BG62: =BG59+1 -> 67 | BH62: =AY79 -> 3.377311702 | BI62: =AZ79 -> -2.14330718 | BJ62: =BJ59+1 -> 92 | BK62: =AY104 -> 2.14330718 | BL62: =AZ104 -> 3.377311702 | BM62: 50 | BN62: =スコアシート!BA17+スコアシート!C24 -> 98 | BO62: 103 | BP62: -6.467423512 | BQ62: -102.796753 | BR62: 50 | BS62: 19.5 | BT62: -1.224415131 | BU62: -19.4615212 | BV62: 124 | BW62: 155 | BX62: 151
B63: =I3+(A63-1)*I4 -> 86.4 | C63: 1.507964474 | D63: 18 | E63: 1.130229352 | F63: 17.96448111 | H63: 51 | I63: =I3+(H63-1)*I4 -> 270 | J63: 4.71238898 | K63: 5 | L63: -9.188613412e-16 | M63: -5 | N63: 6 | O63: -1.102633609e-15 | P63: -6 | Q63: 7 | R63: -1.286405878e-15 | S63: -7 | T63: 8 | U63: -1.470178146e-15 | V63: -8 | W63: 9 | X63: -1.653950414e-15 | Y63: -9 | Z63: 10 | AA63: -1.837722682e-15 | AB63: -10 | AC63: 11 | AD63: -2.021494951e-15 | AE63: -11 | AF63: 12 | AG63: -2.205267219e-15 | AH63: -12 | AI63: 13 | AJ63: -2.389039487e-15 | AK63: -13 | AL63: 14 | AM63: -2.572811755e-15 | AN63: -14 | AO63: 15 | AP63: -2.756584024e-15 | AQ63: -15 | AR63: 16 | AS63: -2.940356292e-15 | AT63: -16 | AU63: 17 | AV63: -3.12412856e-15 | AW63: -17 | AX63: 4 | AY63: -7.350890729e-16 | AZ63: -4 | BM63: 51 | BN63: =スコアシート!E24+スコアシート!BC17 -> 98 | BO63: 103 | BP63: -1.892854363e-14 | BQ63: -103 | BR63: 51 | BS63: 19.5 | BT63: -3.583559231e-15 | BU63: -19.5 | BV63: 124 | BW63: 155 | BX63: 153
H64: 52 | I64: =I3+(H64-1)*I4 -> 273.6 | J64: 4.775220833 | K64: 5 | L64: 0.3139525976 | M64: -4.990133642 | N64: 6 | O64: 0.3767431172 | P64: -5.988160371 | Q64: 7 | R64: 0.4395336367 | S64: -6.986187099 | T64: 8 | U64: 0.5023241562 | V64: -7.984213827 | W64: 9 | X64: 0.5651146758 | Y64: -8.982240556 | Z64: 10 | AA64: 0.6279051953 | AB64: -9.980267284 | AC64: 11 | AD64: 0.6906957148 | AE64: -10.97829401 | AF64: 12 | AG64: 0.7534862344 | AH64: -11.97632074 | AI64: 13 | AJ64: 0.8162767539 | AK64: -12.97434747 | AL64: 14 | AM64: 0.8790672734 | AN64: -13.9723742 | AO64: 15 | AP64: 0.9418577929 | AQ64: -14.97040093 | AR64: 16 | AS64: 1.004648312 | AT64: -15.96842765 | AU64: 17 | AV64: 1.067438832 | AW64: -16.96645438 | AX64: 4 | AY64: 0.2511620781 | AZ64: -3.992106914 | BA64: =BA61+1 -> 18 | BB64: =AV30 -> -14.89721356 | BC64: =AW30 -> 8.18981246 | BD64: =BD61+1 -> 43 | BE64: =AV55 -> -8.18981246 | BF64: =AW55 -> -14.89721356 | BG64: =BG61+1 -> 68 | BH64: =AV80 -> 14.89721356 | BI64: =AW80 -> -8.18981246 | BJ64: =BJ61+1 -> 93 | BK64: =AV105 -> 8.18981246 | BL64: =AW105 -> 14.89721356 | BM64: 52 | BN64: =スコアシート!G24 -> -2 | BO64: 3 | BP64: 0.1883715586 | BQ64: -2.994080185 | BR64: 52 | BS64: 19.5 | BT64: 1.224415131 | BU64: -19.4615212 | BV64: 125 | BW64: 155 | BX64: 154
H65: 53 | I65: =I3+(H65-1)*I4 -> 277.2 | J65: 4.838052687 | K65: 5 | L65: 0.6266661678 | M65: -4.960573507 | N65: 6 | O65: 0.7519994014 | P65: -5.952688208 | Q65: 7 | R65: 0.877332635 | S65: -6.944802909 | T65: 8 | U65: 1.002665869 | V65: -7.936917611 | W65: 9 | X65: 1.127999102 | Y65: -8.929032312 | Z65: 10 | AA65: 1.253332336 | AB65: -9.921147013 | AC65: 11 | AD65: 1.378665569 | AE65: -10.91326171 | AF65: 12 | AG65: 1.503998803 | AH65: -11.90537642 | AI65: 13 | AJ65: 1.629332036 | AK65: -12.89749112 | AL65: 14 | AM65: 1.75466527 | AN65: -13.88960582 | AO65: 15 | AP65: 1.879998503 | AQ65: -14.88172052 | AR65: 16 | AS65: 2.005331737 | AT65: -15.87383522 | AU65: 17 | AV65: 2.130664971 | AW65: -16.86594992 | AX65: 4 | AY65: 0.5013329343 | AZ65: -3.968458805 | BA65: =BA62+1 -> 18 | BB65: =AY30 -> -3.50522672 | BC65: =AZ30 -> 1.927014696 | BD65: =BD62+1 -> 43 | BE65: =AY55 -> -1.927014696 | BF65: =AZ55 -> -3.50522672 | BG65: =BG62+1 -> 68 | BH65: =AY80 -> 3.50522672 | BI65: =AZ80 -> -1.927014696 | BJ65: =BJ62+1 -> 93 | BK65: =AY105 -> 1.927014696 | BL65: =AZ105 -> 3.50522672 | BM65: 53 | BN65: =スコアシート!I24 -> -2 | BO65: 3 | BP65: 0.3759997007 | BQ65: -2.976344104 | BR65: 53 | BS65: 19.5 | BT65: 2.443998055 | BU65: -19.34623668 | BV65: 125 | BW65: 155 | BX65: 156
H66: 54 | I66: =I3+(H66-1)*I4 -> 280.8 | J66: 4.90088454 | K66: 5 | L66: 0.9369065729 | M66: -4.911436254 | N66: 6 | O66: 1.124287888 | P66: -5.893723504 | Q66: 7 | R66: 1.311669202 | S66: -6.876010755 | T66: 8 | U66: 1.499050517 | V66: -7.858298006 | W66: 9 | X66: 1.686431831 | Y66: -8.840585257 | Z66: 10 | AA66: 1.873813146 | AB66: -9.822872507 | AC66: 11 | AD66: 2.06119446 | AE66: -10.80515976 | AF66: 12 | AG66: 2.248575775 | AH66: -11.78744701 | AI66: 13 | AJ66: 2.43595709 | AK66: -12.76973426 | AL66: 14 | AM66: 2.623338404 | AN66: -13.75202151 | AO66: 15 | AP66: 2.810719719 | AQ66: -14.73430876 | AR66: 16 | AS66: 2.998101033 | AT66: -15.71659601 | AU66: 17 | AV66: 3.185482348 | AW66: -16.69888326 | AX66: 4 | AY66: 0.7495252583 | AZ66: -3.929149003 | BM66: 54 | BN66: =スコアシート!K24 -> -2 | BO66: 3 | BP66: 0.5621439438 | BQ66: -2.946861752 | BR66: 54 | BS66: 19.5 | BT66: 3.653935634 | BU66: -19.15460139 | BV66: 125 | BW66: 154 | BX66: 157
H67: 55 | I67: =I3+(H67-1)*I4 -> 284.4 | J67: 4.963716393 | K67: 5 | L67: 1.243449436 | M67: -4.842915806 | N67: 6 | O67: 1.492139323 | P67: -5.811498967 | Q67: 7 | R67: 1.74082921 | S67: -6.780082128 | T67: 8 | U67: 1.989519097 | V67: -7.748665289 | W67: 9 | X67: 2.238208984 | Y67: -8.71724845 | Z67: 10 | AA67: 2.486898872 | AB67: -9.685831611 | AC67: 11 | AD67: 2.735588759 | AE67: -10.65441477 | AF67: 12 | AG67: 2.984278646 | AH67: -11.62299793 | AI67: 13 | AJ67: 3.232968533 | AK67: -12.59158109 | AL67: 14 | AM67: 3.48165842 | AN67: -13.56016426 | AO67: 15 | AP67: 3.730348307 | AQ67: -14.52874742 | AR67: 16 | AS67: 3.979038195 | AT67: -15.49733058 | AU67: 17 | AV67: 4.227728082 | AW67: -16.46591374 | AX67: 4 | AY67: 0.9947595487 | AZ67: -3.874332645 | BA67: =BA64+1 -> 19 | BB67: =AV31 -> -15.38205989 | BC67: =AW31 -> 7.238247957 | BD67: =BD64+1 -> 44 | BE67: =AV56 -> -7.238247957 | BF67: =AW56 -> -15.38205989 | BG67: =BG64+1 -> 69 | BH67: =AV81 -> 15.38205989 | BI67: =AW81 -> -7.238247957 | BJ67: =BJ64+1 -> 94 | BK67: =AV106 -> 7.238247957 | BL67: =AW106 -> 15.38205989 | BM67: 55 | BN67: =スコアシート!M24 -> -2 | BO67: 3 | BP67: 0.7460696615 | BQ67: -2.905749483 | BR67: 55 | BS67: 19.5 | BT67: 4.8494528 | BU67: -18.88737164 | BV67: 126 | BW67: 154 | BX67: 159
H68: 56 | I68: =I3+(H68-1)*I4 -> 288 | J68: 5.026548246 | K68: 5 | L68: 1.545084972 | M68: -4.755282581 | N68: 6 | O68: 1.854101966 | P68: -5.706339098 | Q68: 7 | R68: 2.163118961 | S68: -6.657395614 | T68: 8 | U68: 2.472135955 | V68: -7.60845213 | W68: 9 | X68: 2.781152949 | Y68: -8.559508647 | Z68: 10 | AA68: 3.090169944 | AB68: -9.510565163 | AC68: 11 | AD68: 3.399186938 | AE68: -10.46162168 | AF68: 12 | AG68: 3.708203932 | AH68: -11.4126782 | AI68: 13 | AJ68: 4.017220927 | AK68: -12.36373471 | AL68: 14 | AM68: 4.326237921 | AN68: -13.31479123 | AO68: 15 | AP68: 4.635254916 | AQ68: -14.26584774 | AR68: 16 | AS68: 4.94427191 | AT68: -15.21690426 | AU68: 17 | AV68: 5.253288904 | AW68: -16.16796078 | AX68: 4 | AY68: 1.236067977 | AZ68: -3.804226065 | BA68: =BA65+1 -> 19 | BB68: =AY31 -> -3.61930821 | BC68: =AZ31 -> 1.703117166 | BD68: =BD65+1 -> 44 | BE68: =AY56 -> -1.703117166 | BF68: =AZ56 -> -3.61930821 | BG68: =BG65+1 -> 69 | BH68: =AY81 -> 3.61930821 | BI68: =AZ81 -> -1.703117166 | BJ68: =BJ65+1 -> 94 | BK68: =AY106 -> 1.703117166 | BL68: =AZ106 -> 3.61930821 | BM68: 56 | BN68: =スコアシート!O24 -> -2 | BO68: 3 | BP68: 0.9270509831 | BQ68: -2.853169549 | BR68: 56 | BS68: 19.5 | BT68: 6.02583139 | BU68: -18.54560207 | BV68: 126 | BW68: 154 | BX68: 160
H69: 57 | I69: =I3+(H69-1)*I4 -> 291.6 | J69: 5.089380099 | K69: 5 | L69: 1.840622763 | M69: -4.648882429 | N69: 6 | O69: 2.208747316 | P69: -5.578658915 | Q69: 7 | R69: 2.576871869 | S69: -6.508435401 | T69: 8 | U69: 2.944996421 | V69: -7.438211887 | W69: 9 | X69: 3.313120974 | Y69: -8.367988373 | Z69: 10 | AA69: 3.681245527 | AB69: -9.297764859 | AC69: 11 | AD69: 4.04937008 | AE69: -10.22754134 | AF69: 12 | AG69: 4.417494632 | AH69: -11.15731783 | AI69: 13 | AJ69: 4.785619185 | AK69: -12.08709432 | AL69: 14 | AM69: 5.153743738 | AN69: -13.0168708 | AO69: 15 | AP69: 5.52186829 | AQ69: -13.94664729 | AR69: 16 | AS69: 5.889992843 | AT69: -14.87642377 | AU69: 17 | AV69: 6.258117396 | AW69: -15.80620026 | AX69: 4 | AY69: 1.472498211 | AZ69: -3.719105944 | BM69: 57 | BN69: =スコアシート!Q24 -> -2 | BO69: 3 | BP69: 1.104373658 | BQ69: -2.789329458 | BR69: 57 | BS69: 19.5 | BT69: 7.178428777 | BU69: -18.13064147 | BV69: 127 | BW69: 153 | BX69: 162
H70: 58 | I70: =I3+(H70-1)*I4 -> 295.2 | J70: 5.152211952 | K70: 5 | L70: 2.128896458 | M70: -4.524135262 | N70: 6 | O70: 2.554675749 | P70: -5.428962315 | Q70: 7 | R70: 2.980455041 | S70: -6.333789367 | T70: 8 | U70: 3.406234333 | V70: -7.23861642 | W70: 9 | X70: 3.832013624 | Y70: -8.143443472 | Z70: 10 | AA70: 4.257792916 | AB70: -9.048270525 | AC70: 11 | AD70: 4.683572207 | AE70: -9.953097577 | AF70: 12 | AG70: 5.109351499 | AH70: -10.85792463 | AI70: 13 | AJ70: 5.53513079 | AK70: -11.76275168 | AL70: 14 | AM70: 5.960910082 | AN70: -12.66757873 | AO70: 15 | AP70: 6.386689373 | AQ70: -13.57240579 | AR70: 16 | AS70: 6.812468665 | AT70: -14.47723284 | AU70: 17 | AV70: 7.238247957 | AW70: -15.38205989 | AX70: 4 | AY70: 1.703117166 | AZ70: -3.61930821 | BA70: =BA67+1 -> 20 | BB70: =AV32 -> -15.80620026 | BC70: =AW32 -> 6.258117396 | BD70: =BD67+1 -> 45 | BE70: =AV57 -> -6.258117396 | BF70: =AW57 -> -15.80620026 | BG70: =BG67+1 -> 70 | BH70: =AV82 -> 15.80620026 | BI70: =AW82 -> -6.258117396 | BJ70: =BJ67+1 -> 95 | BK70: =AV107 -> 6.258117396 | BL70: =AW107 -> 15.80620026 | BM70: 58 | BN70: =スコアシート!S24 -> -2 | BO70: 3 | BP70: 1.277337875 | BQ70: -2.714481157 | BR70: 58 | BS70: 19.5 | BT70: 8.302696186 | BU70: -17.64412752 | BV70: 128 | BW70: 153 | BX70: 163
H71: 59 | I71: =I3+(H71-1)*I4 -> 298.8 | J71: 5.215043805 | K71: 5 | L71: 2.408768371 | M71: -4.3815334 | N71: 6 | O71: 2.890522045 | P71: -5.25784008 | Q71: 7 | R71: 3.372275719 | S71: -6.13414676 | T71: 8 | U71: 3.854029393 | V71: -7.01045344 | W71: 9 | X71: 4.335783067 | Y71: -7.88676012 | Z71: 10 | AA71: 4.817536741 | AB71: -8.7630668 | AC71: 11 | AD71: 5.299290415 | AE71: -9.63937348 | AF71: 12 | AG71: 5.781044089 | AH71: -10.51568016 | AI71: 13 | AJ71: 6.262797763 | AK71: -11.39198684 | AL71: 14 | AM71: 6.744551437 | AN71: -12.26829352 | AO71: 15 | AP71: 7.226305112 | AQ71: -13.1446002 | AR71: 16 | AS71: 7.708058786 | AT71: -14.02090688 | AU71: 17 | AV71: 8.18981246 | AW71: -14.89721356 | AX71: 4 | AY71: 1.927014696 | AZ71: -3.50522672 | BA71: =BA68+1 -> 20 | BB71: =AY32 -> -3.719105944 | BC71: =AZ32 -> 1.472498211 | BD71: =BD68+1 -> 45 | BE71: =AY57 -> -1.472498211 | BF71: =AZ57 -> -3.719105944 | BG71: =BG68+1 -> 70 | BH71: =AY82 -> 3.719105944 | BI71: =AZ82 -> -1.472498211 | BJ71: =BJ68+1 -> 95 | BK71: =AY107 -> 1.472498211 | BL71: =AZ107 -> 3.719105944 | BM71: 59 | BN71: =スコアシート!U24 -> -2 | BO71: 3 | BP71: 1.445261022 | BQ71: -2.62892004 | BR71: 59 | BS71: 19.5 | BT71: 9.394196645 | BU71: -17.08798026 | BV71: 129 | BW71: 153 | BX71: 165
H72: 60 | I72: =I3+(H72-1)*I4 -> 302.4 | J72: 5.277875658 | K72: 5 | L72: 2.679133975 | M72: -4.221639628 | N72: 6 | O72: 3.21496077 | P72: -5.065967553 | Q72: 7 | R72: 3.750787565 | S72: -5.910295479 | T72: 8 | U72: 4.28661436 | V72: -6.754623404 | W72: 9 | X72: 4.822441155 | Y72: -7.59895133 | Z72: 10 | AA72: 5.35826795 | AB72: -8.443279255 | AC72: 11 | AD72: 5.894094745 | AE72: -9.287607181 | AF72: 12 | AG72: 6.42992154 | AH72: -10.13193511 | AI72: 13 | AJ72: 6.965748335 | AK72: -10.97626303 | AL72: 14 | AM72: 7.50157513 | AN72: -11.82059096 | AO72: 15 | AP72: 8.037401925 | AQ72: -12.66491888 | AR72: 16 | AS72: 8.57322872 | AT72: -13.50924681 | AU72: 17 | AV72: 9.109055515 | AW72: -14.35357473 | AX72: 4 | AY72: 2.14330718 | AZ72: -3.377311702 | BM72: 60 | BN72: =スコアシート!W24 -> -2 | BO72: 3 | BP72: 1.607480385 | BQ72: -2.532983777 | BR72: 60 | BS72: 19.5 | BT72: 10.4486225 | BU72: -16.46439455 | BV72: 130 | BW72: 152 | BX72: 166
H73: 61 | I73: =I3+(H73-1)*I4 -> 306 | J73: 5.340707511 | K73: 5 | L73: 2.938926261 | M73: -4.045084972 | N73: 6 | O73: 3.526711514 | P73: -4.854101966 | Q73: 7 | R73: 4.114496766 | S73: -5.663118961 | T73: 8 | U73: 4.702282018 | V73: -6.472135955 | W73: 9 | X73: 5.290067271 | Y73: -7.281152949 | Z73: 10 | AA73: 5.877852523 | AB73: -8.090169944 | AC73: 11 | AD73: 6.465637775 | AE73: -8.899186938 | AF73: 12 | AG73: 7.053423028 | AH73: -9.708203932 | AI73: 13 | AJ73: 7.64120828 | AK73: -10.51722093 | AL73: 14 | AM73: 8.228993532 | AN73: -11.32623792 | AO73: 15 | AP73: 8.816778784 | AQ73: -12.13525492 | AR73: 16 | AS73: 9.404564037 | AT73: -12.94427191 | AU73: 17 | AV73: 9.992349289 | AW73: -13.7532889 | AX73: 4 | AY73: 2.351141009 | AZ73: -3.236067977 | BA73: =BA70+1 -> 21 | BB73: =AV33 -> -16.16796078 | BC73: =AW33 -> 5.253288904 | BD73: =BD70+1 -> 46 | BE73: =AV58 -> -5.253288904 | BF73: =AW58 -> -16.16796078 | BG73: =BG70+1 -> 71 | BH73: =AV83 -> 16.16796078 | BI73: =AW83 -> -5.253288904 | BJ73: =BJ70+1 -> 96 | BK73: =AV108 -> 5.253288904 | BL73: =AW108 -> 16.16796078 | BM73: 61 | BN73: =スコアシート!Y24 -> -2 | BO73: 3 | BP73: 1.763355757 | BQ73: -2.427050983 | BR73: 61 | BS73: 19.5 | BT73: 11.46181242 | BU73: -15.77583139 | BV73: 131 | BW73: 152 | BX73: 167
H74: 62 | I74: =I3+(H74-1)*I4 -> 309.6 | J74: 5.403539364 | K74: 5 | L74: 3.187119949 | M74: -3.852566214 | N74: 6 | O74: 3.824543938 | P74: -4.623079457 | Q74: 7 | R74: 4.461967928 | S74: -5.393592699 | T74: 8 | U74: 5.099391918 | V74: -6.164105942 | W74: 9 | X74: 5.736815908 | Y74: -6.934619185 | Z74: 10 | AA74: 6.374239897 | AB74: -7.705132428 | AC74: 11 | AD74: 7.011663887 | AE74: -8.475645671 | AF74: 12 | AG74: 7.649087877 | AH74: -9.246158913 | AI74: 13 | AJ74: 8.286511867 | AK74: -10.01667216 | AL74: 14 | AM74: 8.923935856 | AN74: -10.7871854 | AO74: 15 | AP74: 9.561359846 | AQ74: -11.55769864 | AR74: 16 | AS74: 10.19878384 | AT74: -12.32821188 | AU74: 17 | AV74: 10.83620783 | AW74: -13.09872513 | AX74: 4 | AY74: 2.549695959 | AZ74: -3.082052971 | BA74: =BA71+1 -> 21 | BB74: =AY33 -> -3.804226065 | BC74: =AZ33 -> 1.236067977 | BD74: =BD71+1 -> 46 | BE74: =AY58 -> -1.236067977 | BF74: =AZ58 -> -3.804226065 | BG74: =BG71+1 -> 71 | BH74: =AY83 -> 3.804226065 | BI74: =AZ83 -> -1.236067977 | BJ74: =BJ71+1 -> 96 | BK74: =AY108 -> 1.236067977 | BL74: =AZ108 -> 3.804226065 | BM74: 62 | BN74: =スコアシート!AA24 -> -2 | BO74: 3 | BP74: 1.912271969 | BQ74: -2.311539728 | BR74: 62 | BS74: 19.5 | BT74: 12.4297678 | BU74: -15.02500823 | BV74: 132 | BW74: 152 | BX74: 168
H75: 63 | I75: =I3+(H75-1)*I4 -> 313.2 | J75: 5.466371217 | K75: 5 | L75: 3.42273553 | M75: -3.644843137 | N75: 6 | O75: 4.107282636 | P75: -4.373811765 | Q75: 7 | R75: 4.791829742 | S75: -5.102780392 | T75: 8 | U75: 5.476376847 | V75: -5.831749019 | W75: 9 | X75: 6.160923953 | Y75: -6.560717647 | Z75: 10 | AA75: 6.845471059 | AB75: -7.289686274 | AC75: 11 | AD75: 7.530018165 | AE75: -8.018654902 | AF75: 12 | AG75: 8.214565271 | AH75: -8.747623529 | AI75: 13 | AJ75: 8.899112377 | AK75: -9.476592156 | AL75: 14 | AM75: 9.583659483 | AN75: -10.20556078 | AO75: 15 | AP75: 10.26820659 | AQ75: -10.93452941 | AR75: 16 | AS75: 10.95275369 | AT75: -11.66349804 | AU75: 17 | AV75: 11.6373008 | AW75: -12.39246667 | AX75: 4 | AY75: 2.738188424 | AZ75: -2.91587451 | BM75: 63 | BN75: =スコアシート!AC24 -> -2 | BO75: 3 | BP75: 2.053641318 | BQ75: -2.186905882 | BR75: 63 | BS75: 19.5 | BT75: 13.34866857 | BU75: -14.21488823 | BV75: 133 | BW75: 151 | BX75: 169
H76: 64 | I76: =I3+(H76-1)*I4 -> 316.8 | J76: 5.52920307 | K76: 5 | L76: 3.644843137 | M76: -3.42273553 | N76: 6 | O76: 4.373811765 | P76: -4.107282636 | Q76: 7 | R76: 5.102780392 | S76: -4.791829742 | T76: 8 | U76: 5.831749019 | V76: -5.476376847 | W76: 9 | X76: 6.560717647 | Y76: -6.160923953 | Z76: 10 | AA76: 7.289686274 | AB76: -6.845471059 | AC76: 11 | AD76: 8.018654902 | AE76: -7.530018165 | AF76: 12 | AG76: 8.747623529 | AH76: -8.214565271 | AI76: 13 | AJ76: 9.476592156 | AK76: -8.899112377 | AL76: 14 | AM76: 10.20556078 | AN76: -9.583659483 | AO76: 15 | AP76: 10.93452941 | AQ76: -10.26820659 | AR76: 16 | AS76: 11.66349804 | AT76: -10.95275369 | AU76: 17 | AV76: 12.39246667 | AW76: -11.6373008 | AX76: 4 | AY76: 2.91587451 | AZ76: -2.738188424 | BA76: =BA73+1 -> 22 | BB76: =AV34 -> -16.46591374 | BC76: =AW34 -> 4.227728082 | BD76: =BD73+1 -> 47 | BE76: =AV59 -> -4.227728082 | BF76: =AW59 -> -16.46591374 | BG76: =BG73+1 -> 72 | BH76: =AV84 -> 16.46591374 | BI76: =AW84 -> -4.227728082 | BJ76: =BJ73+1 -> 97 | BK76: =AV109 -> 4.227728082 | BL76: =AW109 -> 16.46591374 | BM76: 64 | BN76: =スコアシート!AE24 -> -2 | BO76: 3 | BP76: 2.186905882 | BQ76: -2.053641318 | BR76: 64 | BS76: 19.5 | BT76: 14.21488823 | BU76: -13.34866857 | BV76: 134 | BW76: 151 | BX76: 170
H77: 65 | I77: =I3+(H77-1)*I4 -> 320.4 | J77: =RADIANS(I77) -> 5.592034923 | K77: 5 | L77: =K77*COS(J77) -> 3.852566214 | M77: =K77*SIN(J77) -> -3.187119949 | N77: 6 | O77: =N77*COS(J77) -> 4.623079457 | P77: =N77*SIN(J77) -> -3.824543938 | Q77: 7 | R77: =Q77*COS(J77) -> 5.393592699 | S77: =Q77*SIN(J77) -> -4.461967928 | T77: 8 | U77: =T77*COS(J77) -> 6.164105942 | V77: =T77*SIN(J77) -> -5.099391918 | W77: 9 | X77: =W77*COS(J77) -> 6.934619185 | Y77: =W77*SIN(J77) -> -5.736815908 | Z77: 10 | AA77: =Z77*COS(J77) -> 7.705132428 | AB77: =Z77*SIN(J77) -> -6.374239897 | AC77: 11 | AD77: =AC77*COS(J77) -> 8.475645671 | AE77: =AC77*SIN(J77) -> -7.011663887 | AF77: 12 | AG77: =AF77*COS(J77) -> 9.246158913 | AH77: =AF77*SIN(J77) -> -7.649087877 | AI77: 13 | AJ77: =AI77*COS(J77) -> 10.01667216 | AK77: =AI77*SIN(J77) -> -8.286511867 | AL77: 14 | AM77: =AL77*COS(J77) -> 10.7871854 | AN77: =AL77*SIN(J77) -> -8.923935856 | AO77: 15 | AP77: =AO77*COS(J77) -> 11.55769864 | AQ77: =AO77*SIN(J77) -> -9.561359846 | AR77: 16 | AS77: =AR77*COS(J77) -> 12.32821188 | AT77: =AR77*SIN(J77) -> -10.19878384 | AU77: 17 | AV77: =AU77*COS(J77) -> 13.09872513 | AW77: =AU77*SIN(J77) -> -10.83620783 | AX77: 4 | AY77: =AX77*COS(J77) -> 3.082052971 | AZ77: =AX77*SIN(J77) -> -2.549695959 | BA77: =BA74+1 -> 22 | BB77: =AY34 -> -3.874332645 | BC77: =AZ34 -> 0.9947595487 | BD77: =BD74+1 -> 47 | BE77: =AY59 -> -0.9947595487 | BF77: =AZ59 -> -3.874332645 | BG77: =BG74+1 -> 72 | BH77: =AY84 -> 3.874332645 | BI77: =AZ84 -> -0.9947595487 | BJ77: =BJ74+1 -> 97 | BK77: =AY109 -> 0.9947595487 | BL77: =AZ109 -> 3.874332645 | BM77: 65 | BN77: =スコアシート!AG24 -> -2 | BO77: =$I$7+BN77*$I$8 -> 3 | BP77: =BO77*COS(J77) -> 2.311539728 | BQ77: =BO77*SIN(J77) -> -1.912271969 | BR77: 65 | BS77: 19.5 | BT77: =BS77*COS(J77) -> 15.02500823 | BU77: =BS77*SIN(J77) -> -12.4297678 | BV77: 136 | BW77: 150 | BX77: 171
H78: 66 | I78: =I3+(H78-1)*I4 -> 324 | J78: 5.654866776 | K78: =K77 -> 5 | L78: 4.045084972 | M78: -2.938926261 | N78: =N77 -> 6 | O78: 4.854101966 | P78: -3.526711514 | Q78: =Q77 -> 7 | R78: 5.663118961 | S78: -4.114496766 | T78: =T77 -> 8 | U78: 6.472135955 | V78: -4.702282018 | W78: =W77 -> 9 | X78: 7.281152949 | Y78: -5.290067271 | Z78: =Z77 -> 10 | AA78: 8.090169944 | AB78: -5.877852523 | AC78: =AC77 -> 11 | AD78: 8.899186938 | AE78: -6.465637775 | AF78: =AF77 -> 12 | AG78: 9.708203932 | AH78: -7.053423028 | AI78: =AI77 -> 13 | AJ78: 10.51722093 | AK78: -7.64120828 | AL78: =AL77 -> 14 | AM78: 11.32623792 | AN78: -8.228993532 | AO78: =AO77 -> 15 | AP78: 12.13525492 | AQ78: -8.816778784 | AR78: =AR77 -> 16 | AS78: 12.94427191 | AT78: -9.404564037 | AU78: =AU77 -> 17 | AV78: 13.7532889 | AW78: -9.992349289 | AX78: =AX77 -> 4 | AY78: 3.236067977 | AZ78: -2.351141009 | BM78: =H78 -> 66 | BN78: =スコアシート!AI24 -> -2 | BO78: 3 | BP78: 2.427050983 | BQ78: -1.763355757 | BR78: =H78 -> 66 | BS78: =BS77 -> 19.5 | BT78: 15.77583139 | BU78: -11.46181242 | BV78: 137 | BW78: 150 | BX78: 172
H79: 67 | I79: =I3+(H79-1)*I4 -> 327.6 | J79: 5.71769863 | K79: 5 | L79: 4.221639628 | M79: -2.679133975 | N79: 6 | O79: 5.065967553 | P79: -3.21496077 | Q79: 7 | R79: 5.910295479 | S79: -3.750787565 | T79: 8 | U79: 6.754623404 | V79: -4.28661436 | W79: 9 | X79: 7.59895133 | Y79: -4.822441155 | Z79: 10 | AA79: 8.443279255 | AB79: -5.35826795 | AC79: 11 | AD79: 9.287607181 | AE79: -5.894094745 | AF79: 12 | AG79: 10.13193511 | AH79: -6.42992154 | AI79: 13 | AJ79: 10.97626303 | AK79: -6.965748335 | AL79: 14 | AM79: 11.82059096 | AN79: -7.50157513 | AO79: 15 | AP79: 12.66491888 | AQ79: -8.037401925 | AR79: 16 | AS79: 13.50924681 | AT79: -8.57322872 | AU79: 17 | AV79: 14.35357473 | AW79: -9.109055515 | AX79: 4 | AY79: 3.377311702 | AZ79: -2.14330718 | BA79: =BA76+1 -> 23 | BB79: =AV35 -> -16.69888326 | BC79: =AW35 -> 3.185482348 | BD79: =BD76+1 -> 48 | BE79: =AV60 -> -3.185482348 | BF79: =AW60 -> -16.69888326 | BG79: =BG76+1 -> 73 | BH79: =AV85 -> 16.69888326 | BI79: =AW85 -> -3.185482348 | BJ79: =BJ76+1 -> 98 | BK79: =AV110 -> 3.185482348 | BL79: =AW110 -> 16.69888326 | BM79: 67 | BN79: =スコアシート!AK24 -> -2 | BO79: 3 | BP79: 2.532983777 | BQ79: -1.607480385 | BR79: 67 | BS79: 19.5 | BT79: 16.46439455 | BU79: -10.4486225 | BV79: 138 | BW79: 149 | BX79: 173
H80: 68 | I80: =I3+(H80-1)*I4 -> 331.2 | J80: 5.780530483 | K80: 5 | L80: 4.3815334 | M80: -2.408768371 | N80: 6 | O80: 5.25784008 | P80: -2.890522045 | Q80: 7 | R80: 6.13414676 | S80: -3.372275719 | T80: 8 | U80: 7.01045344 | V80: -3.854029393 | W80: 9 | X80: 7.88676012 | Y80: -4.335783067 | Z80: 10 | AA80: 8.7630668 | AB80: -4.817536741 | AC80: 11 | AD80: 9.63937348 | AE80: -5.299290415 | AF80: 12 | AG80: 10.51568016 | AH80: -5.781044089 | AI80: 13 | AJ80: 11.39198684 | AK80: -6.262797763 | AL80: 14 | AM80: 12.26829352 | AN80: -6.744551437 | AO80: 15 | AP80: 13.1446002 | AQ80: -7.226305112 | AR80: 16 | AS80: 14.02090688 | AT80: -7.708058786 | AU80: 17 | AV80: 14.89721356 | AW80: -8.18981246 | AX80: 4 | AY80: 3.50522672 | AZ80: -1.927014696 | BA80: =BA77+1 -> 23 | BB80: =AY35 -> -3.929149003 | BC80: =AZ35 -> 0.7495252583 | BD80: =BD77+1 -> 48 | BE80: =AY60 -> -0.7495252583 | BF80: =AZ60 -> -3.929149003 | BG80: =BG77+1 -> 73 | BH80: =AY85 -> 3.929149003 | BI80: =AZ85 -> -0.7495252583 | BJ80: =BJ77+1 -> 98 | BK80: =AY110 -> 0.7495252583 | BL80: =AZ110 -> 3.929149003 | BM80: 68 | BN80: =スコアシート!AM24 -> -2 | BO80: 3 | BP80: 2.62892004 | BQ80: -1.445261022 | BR80: 68 | BS80: 19.5 | BT80: 17.08798026 | BU80: -9.394196645 | BV80: 140 | BW80: 149 | BX80: 173
H81: 69 | I81: =I3+(H81-1)*I4 -> 334.8 | J81: 5.843362336 | K81: 5 | L81: 4.524135262 | M81: -2.128896458 | N81: 6 | O81: 5.428962315 | P81: -2.554675749 | Q81: 7 | R81: 6.333789367 | S81: -2.980455041 | T81: 8 | U81: 7.23861642 | V81: -3.406234333 | W81: 9 | X81: 8.143443472 | Y81: -3.832013624 | Z81: 10 | AA81: 9.048270525 | AB81: -4.257792916 | AC81: 11 | AD81: 9.953097577 | AE81: -4.683572207 | AF81: 12 | AG81: 10.85792463 | AH81: -5.109351499 | AI81: 13 | AJ81: 11.76275168 | AK81: -5.53513079 | AL81: 14 | AM81: 12.66757873 | AN81: -5.960910082 | AO81: 15 | AP81: 13.57240579 | AQ81: -6.386689373 | AR81: 16 | AS81: 14.47723284 | AT81: -6.812468665 | AU81: 17 | AV81: 15.38205989 | AW81: -7.238247957 | AX81: 4 | AY81: 3.61930821 | AZ81: -1.703117166 | BM81: 69 | BN81: =スコアシート!AO24 -> -2 | BO81: 3 | BP81: 2.714481157 | BQ81: -1.277337875 | BR81: 69 | BS81: 19.5 | BT81: 17.64412752 | BU81: -8.302696186 | BV81: 141 | BW81: 148 | BX81: 174
H82: 70 | I82: =I3+(H82-1)*I4 -> 338.4 | J82: 5.906194189 | K82: 5 | L82: 4.648882429 | M82: -1.840622763 | N82: 6 | O82: 5.578658915 | P82: -2.208747316 | Q82: 7 | R82: 6.508435401 | S82: -2.576871869 | T82: 8 | U82: 7.438211887 | V82: -2.944996421 | W82: 9 | X82: 8.367988373 | Y82: -3.313120974 | Z82: 10 | AA82: 9.297764859 | AB82: -3.681245527 | AC82: 11 | AD82: 10.22754134 | AE82: -4.04937008 | AF82: 12 | AG82: 11.15731783 | AH82: -4.417494632 | AI82: 13 | AJ82: 12.08709432 | AK82: -4.785619185 | AL82: 14 | AM82: 13.0168708 | AN82: -5.153743738 | AO82: 15 | AP82: 13.94664729 | AQ82: -5.52186829 | AR82: 16 | AS82: 14.87642377 | AT82: -5.889992843 | AU82: 17 | AV82: 15.80620026 | AW82: -6.258117396 | AX82: 4 | AY82: 3.719105944 | AZ82: -1.472498211 | BA82: =BA79+1 -> 24 | BB82: =AV36 -> -16.86594992 | BC82: =AW36 -> 2.130664971 | BD82: =BD79+1 -> 49 | BE82: =AV61 -> -2.130664971 | BF82: =AW61 -> -16.86594992 | BG82: =BG79+1 -> 74 | BH82: =AV86 -> 16.86594992 | BI82: =AW86 -> -2.130664971 | BJ82: =BJ79+1 -> 99 | BK82: =AV111 -> 2.130664971 | BL82: =AW111 -> 16.86594992 | BM82: 70 | BN82: =スコアシート!AQ24 -> -2 | BO82: 3 | BP82: 2.789329458 | BQ82: -1.104373658 | BR82: 70 | BS82: 19.5 | BT82: 18.13064147 | BU82: -7.178428777 | BV82: 143 | BW82: 148 | BX82: 174
H83: 71 | I83: =I3+(H83-1)*I4 -> 342 | J83: 5.969026042 | K83: 5 | L83: 4.755282581 | M83: -1.545084972 | N83: 6 | O83: 5.706339098 | P83: -1.854101966 | Q83: 7 | R83: 6.657395614 | S83: -2.163118961 | T83: 8 | U83: 7.60845213 | V83: -2.472135955 | W83: 9 | X83: 8.559508647 | Y83: -2.781152949 | Z83: 10 | AA83: 9.510565163 | AB83: -3.090169944 | AC83: 11 | AD83: 10.46162168 | AE83: -3.399186938 | AF83: 12 | AG83: 11.4126782 | AH83: -3.708203932 | AI83: 13 | AJ83: 12.36373471 | AK83: -4.017220927 | AL83: 14 | AM83: 13.31479123 | AN83: -4.326237921 | AO83: 15 | AP83: 14.26584774 | AQ83: -4.635254916 | AR83: 16 | AS83: 15.21690426 | AT83: -4.94427191 | AU83: 17 | AV83: 16.16796078 | AW83: -5.253288904 | AX83: 4 | AY83: 3.804226065 | AZ83: -1.236067977 | BA83: =BA80+1 -> 24 | BB83: =AY36 -> -3.968458805 | BC83: =AZ36 -> 0.5013329343 | BD83: =BD80+1 -> 49 | BE83: =AY61 -> -0.5013329343 | BF83: =AZ61 -> -3.968458805 | BG83: =BG80+1 -> 74 | BH83: =AY86 -> 3.968458805 | BI83: =AZ86 -> -0.5013329343 | BJ83: =BJ80+1 -> 99 | BK83: =AY111 -> 0.5013329343 | BL83: =AZ111 -> 3.968458805 | BM83: 71 | BN83: =スコアシート!AS24 -> -2 | BO83: 3 | BP83: 2.853169549 | BQ83: -0.9270509831 | BR83: 71 | BS83: 19.5 | BT83: 18.54560207 | BU83: -6.02583139 | BV83: 144 | BW83: 147 | BX83: 175
H84: 72 | I84: =I3+(H84-1)*I4 -> 345.6 | J84: 6.031857895 | K84: 5 | L84: 4.842915806 | M84: -1.243449436 | N84: 6 | O84: 5.811498967 | P84: -1.492139323 | Q84: 7 | R84: 6.780082128 | S84: -1.74082921 | T84: 8 | U84: 7.748665289 | V84: -1.989519097 | W84: 9 | X84: 8.71724845 | Y84: -2.238208984 | Z84: 10 | AA84: 9.685831611 | AB84: -2.486898872 | AC84: 11 | AD84: 10.65441477 | AE84: -2.735588759 | AF84: 12 | AG84: 11.62299793 | AH84: -2.984278646 | AI84: 13 | AJ84: 12.59158109 | AK84: -3.232968533 | AL84: 14 | AM84: 13.56016426 | AN84: -3.48165842 | AO84: 15 | AP84: 14.52874742 | AQ84: -3.730348307 | AR84: 16 | AS84: 15.49733058 | AT84: -3.979038195 | AU84: 17 | AV84: 16.46591374 | AW84: -4.227728082 | AX84: 4 | AY84: 3.874332645 | AZ84: -0.9947595487 | BM84: 72 | BN84: =スコアシート!AU24 -> -2 | BO84: 3 | BP84: 2.905749483 | BQ84: -0.7460696615 | BR84: 72 | BS84: 19.5 | BT84: 18.88737164 | BU84: -4.8494528 | BV84: 146 | BW84: 147 | BX84: 175
H85: 73 | I85: =I3+(H85-1)*I4 -> 349.2 | J85: 6.094689748 | K85: 5 | L85: 4.911436254 | M85: -0.9369065729 | N85: 6 | O85: 5.893723504 | P85: -1.124287888 | Q85: 7 | R85: 6.876010755 | S85: -1.311669202 | T85: 8 | U85: 7.858298006 | V85: -1.499050517 | W85: 9 | X85: 8.840585257 | Y85: -1.686431831 | Z85: 10 | AA85: 9.822872507 | AB85: -1.873813146 | AC85: 11 | AD85: 10.80515976 | AE85: -2.06119446 | AF85: 12 | AG85: 11.78744701 | AH85: -2.248575775 | AI85: 13 | AJ85: 12.76973426 | AK85: -2.43595709 | AL85: 14 | AM85: 13.75202151 | AN85: -2.623338404 | AO85: 15 | AP85: 14.73430876 | AQ85: -2.810719719 | AR85: 16 | AS85: 15.71659601 | AT85: -2.998101033 | AU85: 17 | AV85: 16.69888326 | AW85: -3.185482348 | AX85: 4 | AY85: 3.929149003 | AZ85: -0.7495252583 | BA85: =BA82+1 -> 25 | BB85: =AV37 -> -16.96645438 | BC85: =AW37 -> 1.067438832 | BD85: =BD82+1 -> 50 | BE85: =AV62 -> -1.067438832 | BF85: =AW62 -> -16.96645438 | BG85: =BG82+1 -> 75 | BH85: =AV87 -> 16.96645438 | BI85: =AW87 -> -1.067438832 | BJ85: =BJ82+1 -> 100 | BK85: =AV112 -> 1.067438832 | BL85: =AW112 -> 16.96645438 | BM85: 73 | BN85: =スコアシート!AW24 -> -2 | BO85: 3 | BP85: 2.946861752 | BQ85: -0.5621439438 | BR85: 73 | BS85: 19.5 | BT85: 19.15460139 | BU85: -3.653935634 | BV85: 147 | BW85: 147 | BX85: 175
H86: 74 | I86: =I3+(H86-1)*I4 -> 352.8 | J86: 6.157521601 | K86: 5 | L86: 4.960573507 | M86: -0.6266661678 | N86: 6 | O86: 5.952688208 | P86: -0.7519994014 | Q86: 7 | R86: 6.944802909 | S86: -0.877332635 | T86: 8 | U86: 7.936917611 | V86: -1.002665869 | W86: 9 | X86: 8.929032312 | Y86: -1.127999102 | Z86: 10 | AA86: 9.921147013 | AB86: -1.253332336 | AC86: 11 | AD86: 10.91326171 | AE86: -1.378665569 | AF86: 12 | AG86: 11.90537642 | AH86: -1.503998803 | AI86: 13 | AJ86: 12.89749112 | AK86: -1.629332036 | AL86: 14 | AM86: 13.88960582 | AN86: -1.75466527 | AO86: 15 | AP86: 14.88172052 | AQ86: -1.879998503 | AR86: 16 | AS86: 15.87383522 | AT86: -2.005331737 | AU86: 17 | AV86: 16.86594992 | AW86: -2.130664971 | AX86: 4 | AY86: 3.968458805 | AZ86: -0.5013329343 | BA86: =BA83+1 -> 25 | BB86: =AY37 -> -3.992106914 | BC86: =AZ37 -> 0.2511620781 | BD86: =BD83+1 -> 50 | BE86: =AY62 -> -0.2511620781 | BF86: =AZ62 -> -3.992106914 | BG86: =BG83+1 -> 75 | BH86: =AY87 -> 3.992106914 | BI86: =AZ87 -> -0.2511620781 | BJ86: =BJ83+1 -> 100 | BK86: =AY112 -> 0.2511620781 | BL86: =AZ112 -> 3.992106914 | BM86: 74 | BN86: =スコアシート!AY24 -> -2 | BO86: 3 | BP86: 2.976344104 | BQ86: -0.3759997007 | BR86: 74 | BS86: 19.5 | BT86: 19.34623668 | BU86: -2.443998055 | BV86: 149 | BW86: 146 | BX86: 175
H87: 75 | I87: =I3+(H87-1)*I4 -> 356.4 | J87: 6.220353454 | K87: 5 | L87: 4.990133642 | M87: -0.3139525976 | N87: 6 | O87: 5.988160371 | P87: -0.3767431172 | Q87: 7 | R87: 6.986187099 | S87: -0.4395336367 | T87: 8 | U87: 7.984213827 | V87: -0.5023241562 | W87: 9 | X87: 8.982240556 | Y87: -0.5651146758 | Z87: 10 | AA87: 9.980267284 | AB87: -0.6279051953 | AC87: 11 | AD87: 10.97829401 | AE87: -0.6906957148 | AF87: 12 | AG87: 11.97632074 | AH87: -0.7534862344 | AI87: 13 | AJ87: 12.97434747 | AK87: -0.8162767539 | AL87: 14 | AM87: 13.9723742 | AN87: -0.8790672734 | AO87: 15 | AP87: 14.97040093 | AQ87: -0.9418577929 | AR87: 16 | AS87: 15.96842765 | AT87: -1.004648312 | AU87: 17 | AV87: 16.96645438 | AW87: -1.067438832 | AX87: 4 | AY87: 3.992106914 | AZ87: -0.2511620781 | BM87: 75 | BN87: =スコアシート!BA24+スコアシート!C31 -> 148 | BO87: 153 | BP87: 152.6980894 | BQ87: -9.606949488 | BR87: 75 | BS87: 19.5 | BT87: 19.4615212 | BU87: -1.224415131 | BV87: 150 | BW87: 146 | BX87: 175
H88: 76 | I88: =I3+(H88-1)*I4 -> 360 | J88: 6.283185307 | K88: 5 | L88: 5 | M88: -1.225148455e-15 | N88: 6 | O88: 6 | P88: -1.470178146e-15 | Q88: 7 | R88: 7 | S88: -1.715207837e-15 | T88: 8 | U88: 8 | V88: -1.960237528e-15 | W88: 9 | X88: 9 | Y88: -2.205267219e-15 | Z88: 10 | AA88: 10 | AB88: -2.45029691e-15 | AC88: 11 | AD88: 11 | AE88: -2.695326601e-15 | AF88: 12 | AG88: 12 | AH88: -2.940356292e-15 | AI88: 13 | AJ88: 13 | AK88: -3.185385983e-15 | AL88: 14 | AM88: 14 | AN88: -3.430415674e-15 | AO88: 15 | AP88: 15 | AQ88: -3.675445365e-15 | AR88: 16 | AS88: 16 | AT88: -3.920475056e-15 | AU88: 17 | AV88: 17 | AW88: -4.165504747e-15 | AX88: 4 | AY88: 4 | AZ88: -9.801187639e-16 | BM88: 76 | BN88: =スコアシート!E31+スコアシート!BC24 -> 148 | BO88: 153 | BP88: 153 | BQ88: -3.748954272e-14 | BR88: 76 | BS88: 19.5 | BT88: 19.5 | BU88: -4.778078974e-15 | BV88: 152 | BW88: 145 | BX88: 175
H89: 77 | I89: =I3+(H89-1)*I4 -> 363.6 | J89: 6.34601716 | K89: 5 | L89: 4.990133642 | M89: 0.3139525976 | N89: 6 | O89: 5.988160371 | P89: 0.3767431172 | Q89: 7 | R89: 6.986187099 | S89: 0.4395336367 | T89: 8 | U89: 7.984213827 | V89: 0.5023241562 | W89: 9 | X89: 8.982240556 | Y89: 0.5651146758 | Z89: 10 | AA89: 9.980267284 | AB89: 0.6279051953 | AC89: 11 | AD89: 10.97829401 | AE89: 0.6906957148 | AF89: 12 | AG89: 11.97632074 | AH89: 0.7534862344 | AI89: 13 | AJ89: 12.97434747 | AK89: 0.8162767539 | AL89: 14 | AM89: 13.9723742 | AN89: 0.8790672734 | AO89: 15 | AP89: 14.97040093 | AQ89: 0.9418577929 | AR89: 16 | AS89: 15.96842765 | AT89: 1.004648312 | AU89: 17 | AV89: 16.96645438 | AW89: 1.067438832 | AX89: 4 | AY89: 3.992106914 | AZ89: 0.2511620781 | BM89: 77 | BN89: =スコアシート!G31 -> -2 | BO89: 3 | BP89: 2.994080185 | BQ89: 0.1883715586 | BR89: 77 | BS89: 19.5 | BT89: 19.4615212 | BU89: 1.224415131 | BV89: 153 | BW89: 145 | BX89: 174
H90: 78 | I90: =I3+(H90-1)*I4 -> 367.2 | J90: 6.408849013 | K90: 5 | L90: 4.960573507 | M90: 0.6266661678 | N90: 6 | O90: 5.952688208 | P90: 0.7519994014 | Q90: 7 | R90: 6.944802909 | S90: 0.877332635 | T90: 8 | U90: 7.936917611 | V90: 1.002665869 | W90: 9 | X90: 8.929032312 | Y90: 1.127999102 | Z90: 10 | AA90: 9.921147013 | AB90: 1.253332336 | AC90: 11 | AD90: 10.91326171 | AE90: 1.378665569 | AF90: 12 | AG90: 11.90537642 | AH90: 1.503998803 | AI90: 13 | AJ90: 12.89749112 | AK90: 1.629332036 | AL90: 14 | AM90: 13.88960582 | AN90: 1.75466527 | AO90: 15 | AP90: 14.88172052 | AQ90: 1.879998503 | AR90: 16 | AS90: 15.87383522 | AT90: 2.005331737 | AU90: 17 | AV90: 16.86594992 | AW90: 2.130664971 | AX90: 4 | AY90: 3.968458805 | AZ90: 0.5013329343 | BM90: 78 | BN90: =スコアシート!I31 -> -2 | BO90: 3 | BP90: 2.976344104 | BQ90: 0.3759997007 | BR90: 78 | BS90: 19.5 | BT90: 19.34623668 | BU90: 2.443998055 | BV90: 155 | BW90: 144 | BX90: 174
H91: 79 | I91: =I3+(H91-1)*I4 -> 370.8 | J91: 6.471680866 | K91: 5 | L91: 4.911436254 | M91: 0.9369065729 | N91: 6 | O91: 5.893723504 | P91: 1.124287888 | Q91: 7 | R91: 6.876010755 | S91: 1.311669202 | T91: 8 | U91: 7.858298006 | V91: 1.499050517 | W91: 9 | X91: 8.840585257 | Y91: 1.686431831 | Z91: 10 | AA91: 9.822872507 | AB91: 1.873813146 | AC91: 11 | AD91: 10.80515976 | AE91: 2.06119446 | AF91: 12 | AG91: 11.78744701 | AH91: 2.248575775 | AI91: 13 | AJ91: 12.76973426 | AK91: 2.43595709 | AL91: 14 | AM91: 13.75202151 | AN91: 2.623338404 | AO91: 15 | AP91: 14.73430876 | AQ91: 2.810719719 | AR91: 16 | AS91: 15.71659601 | AT91: 2.998101033 | AU91: 17 | AV91: 16.69888326 | AW91: 3.185482348 | AX91: 4 | AY91: 3.929149003 | AZ91: 0.7495252583 | BM91: 79 | BN91: =スコアシート!K31 -> -2 | BO91: 3 | BP91: 2.946861752 | BQ91: 0.5621439438 | BR91: 79 | BS91: 19.5 | BT91: 19.15460139 | BU91: 3.653935634 | BV91: 156 | BW91: 144 | BX91: 174
H92: 80 | I92: =I3+(H92-1)*I4 -> 374.4 | J92: 6.534512719 | K92: 5 | L92: 4.842915806 | M92: 1.243449436 | N92: 6 | O92: 5.811498967 | P92: 1.492139323 | Q92: 7 | R92: 6.780082128 | S92: 1.74082921 | T92: 8 | U92: 7.748665289 | V92: 1.989519097 | W92: 9 | X92: 8.71724845 | Y92: 2.238208984 | Z92: 10 | AA92: 9.685831611 | AB92: 2.486898872 | AC92: 11 | AD92: 10.65441477 | AE92: 2.735588759 | AF92: 12 | AG92: 11.62299793 | AH92: 2.984278646 | AI92: 13 | AJ92: 12.59158109 | AK92: 3.232968533 | AL92: 14 | AM92: 13.56016426 | AN92: 3.48165842 | AO92: 15 | AP92: 14.52874742 | AQ92: 3.730348307 | AR92: 16 | AS92: 15.49733058 | AT92: 3.979038195 | AU92: 17 | AV92: 16.46591374 | AW92: 4.227728082 | AX92: 4 | AY92: 3.874332645 | AZ92: 0.9947595487 | BM92: 80 | BN92: =スコアシート!M31 -> -2 | BO92: 3 | BP92: 2.905749483 | BQ92: 0.7460696615 | BR92: 80 | BS92: 19.5 | BT92: 18.88737164 | BU92: 4.8494528 | BV92: 157 | BW92: 144 | BX92: 173
H93: 81 | I93: =I3+(H93-1)*I4 -> 378 | J93: 6.597344573 | K93: 5 | L93: 4.755282581 | M93: 1.545084972 | N93: 6 | O93: 5.706339098 | P93: 1.854101966 | Q93: 7 | R93: 6.657395614 | S93: 2.163118961 | T93: 8 | U93: 7.60845213 | V93: 2.472135955 | W93: 9 | X93: 8.559508647 | Y93: 2.781152949 | Z93: 10 | AA93: 9.510565163 | AB93: 3.090169944 | AC93: 11 | AD93: 10.46162168 | AE93: 3.399186938 | AF93: 12 | AG93: 11.4126782 | AH93: 3.708203932 | AI93: 13 | AJ93: 12.36373471 | AK93: 4.017220927 | AL93: 14 | AM93: 13.31479123 | AN93: 4.326237921 | AO93: 15 | AP93: 14.26584774 | AQ93: 4.635254916 | AR93: 16 | AS93: 15.21690426 | AT93: 4.94427191 | AU93: 17 | AV93: 16.16796078 | AW93: 5.253288904 | AX93: 4 | AY93: 3.804226065 | AZ93: 1.236067977 | BM93: 81 | BN93: =スコアシート!O31 -> -2 | BO93: 3 | BP93: 2.853169549 | BQ93: 0.9270509831 | BR93: 81 | BS93: 19.5 | BT93: 18.54560207 | BU93: 6.02583139 | BV93: 158 | BW93: 143 | BX93: 173
H94: 82 | I94: =I3+(H94-1)*I4 -> 381.6 | J94: 6.660176426 | K94: 5 | L94: 4.648882429 | M94: 1.840622763 | N94: 6 | O94: 5.578658915 | P94: 2.208747316 | Q94: 7 | R94: 6.508435401 | S94: 2.576871869 | T94: 8 | U94: 7.438211887 | V94: 2.944996421 | W94: 9 | X94: 8.367988373 | Y94: 3.313120974 | Z94: 10 | AA94: 9.297764859 | AB94: 3.681245527 | AC94: 11 | AD94: 10.22754134 | AE94: 4.04937008 | AF94: 12 | AG94: 11.15731783 | AH94: 4.417494632 | AI94: 13 | AJ94: 12.08709432 | AK94: 4.785619185 | AL94: 14 | AM94: 13.0168708 | AN94: 5.153743738 | AO94: 15 | AP94: 13.94664729 | AQ94: 5.52186829 | AR94: 16 | AS94: 14.87642377 | AT94: 5.889992843 | AU94: 17 | AV94: 15.80620026 | AW94: 6.258117396 | AX94: 4 | AY94: 3.719105944 | AZ94: 1.472498211 | BM94: 82 | BN94: =スコアシート!Q31 -> -2 | BO94: 3 | BP94: 2.789329458 | BQ94: 1.104373658 | BR94: 82 | BS94: 19.5 | BT94: 18.13064147 | BU94: 7.178428777 | BV94: 160 | BW94: 143 | BX94: 172
H95: 83 | I95: =I3+(H95-1)*I4 -> 385.2 | J95: 6.723008279 | K95: 5 | L95: 4.524135262 | M95: 2.128896458 | N95: 6 | O95: 5.428962315 | P95: 2.554675749 | Q95: 7 | R95: 6.333789367 | S95: 2.980455041 | T95: 8 | U95: 7.23861642 | V95: 3.406234333 | W95: 9 | X95: 8.143443472 | Y95: 3.832013624 | Z95: 10 | AA95: 9.048270525 | AB95: 4.257792916 | AC95: 11 | AD95: 9.953097577 | AE95: 4.683572207 | AF95: 12 | AG95: 10.85792463 | AH95: 5.109351499 | AI95: 13 | AJ95: 11.76275168 | AK95: 5.53513079 | AL95: 14 | AM95: 12.66757873 | AN95: 5.960910082 | AO95: 15 | AP95: 13.57240579 | AQ95: 6.386689373 | AR95: 16 | AS95: 14.47723284 | AT95: 6.812468665 | AU95: 17 | AV95: 15.38205989 | AW95: 7.238247957 | AX95: 4 | AY95: 3.61930821 | AZ95: 1.703117166 | BM95: 83 | BN95: =スコアシート!S31 -> -2 | BO95: 3 | BP95: 2.714481157 | BQ95: 1.277337875 | BR95: 83 | BS95: 19.5 | BT95: 17.64412752 | BU95: 8.302696186 | BV95: 161 | BW95: 143 | BX95: 171
H96: 84 | I96: =I3+(H96-1)*I4 -> 388.8 | J96: 6.785840132 | K96: 5 | L96: 4.3815334 | M96: 2.408768371 | N96: 6 | O96: 5.25784008 | P96: 2.890522045 | Q96: 7 | R96: 6.13414676 | S96: 3.372275719 | T96: 8 | U96: 7.01045344 | V96: 3.854029393 | W96: 9 | X96: 7.88676012 | Y96: 4.335783067 | Z96: 10 | AA96: 8.7630668 | AB96: 4.817536741 | AC96: 11 | AD96: 9.63937348 | AE96: 5.299290415 | AF96: 12 | AG96: 10.51568016 | AH96: 5.781044089 | AI96: 13 | AJ96: 11.39198684 | AK96: 6.262797763 | AL96: 14 | AM96: 12.26829352 | AN96: 6.744551437 | AO96: 15 | AP96: 13.1446002 | AQ96: 7.226305112 | AR96: 16 | AS96: 14.02090688 | AT96: 7.708058786 | AU96: 17 | AV96: 14.89721356 | AW96: 8.18981246 | AX96: 4 | AY96: 3.50522672 | AZ96: 1.927014696 | BM96: 84 | BN96: =スコアシート!U31 -> -2 | BO96: 3 | BP96: 2.62892004 | BQ96: 1.445261022 | BR96: 84 | BS96: 19.5 | BT96: 17.08798026 | BU96: 9.394196645 | BV96: 162 | BW96: 142 | BX96: 170
H97: 85 | I97: =I3+(H97-1)*I4 -> 392.4 | J97: 6.848671985 | K97: 5 | L97: 4.221639628 | M97: 2.679133975 | N97: 6 | O97: 5.065967553 | P97: 3.21496077 | Q97: 7 | R97: 5.910295479 | S97: 3.750787565 | T97: 8 | U97: 6.754623404 | V97: 4.28661436 | W97: 9 | X97: 7.59895133 | Y97: 4.822441155 | Z97: 10 | AA97: 8.443279255 | AB97: 5.35826795 | AC97: 11 | AD97: 9.287607181 | AE97: 5.894094745 | AF97: 12 | AG97: 10.13193511 | AH97: 6.42992154 | AI97: 13 | AJ97: 10.97626303 | AK97: 6.965748335 | AL97: 14 | AM97: 11.82059096 | AN97: 7.50157513 | AO97: 15 | AP97: 12.66491888 | AQ97: 8.037401925 | AR97: 16 | AS97: 13.50924681 | AT97: 8.57322872 | AU97: 17 | AV97: 14.35357473 | AW97: 9.109055515 | AX97: 4 | AY97: 3.377311702 | AZ97: 2.14330718 | BM97: 85 | BN97: =スコアシート!W31 -> -2 | BO97: 3 | BP97: 2.532983777 | BQ97: 1.607480385 | BR97: 85 | BS97: 19.5 | BT97: 16.46439455 | BU97: 10.4486225 | BV97: 163 | BW97: 142 | BX97: 169
H98: 86 | I98: =I3+(H98-1)*I4 -> 396 | J98: 6.911503838 | K98: 5 | L98: 4.045084972 | M98: 2.938926261 | N98: 6 | O98: 4.854101966 | P98: 3.526711514 | Q98: 7 | R98: 5.663118961 | S98: 4.114496766 | T98: 8 | U98: 6.472135955 | V98: 4.702282018 | W98: 9 | X98: 7.281152949 | Y98: 5.290067271 | Z98: 10 | AA98: 8.090169944 | AB98: 5.877852523 | AC98: 11 | AD98: 8.899186938 | AE98: 6.465637775 | AF98: 12 | AG98: 9.708203932 | AH98: 7.053423028 | AI98: 13 | AJ98: 10.51722093 | AK98: 7.64120828 | AL98: 14 | AM98: 11.32623792 | AN98: 8.228993532 | AO98: 15 | AP98: 12.13525492 | AQ98: 8.816778784 | AR98: 16 | AS98: 12.94427191 | AT98: 9.404564037 | AU98: 17 | AV98: 13.7532889 | AW98: 9.992349289 | AX98: 4 | AY98: 3.236067977 | AZ98: 2.351141009 | BM98: 86 | BN98: =スコアシート!Y31 -> -2 | BO98: 3 | BP98: 2.427050983 | BQ98: 1.763355757 | BR98: 86 | BS98: 19.5 | BT98: 15.77583139 | BU98: 11.46181242 | BV98: 164 | BW98: 142 | BX98: 168
H99: 87 | I99: =I3+(H99-1)*I4 -> 399.6 | J99: 6.974335691 | K99: 5 | L99: 3.852566214 | M99: 3.187119949 | N99: 6 | O99: 4.623079457 | P99: 3.824543938 | Q99: 7 | R99: 5.393592699 | S99: 4.461967928 | T99: 8 | U99: 6.164105942 | V99: 5.099391918 | W99: 9 | X99: 6.934619185 | Y99: 5.736815908 | Z99: 10 | AA99: 7.705132428 | AB99: 6.374239897 | AC99: 11 | AD99: 8.475645671 | AE99: 7.011663887 | AF99: 12 | AG99: 9.246158913 | AH99: 7.649087877 | AI99: 13 | AJ99: 10.01667216 | AK99: 8.286511867 | AL99: 14 | AM99: 10.7871854 | AN99: 8.923935856 | AO99: 15 | AP99: 11.55769864 | AQ99: 9.561359846 | AR99: 16 | AS99: 12.32821188 | AT99: 10.19878384 | AU99: 17 | AV99: 13.09872513 | AW99: 10.83620783 | AX99: 4 | AY99: 3.082052971 | AZ99: 2.549695959 | BM99: 87 | BN99: =スコアシート!AA31 -> -2 | BO99: 3 | BP99: 2.311539728 | BQ99: 1.912271969 | BR99: 87 | BS99: 19.5 | BT99: 15.02500823 | BU99: 12.4297678 | BV99: 165 | BW99: 142 | BX99: 167
H100: 88 | I100: =I3+(H100-1)*I4 -> 403.2 | J100: 7.037167544 | K100: 5 | L100: 3.644843137 | M100: 3.42273553 | N100: 6 | O100: 4.373811765 | P100: 4.107282636 | Q100: 7 | R100: 5.102780392 | S100: 4.791829742 | T100: 8 | U100: 5.831749019 | V100: 5.476376847 | W100: 9 | X100: 6.560717647 | Y100: 6.160923953 | Z100: 10 | AA100: 7.289686274 | AB100: 6.845471059 | AC100: 11 | AD100: 8.018654902 | AE100: 7.530018165 | AF100: 12 | AG100: 8.747623529 | AH100: 8.214565271 | AI100: 13 | AJ100: 9.476592156 | AK100: 8.899112377 | AL100: 14 | AM100: 10.20556078 | AN100: 9.583659483 | AO100: 15 | AP100: 10.93452941 | AQ100: 10.26820659 | AR100: 16 | AS100: 11.66349804 | AT100: 10.95275369 | AU100: 17 | AV100: 12.39246667 | AW100: 11.6373008 | AX100: 4 | AY100: 2.91587451 | AZ100: 2.738188424 | BM100: 88 | BN100: =スコアシート!AC31 -> -2 | BO100: 3 | BP100: 2.186905882 | BQ100: 2.053641318 | BR100: 88 | BS100: 19.5 | BT100: 14.21488823 | BU100: 13.34866857 | BV100: 165 | BW100: 142 | BX100: 166
H101: 89 | I101: =I3+(H101-1)*I4 -> 406.8 | J101: 7.099999397 | K101: 5 | L101: 3.42273553 | M101: 3.644843137 | N101: 6 | O101: 4.107282636 | P101: 4.373811765 | Q101: 7 | R101: 4.791829742 | S101: 5.102780392 | T101: 8 | U101: 5.476376847 | V101: 5.831749019 | W101: 9 | X101: 6.160923953 | Y101: 6.560717647 | Z101: 10 | AA101: 6.845471059 | AB101: 7.289686274 | AC101: 11 | AD101: 7.530018165 | AE101: 8.018654902 | AF101: 12 | AG101: 8.214565271 | AH101: 8.747623529 | AI101: 13 | AJ101: 8.899112377 | AK101: 9.476592156 | AL101: 14 | AM101: 9.583659483 | AN101: 10.20556078 | AO101: 15 | AP101: 10.26820659 | AQ101: 10.93452941 | AR101: 16 | AS101: 10.95275369 | AT101: 11.66349804 | AU101: 17 | AV101: 11.6373008 | AW101: 12.39246667 | AX101: 4 | AY101: 2.738188424 | AZ101: 2.91587451 | BM101: 89 | BN101: =スコアシート!AE31 -> -2 | BO101: 3 | BP101: 2.053641318 | BQ101: 2.186905882 | BR101: 89 | BS101: 19.5 | BT101: 13.34866857 | BU101: 14.21488823 | BV101: 166 | BW101: 142 | BX101: 164
H102: 90 | I102: =I3+(H102-1)*I4 -> 410.4 | J102: 7.16283125 | K102: 5 | L102: 3.187119949 | M102: 3.852566214 | N102: 6 | O102: 3.824543938 | P102: 4.623079457 | Q102: 7 | R102: 4.461967928 | S102: 5.393592699 | T102: 8 | U102: 5.099391918 | V102: 6.164105942 | W102: 9 | X102: 5.736815908 | Y102: 6.934619185 | Z102: 10 | AA102: 6.374239897 | AB102: 7.705132428 | AC102: 11 | AD102: 7.011663887 | AE102: 8.475645671 | AF102: 12 | AG102: 7.649087877 | AH102: 9.246158913 | AI102: 13 | AJ102: 8.286511867 | AK102: 10.01667216 | AL102: 14 | AM102: 8.923935856 | AN102: 10.7871854 | AO102: 15 | AP102: 9.561359846 | AQ102: 11.55769864 | AR102: 16 | AS102: 10.19878384 | AT102: 12.32821188 | AU102: 17 | AV102: 10.83620783 | AW102: 13.09872513 | AX102: 4 | AY102: 2.549695959 | AZ102: 3.082052971 | BM102: 90 | BN102: =スコアシート!AG31 -> -2 | BO102: 3 | BP102: 1.912271969 | BQ102: 2.311539728 | BR102: 90 | BS102: 19.5 | BT102: 12.4297678 | BU102: 15.02500823 | BV102: 167 | BW102: 142 | BX102: 163
H103: 91 | I103: =I3+(H103-1)*I4 -> 414 | J103: 7.225663103 | K103: 5 | L103: 2.938926261 | M103: 4.045084972 | N103: 6 | O103: 3.526711514 | P103: 4.854101966 | Q103: 7 | R103: 4.114496766 | S103: 5.663118961 | T103: 8 | U103: 4.702282018 | V103: 6.472135955 | W103: 9 | X103: 5.290067271 | Y103: 7.281152949 | Z103: 10 | AA103: 5.877852523 | AB103: 8.090169944 | AC103: 11 | AD103: 6.465637775 | AE103: 8.899186938 | AF103: 12 | AG103: 7.053423028 | AH103: 9.708203932 | AI103: 13 | AJ103: 7.64120828 | AK103: 10.51722093 | AL103: 14 | AM103: 8.228993532 | AN103: 11.32623792 | AO103: 15 | AP103: 8.816778784 | AQ103: 12.13525492 | AR103: 16 | AS103: 9.404564037 | AT103: 12.94427191 | AU103: 17 | AV103: 9.992349289 | AW103: 13.7532889 | AX103: 4 | AY103: 2.351141009 | AZ103: 3.236067977 | BM103: 91 | BN103: =スコアシート!AI31 -> -2 | BO103: 3 | BP103: 1.763355757 | BQ103: 2.427050983 | BR103: 91 | BS103: 19.5 | BT103: 11.46181242 | BU103: 15.77583139 | BV103: 167 | BW103: 142 | BX103: 161
H104: 92 | I104: =I3+(H104-1)*I4 -> 417.6 | J104: 7.288494956 | K104: 5 | L104: 2.679133975 | M104: 4.221639628 | N104: 6 | O104: 3.21496077 | P104: 5.065967553 | Q104: 7 | R104: 3.750787565 | S104: 5.910295479 | T104: 8 | U104: 4.28661436 | V104: 6.754623404 | W104: 9 | X104: 4.822441155 | Y104: 7.59895133 | Z104: 10 | AA104: 5.35826795 | AB104: 8.443279255 | AC104: 11 | AD104: 5.894094745 | AE104: 9.287607181 | AF104: 12 | AG104: 6.42992154 | AH104: 10.13193511 | AI104: 13 | AJ104: 6.965748335 | AK104: 10.97626303 | AL104: 14 | AM104: 7.50157513 | AN104: 11.82059096 | AO104: 15 | AP104: 8.037401925 | AQ104: 12.66491888 | AR104: 16 | AS104: 8.57322872 | AT104: 13.50924681 | AU104: 17 | AV104: 9.109055515 | AW104: 14.35357473 | AX104: 4 | AY104: 2.14330718 | AZ104: 3.377311702 | BM104: 92 | BN104: =スコアシート!AK31 -> -2 | BO104: 3 | BP104: 1.607480385 | BQ104: 2.532983777 | BR104: 92 | BS104: 19.5 | BT104: 10.4486225 | BU104: 16.46439455 | BV104: 168 | BW104: 142 | BX104: 160
H105: 93 | I105: =I3+(H105-1)*I4 -> 421.2 | J105: 7.351326809 | K105: 5 | L105: 2.408768371 | M105: 4.3815334 | N105: 6 | O105: 2.890522045 | P105: 5.25784008 | Q105: 7 | R105: 3.372275719 | S105: 6.13414676 | T105: 8 | U105: 3.854029393 | V105: 7.01045344 | W105: 9 | X105: 4.335783067 | Y105: 7.88676012 | Z105: 10 | AA105: 4.817536741 | AB105: 8.7630668 | AC105: 11 | AD105: 5.299290415 | AE105: 9.63937348 | AF105: 12 | AG105: 5.781044089 | AH105: 10.51568016 | AI105: 13 | AJ105: 6.262797763 | AK105: 11.39198684 | AL105: 14 | AM105: 6.744551437 | AN105: 12.26829352 | AO105: 15 | AP105: 7.226305112 | AQ105: 13.1446002 | AR105: 16 | AS105: 7.708058786 | AT105: 14.02090688 | AU105: 17 | AV105: 8.18981246 | AW105: 14.89721356 | AX105: 4 | AY105: 1.927014696 | AZ105: 3.50522672 | BM105: 93 | BN105: =スコアシート!AM31 -> -2 | BO105: 3 | BP105: 1.445261022 | BQ105: 2.62892004 | BR105: 93 | BS105: 19.5 | BT105: 9.394196645 | BU105: 17.08798026 | BV105: 168 | BW105: 142 | BX105: 158
H106: 94 | I106: =I3+(H106-1)*I4 -> 424.8 | J106: 7.414158662 | K106: 5 | L106: 2.128896458 | M106: 4.524135262 | N106: 6 | O106: 2.554675749 | P106: 5.428962315 | Q106: 7 | R106: 2.980455041 | S106: 6.333789367 | T106: 8 | U106: 3.406234333 | V106: 7.23861642 | W106: 9 | X106: 3.832013624 | Y106: 8.143443472 | Z106: 10 | AA106: 4.257792916 | AB106: 9.048270525 | AC106: 11 | AD106: 4.683572207 | AE106: 9.953097577 | AF106: 12 | AG106: 5.109351499 | AH106: 10.85792463 | AI106: 13 | AJ106: 5.53513079 | AK106: 11.76275168 | AL106: 14 | AM106: 5.960910082 | AN106: 12.66757873 | AO106: 15 | AP106: 6.386689373 | AQ106: 13.57240579 | AR106: 16 | AS106: 6.812468665 | AT106: 14.47723284 | AU106: 17 | AV106: 7.238247957 | AW106: 15.38205989 | AX106: 4 | AY106: 1.703117166 | AZ106: 3.61930821 | BM106: 94 | BN106: =スコアシート!AO31 -> -2 | BO106: 3 | BP106: 1.277337875 | BQ106: 2.714481157 | BR106: 94 | BS106: 19.5 | BT106: 8.302696186 | BU106: 17.64412752 | BV106: 169 | BW106: 142 | BX106: 157
H107: 95 | I107: =I3+(H107-1)*I4 -> 428.4 | J107: 7.476990516 | K107: 5 | L107: 1.840622763 | M107: 4.648882429 | N107: 6 | O107: 2.208747316 | P107: 5.578658915 | Q107: 7 | R107: 2.576871869 | S107: 6.508435401 | T107: 8 | U107: 2.944996421 | V107: 7.438211887 | W107: 9 | X107: 3.313120974 | Y107: 8.367988373 | Z107: 10 | AA107: 3.681245527 | AB107: 9.297764859 | AC107: 11 | AD107: 4.04937008 | AE107: 10.22754134 | AF107: 12 | AG107: 4.417494632 | AH107: 11.15731783 | AI107: 13 | AJ107: 4.785619185 | AK107: 12.08709432 | AL107: 14 | AM107: 5.153743738 | AN107: 13.0168708 | AO107: 15 | AP107: 5.52186829 | AQ107: 13.94664729 | AR107: 16 | AS107: 5.889992843 | AT107: 14.87642377 | AU107: 17 | AV107: 6.258117396 | AW107: 15.80620026 | AX107: 4 | AY107: 1.472498211 | AZ107: 3.719105944 | BM107: 95 | BN107: =スコアシート!AQ31 -> -2 | BO107: 3 | BP107: 1.104373658 | BQ107: 2.789329458 | BR107: 95 | BS107: 19.5 | BT107: 7.178428777 | BU107: 18.13064147 | BV107: 169 | BW107: 142 | BX107: 155
H108: 96 | I108: =I3+(H108-1)*I4 -> 432 | J108: 7.539822369 | K108: 5 | L108: 1.545084972 | M108: 4.755282581 | N108: 6 | O108: 1.854101966 | P108: 5.706339098 | Q108: 7 | R108: 2.163118961 | S108: 6.657395614 | T108: 8 | U108: 2.472135955 | V108: 7.60845213 | W108: 9 | X108: 2.781152949 | Y108: 8.559508647 | Z108: 10 | AA108: 3.090169944 | AB108: 9.510565163 | AC108: 11 | AD108: 3.399186938 | AE108: 10.46162168 | AF108: 12 | AG108: 3.708203932 | AH108: 11.4126782 | AI108: 13 | AJ108: 4.017220927 | AK108: 12.36373471 | AL108: 14 | AM108: 4.326237921 | AN108: 13.31479123 | AO108: 15 | AP108: 4.635254916 | AQ108: 14.26584774 | AR108: 16 | AS108: 4.94427191 | AT108: 15.21690426 | AU108: 17 | AV108: 5.253288904 | AW108: 16.16796078 | AX108: 4 | AY108: 1.236067977 | AZ108: 3.804226065 | BM108: 96 | BN108: =スコアシート!AS31 -> -2 | BO108: 3 | BP108: 0.9270509831 | BQ108: 2.853169549 | BR108: 96 | BS108: 19.5 | BT108: 6.02583139 | BU108: 18.54560207 | BV108: 169 | BW108: 142 | BX108: 154
H109: 97 | I109: =I3+(H109-1)*I4 -> 435.6 | J109: =RADIANS(I109) -> 7.602654222 | K109: 5 | L109: =K109*COS(J109) -> 1.243449436 | M109: 4.842915806 | N109: 6 | O109: =N109*COS(J109) -> 1.492139323 | P109: 5.811498967 | Q109: 7 | R109: =Q109*COS(J109) -> 1.74082921 | S109: 6.780082128 | T109: 8 | U109: =T109*COS(J109) -> 1.989519097 | V109: 7.748665289 | W109: 9 | X109: =W109*COS(J109) -> 2.238208984 | Y109: 8.71724845 | Z109: 10 | AA109: =Z109*COS(J109) -> 2.486898872 | AB109: 9.685831611 | AC109: 11 | AD109: =AC109*COS(J109) -> 2.735588759 | AE109: 10.65441477 | AF109: 12 | AG109: =AF109*COS(J109) -> 2.984278646 | AH109: 11.62299793 | AI109: 13 | AJ109: =AI109*COS(J109) -> 3.232968533 | AK109: 12.59158109 | AL109: 14 | AM109: =AL109*COS(J109) -> 3.48165842 | AN109: 13.56016426 | AO109: 15 | AP109: =AO109*COS(J109) -> 3.730348307 | AQ109: 14.52874742 | AR109: 16 | AS109: =AR109*COS(J109) -> 3.979038195 | AT109: 15.49733058 | AU109: 17 | AV109: =AU109*COS(J109) -> 4.227728082 | AW109: 16.46591374 | AX109: 4 | AY109: =AX109*COS(J109) -> 0.9947595487 | AZ109: 3.874332645 | BM109: 97 | BN109: =スコアシート!AU31 -> -2 | BO109: 3 | BP109: =BO109*COS(J109) -> 0.7460696615 | BQ109: 2.905749483 | BR109: 97 | BS109: 19.5 | BT109: =BS109*COS(J109) -> 4.8494528 | BU109: 18.88737164 | BV109: 169 | BW109: 142 | BX109: 152
H110: 98 | I110: =I3+(H110-1)*I4 -> 439.2 | J110: =RADIANS(I110) -> 7.665486075 | K110: 5 | L110: =K110*COS(J110) -> 0.9369065729 | M110: 4.911436254 | N110: 6 | O110: =N110*COS(J110) -> 1.124287888 | P110: 5.893723504 | Q110: 7 | R110: =Q110*COS(J110) -> 1.311669202 | S110: 6.876010755 | T110: 8 | U110: =T110*COS(J110) -> 1.499050517 | V110: 7.858298006 | W110: 9 | X110: =W110*COS(J110) -> 1.686431831 | Y110: 8.840585257 | Z110: 10 | AA110: =Z110*COS(J110) -> 1.873813146 | AB110: 9.822872507 | AC110: 11 | AD110: =AC110*COS(J110) -> 2.06119446 | AE110: 10.80515976 | AF110: 12 | AG110: =AF110*COS(J110) -> 2.248575775 | AH110: 11.78744701 | AI110: 13 | AJ110: =AI110*COS(J110) -> 2.43595709 | AK110: 12.76973426 | AL110: 14 | AM110: =AL110*COS(J110) -> 2.623338404 | AN110: 13.75202151 | AO110: 15 | AP110: =AO110*COS(J110) -> 2.810719719 | AQ110: 14.73430876 | AR110: 16 | AS110: =AR110*COS(J110) -> 2.998101033 | AT110: 15.71659601 | AU110: 17 | AV110: =AU110*COS(J110) -> 3.185482348 | AW110: 16.69888326 | AX110: 4 | AY110: =AX110*COS(J110) -> 0.7495252583 | AZ110: 3.929149003 | BM110: 98 | BN110: =スコアシート!AW31 -> -2 | BO110: 3 | BP110: =BO110*COS(J110) -> 0.5621439438 | BQ110: 2.946861752 | BR110: 98 | BS110: 19.5 | BT110: 3.653935634 | BU110: 19.15460139 | BV110: 169 | BW110: 142 | BX110: 150
H111: 99 | I111: =I3+(H111-1)*I4 -> 442.8 | J111: =RADIANS(I111) -> 7.728317928 | K111: 5 | L111: =K111*COS(J111) -> 0.6266661678 | M111: 4.960573507 | N111: 6 | O111: =N111*COS(J111) -> 0.7519994014 | P111: 5.952688208 | Q111: 7 | R111: =Q111*COS(J111) -> 0.877332635 | S111: 6.944802909 | T111: 8 | U111: =T111*COS(J111) -> 1.002665869 | V111: 7.936917611 | W111: 9 | X111: =W111*COS(J111) -> 1.127999102 | Y111: 8.929032312 | Z111: 10 | AA111: =Z111*COS(J111) -> 1.253332336 | AB111: 9.921147013 | AC111: 11 | AD111: =AC111*COS(J111) -> 1.378665569 | AE111: 10.91326171 | AF111: 12 | AG111: =AF111*COS(J111) -> 1.503998803 | AH111: 11.90537642 | AI111: 13 | AJ111: =AI111*COS(J111) -> 1.629332036 | AK111: 12.89749112 | AL111: 14 | AM111: =AL111*COS(J111) -> 1.75466527 | AN111: 13.88960582 | AO111: 15 | AP111: =AO111*COS(J111) -> 1.879998503 | AQ111: 14.88172052 | AR111: 16 | AS111: =AR111*COS(J111) -> 2.005331737 | AT111: 15.87383522 | AU111: 17 | AV111: =AU111*COS(J111) -> 2.130664971 | AW111: 16.86594992 | AX111: 4 | AY111: =AX111*COS(J111) -> 0.5013329343 | AZ111: 3.968458805 | BM111: 99 | BN111: =スコアシート!AY31 -> -2 | BO111: 3 | BP111: =BO111*COS(J111) -> 0.3759997007 | BQ111: 2.976344104 | BR111: 99 | BS111: 19.5 | BT111: 2.443998055 | BU111: 19.34623668 | BV111: 169 | BW111: 142 | BX111: 149
H112: 100 | I112: =I3+(H112-1)*I4 -> 446.4 | J112: =RADIANS(I112) -> 7.791149781 | K112: 5 | L112: =K112*COS(J112) -> 0.3139525976 | M112: 4.990133642 | N112: 6 | O112: =N112*COS(J112) -> 0.3767431172 | P112: 5.988160371 | Q112: 7 | R112: =Q112*COS(J112) -> 0.4395336367 | S112: 6.986187099 | T112: 8 | U112: =T112*COS(J112) -> 0.5023241562 | V112: 7.984213827 | W112: 9 | X112: =W112*COS(J112) -> 0.5651146758 | Y112: 8.982240556 | Z112: 10 | AA112: =Z112*COS(J112) -> 0.6279051953 | AB112: 9.980267284 | AC112: 11 | AD112: =AC112*COS(J112) -> 0.6906957148 | AE112: 10.97829401 | AF112: 12 | AG112: =AF112*COS(J112) -> 0.7534862344 | AH112: 11.97632074 | AI112: 13 | AJ112: =AI112*COS(J112) -> 0.8162767539 | AK112: 12.97434747 | AL112: 14 | AM112: =AL112*COS(J112) -> 0.8790672734 | AN112: 13.9723742 | AO112: 15 | AP112: =AO112*COS(J112) -> 0.9418577929 | AQ112: 14.97040093 | AR112: 16 | AS112: =AR112*COS(J112) -> 1.004648312 | AT112: 15.96842765 | AU112: 17 | AV112: =AU112*COS(J112) -> 1.067438832 | AW112: 16.96645438 | AX112: 4 | AY112: =AX112*COS(J112) -> 0.2511620781 | AZ112: 3.992106914 | BM112: 100 | BN112: =スコアシート!BA31+スコアシート!C10 -> 98 | BO112: 103 | BP112: =BO112*COS(J112) -> 6.467423512 | BQ112: 102.796753 | BR112: 100 | BS112: 19.5 | BT112: 1.224415131 | BU112: 19.4615212 | BV112: 169 | BW112: 142 | BX112: 147
H113: 1 | I113: =I3+(H113-1)*I4 -> 90 | J113: =RADIANS(I113) -> 1.570796327 | K113: 5 | L113: =K113*COS(J113) -> 3.062871137e-16 | M113: 5 | N113: 6 | O113: =N113*COS(J113) -> 3.675445365e-16 | P113: 6 | Q113: 7 | R113: =Q113*COS(J113) -> 4.288019592e-16 | S113: 7 | T113: 8 | U113: =T113*COS(J113) -> 4.90059382e-16 | V113: 8 | W113: 9 | X113: =W113*COS(J113) -> 5.513168047e-16 | Y113: 9 | Z113: 10 | AA113: =Z113*COS(J113) -> 6.125742275e-16 | AB113: 10 | AC113: 11 | AD113: =AC113*COS(J113) -> 6.738316502e-16 | AE113: 11 | AF113: 12 | AG113: =AF113*COS(J113) -> 7.350890729e-16 | AH113: 12 | AI113: 13 | AJ113: =AI113*COS(J113) -> 7.963464957e-16 | AK113: 13 | AL113: 14 | AM113: =AL113*COS(J113) -> 8.576039184e-16 | AN113: 14 | AO113: 15 | AP113: =AO113*COS(J113) -> 9.188613412e-16 | AQ113: 15 | AR113: 16 | AS113: =AR113*COS(J113) -> 9.801187639e-16 | AT113: 16 | AU113: 17 | AV113: =AU113*COS(J113) -> 1.041376187e-15 | AW113: 17 | AX113: 4 | AY113: =AX113*COS(J113) -> 2.45029691e-16 | AZ113: 4 | BM113: 101 | BN113: =BN13 -> 98 | BO113: 103 | BP113: =BO113*COS(J113) -> 6.309514543e-15 | BQ113: 103 | BR113: 1 | BS113: 19.5 | BT113: 1.194519744e-15 | BU113: 19.5 | BV113: 169 | BW113: 143 | BX113: 145

Sheet スコアシート
A1: ND-100 スコア・シート | AS1: ="検査日 "&入力シート!$D$5&" 年 "&入力シート!$G$5&" 月 "&入力シート!$I$5&" 日" -> 検査日 年 月 日
AS2: ="被検者 "&入力シート!$D$3 -> 被検者
Y5: ＜内箱１＞
A6: 順位 | C6: ="(100)" -> (100) | E6: 1 | G6: =E6+1 -> 2 | I6: =G6+1 -> 3 | K6: =I6+1 -> 4 | M6: =K6+1 -> 5 | O6: =M6+1 -> 6 | Q6: =O6+1 -> 7 | S6: =Q6+1 -> 8 | U6: =S6+1 -> 9 | W6: =U6+1 -> 10 | Y6: =W6+1 -> 11 | AA6: =Y6+1 -> 12 | AC6: =AA6+1 -> 13 | AE6: =AC6+1 -> 14 | AG6: =AE6+1 -> 15 | AI6: =AG6+1 -> 16 | AK6: =AI6+1 -> 17 | AM6: =AK6+1 -> 18 | AO6: =AM6+1 -> 19 | AQ6: =AO6+1 -> 20 | AS6: =AQ6+1 -> 21 | AU6: =AS6+1 -> 22 | AW6: =AU6+1 -> 23 | AY6: =AW6+1 -> 24 | BA6: =AY6+1 -> 25 | BC6: =BA6+1 -> 26
A7: テスト順 | C7: 0 | E7: =入力シート!D10 -> 0 | G7: =入力シート!E10 -> 0 | I7: =入力シート!F10 -> 0 | K7: =入力シート!G10 -> 0 | M7: =入力シート!H10 -> 0 | O7: =入力シート!I10 -> 0 | Q7: =入力シート!J10 -> 0 | S7: =入力シート!K10 -> 0 | U7: =入力シート!L10 -> 0 | W7: =入力シート!M10 -> 0 | Y7: =入力シート!N10 -> 0 | AA7: =入力シート!O10 -> 0 | AC7: =入力シート!P10 -> 0 | AE7: =入力シート!Q10 -> 0 | AG7: =入力シート!R10 -> 0 | AI7: =入力シート!S10 -> 0 | AK7: =入力シート!T10 -> 0 | AM7: =入力シート!U10 -> 0 | AO7: =入力シート!V10 -> 0 | AQ7: =入力シート!W10 -> 0 | AS7: =入力シート!X10 -> 0 | AU7: =入力シート!Y10 -> 0 | AW7: =入力シート!Z10 -> 0 | AY7: =入力シート!AA10 -> 0 | BA7: =入力シート!AB10 -> 0 | BC7: =BC6 -> 26
A8: 差 | B8: 1 | D8: =ABS(0-E7) -> 0 | F8: =ABS(E7-G7) -> 0 | H8: =ABS(G7-I7) -> 0 | J8: =ABS(I7-K7) -> 0 | L8: =ABS(K7-M7) -> 0 | N8: =ABS(M7-O7) -> 0 | P8: =ABS(O7-Q7) -> 0 | R8: =ABS(Q7-S7) -> 0 | T8: =ABS(S7-U7) -> 0 | V8: =ABS(U7-W7) -> 0 | X8: =ABS(W7-Y7) -> 0 | Z8: =ABS(Y7-AA7) -> 0 | AB8: =ABS(AA7-AC7) -> 0 | AD8: =ABS(AC7-AE7) -> 0 | AF8: =ABS(AE7-AG7) -> 0 | AH8: =ABS(AG7-AI7) -> 0 | AJ8: =ABS(AI7-AK7) -> 0 | AL8: =ABS(AK7-AM7) -> 0 | AN8: =ABS(AM7-AO7) -> 0 | AP8: =ABS(AO7-AQ7) -> 0 | AR8: =ABS(AQ7-AS7) -> 0 | AT8: =ABS(AS7-AU7) -> 0 | AV8: =ABS(AU7-AW7) -> 0 | AX8: =ABS(AW7-AY7) -> 0 | AZ8: =ABS(AY7-BA7) -> 0 | BB8: =ABS(BA7-BC7) -> 26 | BD8: 1
A9: 加える | C9: =B8+D8 -> 1 | E9: =D8+F8 -> 0 | G9: =F8+H8 -> 0 | I9: =H8+J8 -> 0 | K9: =J8+L8 -> 0 | M9: =L8+N8 -> 0 | O9: =N8+P8 -> 0 | Q9: =P8+R8 -> 0 | S9: =R8+T8 -> 0 | U9: =T8+V8 -> 0 | W9: =V8+X8 -> 0 | Y9: =X8+Z8 -> 0 | AA9: =Z8+AB8 -> 0 | AC9: =AB8+AD8 -> 0 | AE9: =AD8+AF8 -> 0 | AG9: =AF8+AH8 -> 0 | AI9: =AH8+AJ8 -> 0 | AK9: =AJ8+AL8 -> 0 | AM9: =AL8+AN8 -> 0 | AO9: =AN8+AP8 -> 0 | AQ9: =AP8+AR8 -> 0 | AS9: =AR8+AT8 -> 0 | AU9: =AT8+AV8 -> 0 | AW9: =AV8+AX8 -> 0 | AY9: =AX8+AZ8 -> 0 | BA9: =AZ8+BB8 -> 26 | BC9: =BB8+BD8 -> 27
A10: 2を引く | C10: =C9-2 -> -1 | E10: -2 | G10: -2 | I10: -2 | K10: -2 | M10: -2 | O10: -2 | Q10: -2 | S10: -2 | U10: -2 | W10: -2 | Y10: -2 | AA10: -2 | AC10: -2 | AE10: -2 | AG10: -2 | AI10: -2 | AK10: -2 | AM10: -2 | AO10: -2 | AQ10: -2 | AS10: -2 | AU10: -2 | AW10: -2 | AY10: -2 | BA10: 24 | BC10: 25 | BG10: 小計１ | BH10: =IF(入力シート!AE10,"",SUM(C10:BC10)) -> 
Y12: ＜内箱２＞
A13: 順位 | C13: 25 | E13: =C13+1 -> 26 | G13: =E13+1 -> 27 | I13: =G13+1 -> 28 | K13: =I13+1 -> 29 | M13: =K13+1 -> 30 | O13: =M13+1 -> 31 | Q13: =O13+1 -> 32 | S13: =Q13+1 -> 33 | U13: =S13+1 -> 34 | W13: =U13+1 -> 35 | Y13: =W13+1 -> 36 | AA13: =Y13+1 -> 37 | AC13: =AA13+1 -> 38 | AE13: =AC13+1 -> 39 | AG13: =AE13+1 -> 40 | AI13: =AG13+1 -> 41 | AK13: =AI13+1 -> 42 | AM13: =AK13+1 -> 43 | AO13: =AM13+1 -> 44 | AQ13: =AO13+1 -> 45 | AS13: =AQ13+1 -> 46 | AU13: =AS13+1 -> 47 | AW13: =AU13+1 -> 48 | AY13: =AW13+1 -> 49 | BA13: =AY13+1 -> 50 | BC13: =BA13+1 -> 51
A14: テスト順 | C14: =C13 -> 25 | E14: =入力シート!D16 -> 0 | G14: =入力シート!E16 -> 0 | I14: =入力シート!F16 -> 0 | K14: =入力シート!G16 -> 0 | M14: =入力シート!H16 -> 0 | O14: =入力シート!I16 -> 0 | Q14: =入力シート!J16 -> 0 | S14: =入力シート!K16 -> 0 | U14: =入力シート!L16 -> 0 | W14: =入力シート!M16 -> 0 | Y14: =入力シート!N16 -> 0 | AA14: =入力シート!O16 -> 0 | AC14: =入力シート!P16 -> 0 | AE14: =入力シート!Q16 -> 0 | AG14: =入力シート!R16 -> 0 | AI14: =入力シート!S16 -> 0 | AK14: =入力シート!T16 -> 0 | AM14: =入力シート!U16 -> 0 | AO14: =入力シート!V16 -> 0 | AQ14: =入力シート!W16 -> 0 | AS14: =入力シート!X16 -> 0 | AU14: =入力シート!Y16 -> 0 | AW14: =入力シート!Z16 -> 0 | AY14: =入力シート!AA16 -> 0 | BA14: =入力シート!AB16 -> 0 | BC14: =BC13 -> 51
A15: 差 | B15: 1 | D15: =ABS(C14-E14) -> 25 | F15: =ABS(E14-G14) -> 0 | H15: =ABS(G14-I14) -> 0 | J15: =ABS(I14-K14) -> 0 | L15: =ABS(K14-M14) -> 0 | N15: =ABS(M14-O14) -> 0 | P15: =ABS(O14-Q14) -> 0 | R15: =ABS(Q14-S14) -> 0 | T15: =ABS(S14-U14) -> 0 | V15: =ABS(U14-W14) -> 0 | X15: =ABS(W14-Y14) -> 0 | Z15: =ABS(Y14-AA14) -> 0 | AB15: =ABS(AA14-AC14) -> 0 | AD15: =ABS(AC14-AE14) -> 0 | AF15: =ABS(AE14-AG14) -> 0 | AH15: =ABS(AG14-AI14) -> 0 | AJ15: =ABS(AI14-AK14) -> 0 | AL15: =ABS(AK14-AM14) -> 0 | AN15: =ABS(AM14-AO14) -> 0 | AP15: =ABS(AO14-AQ14) -> 0 | AR15: =ABS(AQ14-AS14) -> 0 | AT15: =ABS(AS14-AU14) -> 0 | AV15: =ABS(AU14-AW14) -> 0 | AX15: =ABS(AW14-AY14) -> 0 | AZ15: =ABS(AY14-BA14) -> 0 | BB15: =ABS(BA14-BC14) -> 51 | BD15: 1
A16: 加える | C16: =B15+D15 -> 26 | E16: =D15+F15 -> 25 | G16: =F15+H15 -> 0 | I16: =H15+J15 -> 0 | K16: =J15+L15 -> 0 | M16: =L15+N15 -> 0 | O16: =N15+P15 -> 0 | Q16: =P15+R15 -> 0 | S16: =R15+T15 -> 0 | U16: =T15+V15 -> 0 | W16: =V15+X15 -> 0 | Y16: =X15+Z15 -> 0 | AA16: =Z15+AB15 -> 0 | AC16: =AB15+AD15 -> 0 | AE16: =AD15+AF15 -> 0 | AG16: =AF15+AH15 -> 0 | AI16: =AH15+AJ15 -> 0 | AK16: =AJ15+AL15 -> 0 | AM16: =AL15+AN15 -> 0 | AO16: =AN15+AP15 -> 0 | AQ16: =AP15+AR15 -> 0 | AS16: =AR15+AT15 -> 0 | AU16: =AT15+AV15 -> 0 | AW16: =AV15+AX15 -> 0 | AY16: =AX15+AZ15 -> 0 | BA16: =AZ15+BB15 -> 51 | BC16: =BB15+BD15 -> 52
A17: 2を引く | C17: =C16-2 -> 24 | E17: =E16-2 -> 23 | G17: =G16-2 -> -2 | I17: =I16-2 -> -2 | K17: =K16-2 -> -2 | M17: =M16-2 -> -2 | O17: =O16-2 -> -2 | Q17: =Q16-2 -> -2 | S17: =S16-2 -> -2 | U17: =U16-2 -> -2 | W17: =W16-2 -> -2 | Y17: =Y16-2 -> -2 | AA17: =AA16-2 -> -2 | AC17: =AC16-2 -> -2 | AE17: =AE16-2 -> -2 | AG17: =AG16-2 -> -2 | AI17: =AI16-2 -> -2 | AK17: =AK16-2 -> -2 | AM17: =AM16-2 -> -2 | AO17: =AO16-2 -> -2 | AQ17: =AQ16-2 -> -2 | AS17: =AS16-2 -> -2 | AU17: =AU16-2 -> -2 | AW17: =AW16-2 -> -2 | AY17: =AY16-2 -> -2 | BA17: =BA16-2 -> 49 | BC17: =BC16-2 -> 50 | BG17: 小計２ | BH17: =IF(入力シート!AE16,"",SUM(C17:BC17)) -> 
Y19: ＜内箱３＞
A20: 順位 | C20: 50 | E20: =C20+1 -> 51 | G20: =E20+1 -> 52 | I20: =G20+1 -> 53 | K20: =I20+1 -> 54 | M20: =K20+1 -> 55 | O20: =M20+1 -> 56 | Q20: =O20+1 -> 57 | S20: =Q20+1 -> 58 | U20: =S20+1 -> 59 | W20: =U20+1 -> 60 | Y20: =W20+1 -> 61 | AA20: =Y20+1 -> 62 | AC20: =AA20+1 -> 63 | AE20: =AC20+1 -> 64 | AG20: =AE20+1 -> 65 | AI20: =AG20+1 -> 66 | AK20: =AI20+1 -> 67 | AM20: =AK20+1 -> 68 | AO20: =AM20+1 -> 69 | AQ20: =AO20+1 -> 70 | AS20: =AQ20+1 -> 71 | AU20: =AS20+1 -> 72 | AW20: =AU20+1 -> 73 | AY20: =AW20+1 -> 74 | BA20: =AY20+1 -> 75 | BC20: =BA20+1 -> 76
A21: テスト順 | C21: =C20 -> 50 | E21: =入力シート!D22 -> 0 | G21: =入力シート!E22 -> 0 | I21: =入力シート!F22 -> 0 | K21: =入力シート!G22 -> 0 | M21: =入力シート!H22 -> 0 | O21: =入力シート!I22 -> 0 | Q21: =入力シート!J22 -> 0 | S21: =入力シート!K22 -> 0 | U21: =入力シート!L22 -> 0 | W21: =入力シート!M22 -> 0 | Y21: =入力シート!N22 -> 0 | AA21: =入力シート!O22 -> 0 | AC21: =入力シート!P22 -> 0 | AE21: =入力シート!Q22 -> 0 | AG21: =入力シート!R22 -> 0 | AI21: =入力シート!S22 -> 0 | AK21: =入力シート!T22 -> 0 | AM21: =入力シート!U22 -> 0 | AO21: =入力シート!V22 -> 0 | AQ21: =入力シート!W22 -> 0 | AS21: =入力シート!X22 -> 0 | AU21: =入力シート!Y22 -> 0 | AW21: =入力シート!Z22 -> 0 | AY21: =入力シート!AA22 -> 0 | BA21: =入力シート!AB22 -> 0 | BC21: =BC20 -> 76
A22: 差 | B22: 1 | D22: =ABS(C21-E21) -> 50 | F22: =ABS(E21-G21) -> 0 | H22: =ABS(G21-I21) -> 0 | J22: =ABS(I21-K21) -> 0 | L22: =ABS(K21-M21) -> 0 | N22: =ABS(M21-O21) -> 0 | P22: =ABS(O21-Q21) -> 0 | R22: =ABS(Q21-S21) -> 0 | T22: =ABS(S21-U21) -> 0 | V22: =ABS(U21-W21) -> 0 | X22: =ABS(W21-Y21) -> 0 | Z22: =ABS(Y21-AA21) -> 0 | AB22: =ABS(AA21-AC21) -> 0 | AD22: =ABS(AC21-AE21) -> 0 | AF22: =ABS(AE21-AG21) -> 0 | AH22: =ABS(AG21-AI21) -> 0 | AJ22: =ABS(AI21-AK21) -> 0 | AL22: =ABS(AK21-AM21) -> 0 | AN22: =ABS(AM21-AO21) -> 0 | AP22: =ABS(AO21-AQ21) -> 0 | AR22: =ABS(AQ21-AS21) -> 0 | AT22: =ABS(AS21-AU21) -> 0 | AV22: =ABS(AU21-AW21) -> 0 | AX22: =ABS(AW21-AY21) -> 0 | AZ22: =ABS(AY21-BA21) -> 0 | BB22: =ABS(BA21-BC21) -> 76 | BD22: 1
A23: 加える | C23: =B22+D22 -> 51 | E23: =D22+F22 -> 50 | G23: =F22+H22 -> 0 | I23: =H22+J22 -> 0 | K23: =J22+L22 -> 0 | M23: =L22+N22 -> 0 | O23: =N22+P22 -> 0 | Q23: =P22+R22 -> 0 | S23: =R22+T22 -> 0 | U23: =T22+V22 -> 0 | W23: =V22+X22 -> 0 | Y23: =X22+Z22 -> 0 | AA23: =Z22+AB22 -> 0 | AC23: =AB22+AD22 -> 0 | AE23: =AD22+AF22 -> 0 | AG23: =AF22+AH22 -> 0 | AI23: =AH22+AJ22 -> 0 | AK23: =AJ22+AL22 -> 0 | AM23: =AL22+AN22 -> 0 | AO23: =AN22+AP22 -> 0 | AQ23: =AP22+AR22 -> 0 | AS23: =AR22+AT22 -> 0 | AU23: =AT22+AV22 -> 0 | AW23: =AV22+AX22 -> 0 | AY23: =AX22+AZ22 -> 0 | BA23: =AZ22+BB22 -> 76 | BC23: =BB22+BD22 -> 77
A24: 2を引く | C24: =C23-2 -> 49 | E24: =E23-2 -> 48 | G24: =G23-2 -> -2 | I24: =I23-2 -> -2 | K24: =K23-2 -> -2 | M24: =M23-2 -> -2 | O24: =O23-2 -> -2 | Q24: =Q23-2 -> -2 | S24: =S23-2 -> -2 | U24: =U23-2 -> -2 | W24: =W23-2 -> -2 | Y24: =Y23-2 -> -2 | AA24: =AA23-2 -> -2 | AC24: =AC23-2 -> -2 | AE24: =AE23-2 -> -2 | AG24: =AG23-2 -> -2 | AI24: =AI23-2 -> -2 | AK24: =AK23-2 -> -2 | AM24: =AM23-2 -> -2 | AO24: =AO23-2 -> -2 | AQ24: =AQ23-2 -> -2 | AS24: =AS23-2 -> -2 | AU24: =AU23-2 -> -2 | AW24: =AW23-2 -> -2 | AY24: =AY23-2 -> -2 | BA24: =BA23-2 -> 74 | BC24: =BC23-2 -> 75 | BG24: 小計３ | BH24: =IF(入力シート!AE22,"",SUM(C24:BC24)) -> 
Y26: ＜内箱４＞
A27: 順位 | C27: 75 | E27: =C27+1 -> 76 | G27: =E27+1 -> 77 | I27: =G27+1 -> 78 | K27: =I27+1 -> 79 | M27: =K27+1 -> 80 | O27: =M27+1 -> 81 | Q27: =O27+1 -> 82 | S27: =Q27+1 -> 83 | U27: =S27+1 -> 84 | W27: =U27+1 -> 85 | Y27: =W27+1 -> 86 | AA27: =Y27+1 -> 87 | AC27: =AA27+1 -> 88 | AE27: =AC27+1 -> 89 | AG27: =AE27+1 -> 90 | AI27: =AG27+1 -> 91 | AK27: =AI27+1 -> 92 | AM27: =AK27+1 -> 93 | AO27: =AM27+1 -> 94 | AQ27: =AO27+1 -> 95 | AS27: =AQ27+1 -> 96 | AU27: =AS27+1 -> 97 | AW27: =AU27+1 -> 98 | AY27: =AW27+1 -> 99 | BA27: =AY27+1 -> 100 | BC27: ="(1)" -> (1)
A28: テスト順 | C28: =C27 -> 75 | E28: =入力シート!D28 -> 0 | G28: =入力シート!E28 -> 0 | I28: =入力シート!F28 -> 0 | K28: =入力シート!G28 -> 0 | M28: =入力シート!H28 -> 0 | O28: =入力シート!I28 -> 0 | Q28: =入力シート!J28 -> 0 | S28: =入力シート!K28 -> 0 | U28: =入力シート!L28 -> 0 | W28: =入力シート!M28 -> 0 | Y28: =入力シート!N28 -> 0 | AA28: =入力シート!O28 -> 0 | AC28: =入力シート!P28 -> 0 | AE28: =入力シート!Q28 -> 0 | AG28: =入力シート!R28 -> 0 | AI28: =入力シート!S28 -> 0 | AK28: =入力シート!T28 -> 0 | AM28: =入力シート!U28 -> 0 | AO28: =入力シート!V28 -> 0 | AQ28: =入力シート!W28 -> 0 | AS28: =入力シート!X28 -> 0 | AU28: =入力シート!Y28 -> 0 | AW28: =入力シート!Z28 -> 0 | AY28: =入力シート!AA28 -> 0 | BA28: =入力シート!AB28 -> 0 | BC28: 101
A29: 差 | B29: 1 | D29: =ABS(C28-E28) -> 75 | F29: =ABS(E28-G28) -> 0 | H29: =ABS(G28-I28) -> 0 | J29: =ABS(I28-K28) -> 0 | L29: =ABS(K28-M28) -> 0 | N29: =ABS(M28-O28) -> 0 | P29: =ABS(O28-Q28) -> 0 | R29: =ABS(Q28-S28) -> 0 | T29: =ABS(S28-U28) -> 0 | V29: =ABS(U28-W28) -> 0 | X29: =ABS(W28-Y28) -> 0 | Z29: =ABS(Y28-AA28) -> 0 | AB29: =ABS(AA28-AC28) -> 0 | AD29: =ABS(AC28-AE28) -> 0 | AF29: =ABS(AE28-AG28) -> 0 | AH29: =ABS(AG28-AI28) -> 0 | AJ29: =ABS(AI28-AK28) -> 0 | AL29: =ABS(AK28-AM28) -> 0 | AN29: =ABS(AM28-AO28) -> 0 | AP29: =ABS(AO28-AQ28) -> 0 | AR29: =ABS(AQ28-AS28) -> 0 | AT29: =ABS(AS28-AU28) -> 0 | AV29: =ABS(AU28-AW28) -> 0 | AX29: =ABS(AW28-AY28) -> 0 | AZ29: =ABS(AY28-BA28) -> 0 | BB29: =ABS(BA28-BC28) -> 101 | BD29: 1
A30: 加える | C30: =B29+D29 -> 76 | E30: =D29+F29 -> 75 | G30: =F29+H29 -> 0 | I30: =H29+J29 -> 0 | K30: =J29+L29 -> 0 | M30: =L29+N29 -> 0 | O30: =N29+P29 -> 0 | Q30: =P29+R29 -> 0 | S30: =R29+T29 -> 0 | U30: =T29+V29 -> 0 | W30: =V29+X29 -> 0 | Y30: =X29+Z29 -> 0 | AA30: =Z29+AB29 -> 0 | AC30: =AB29+AD29 -> 0 | AE30: =AD29+AF29 -> 0 | AG30: =AF29+AH29 -> 0 | AI30: =AH29+AJ29 -> 0 | AK30: =AJ29+AL29 -> 0 | AM30: =AL29+AN29 -> 0 | AO30: =AN29+AP29 -> 0 | AQ30: =AP29+AR29 -> 0 | AS30: =AR29+AT29 -> 0 | AU30: =AT29+AV29 -> 0 | AW30: =AV29+AX29 -> 0 | AY30: =AX29+AZ29 -> 0 | BA30: =AZ29+BB29 -> 101 | BC30: =BB29+BD29 -> 102
A31: 2を引く | C31: =C30-2 -> 74 | E31: =E30-2 -> 73 | G31: =G30-2 -> -2 | I31: =I30-2 -> -2 | K31: =K30-2 -> -2 | M31: =M30-2 -> -2 | O31: =O30-2 -> -2 | Q31: =Q30-2 -> -2 | S31: =S30-2 -> -2 | U31: =U30-2 -> -2 | W31: =W30-2 -> -2 | Y31: =Y30-2 -> -2 | AA31: =AA30-2 -> -2 | AC31: =AC30-2 -> -2 | AE31: =AE30-2 -> -2 | AG31: =AG30-2 -> -2 | AI31: =AI30-2 -> -2 | AK31: =AK30-2 -> -2 | AM31: =AM30-2 -> -2 | AO31: =AO30-2 -> -2 | AQ31: =AQ30-2 -> -2 | AS31: =AS30-2 -> -2 | AU31: =AU30-2 -> -2 | AW31: =AW30-2 -> -2 | AY31: =AY30-2 -> -2 | BA31: =BA30-2 -> 99 | BC31: =BC30-2 -> 100 | BG31: 小計４ | BH31: =IF(入力シート!AE28,"",SUM(C31:BC31)) -> 
AI33: 総計（小計１～４の合計） | AV33: =IF(入力シート!AE32,"",BH10+BH17+BH24+BH31) ->  | BB33: 判定 | BG33: =IF(入力シート!R34="判定しない","",IF(入力シート!R34="判定基準Ａ",IF(AV33>82,"再検査",IF(AV33>50,"可",IF(AV33>18,"良","優"))),IF(AV33>80,"C",IF(AV33>32,"B","A")))) -> 
AP35: Copyright Japan Color Reseach Institute 2018

Sheet パターングラフ
A1: ND-100 パターン・グラフ | K1: ="検査日 "&入力シート!$D$5&" 年 "&入力シート!$G$5&" 月 "&入力シート!$I$5&" 日" -> 検査日 年 月 日
K2: ="被検者 "&入力シート!$D$3 -> 被検者
A33: 表示される色は目安です。
A34: 正確な色は実機にて確認してください
I36: Copyright Japan Color Reseach Institute 2017

Sheet 使用上の注意
A4: 使用上の注意
B5: ・この計算シートはver.1.03(2022.6.15版)です。
B6: ・この計算シートは日本色研事業(株) 100 hue test(ND-100)専用となります。
B7: ・この計算シートについてのお問合せは下記にお問い合わせください
C8: 一般財団法人日本色彩研究所
C9: https://www.jcri.jp
B10: ・この計算シートに関わるすべての権利は一般財団法人日本色彩研究所に属します。
B11: ・判定基準は変更されることがあります。
B12: ・この計算シートの使用によって万が一損害が生じても当研究所は一切の責任を負いかねますのでご了解の上、ご利用ください。
A17: 入力上の注意
B18: ・被検者名、検査日を青色セルに記入してください
B19: ・内箱番号を間違えないように気をつけてください。
B20: ・テスト順欄の黄色セルに回答値を入力してください。
B21: ・範囲外の回答値は入力できません。
B22: ・黄色セルが赤色文字になったときは回答値が重複しています。確認してください。
B23: ・黄色セルに空白があるか重複していると小計は表示されません。
B24: ・緑色セルの判定基準を選択してください
B25: ・入力結果はスコアシート、パターングラフに反映されます。
B26: ・必要に応じて、スコアシート、パターングラフを印刷してください。
